{"text_format":"1","workbook":"xlsx","n_sheets":4,"sheets":["واجهة حجز","قائمة","كشف الراتب","الشبكة الاستدلالية للمرتبات"],"not_rendered":{"charts":0,"images":0,"macros":1,"external_links":0,"defined_names":2,"comments":0,"pivot_tables":0},"unopened":[],"bounds":{"document_bytes":16777216,"sheet_cells":100000,"rows_first":2000,"rows_last":500,"rows_between":2000,"halvings":0,"cell_chars":16384,"cell_head_chars":4096},"cells_cut":0,"cells_raw":0,"read":"whole","date_system":"1900"}

{"sheet":"واجهة حجز","index":0,"n_rows":11,"n_cols":15,"rows_kept":11,"cut":false,"hidden":false,"merged":[[9,2,9,6],[10,2,10,6]]}
[]
["دون اسم المؤسسة:",null,"      المؤسسة : متوسطة بلطرش ثامر"]
["بلدية المؤسسة:",null,"عين الحجل",null,null,"أساتذة",1,"منحة الخبرة البيداغوجية","منحة تحفيزية تعويضية",null,"منحة السكن","منحة التأهيل","منحة نوعية للمنصب","منحة الدعم المدرسي","منحة التوثيق التربوي"]
["دون الشهر الموافق:",null,"فيفري 2018",null,null,"اداريين 1",2,"منحة التسيير المالي والمادي","منحة تحفيزية تعويضية",null,"منحة السكن","منحة التأهيل","منحة نوعية للمنصب","منحة الدعم المدرسي","منحة التوثيق التربوي"]
["المكان والتاريخ:",null,"عين الحجل في : ",{"$f":"TODAY()","v":"2018-02-21"},null,"اداريين 2",3,"منحة الخبرة البيداغوجية","منحة تحفيزية تعويضية","تعويض تسيير مؤسسة تعليمية","منحة السكن","منحة التأهيل","منحة نوعية للمنصب","منحة الدعم المدرسي","منحة التوثيق التربوي"]
["صفة الموقع:",null,"المسير المالي"]
[]
[]
[null,null,"ملاحظة هامة:"]
[null,null,"دون الرقم: 01 في خانة الأجر الوحيد واقتطاع التعاضدية إن وجدا"]
[null,null,"يتوافق مع نسخة 2010 فما فوق"]

{"sheet":"قائمة","index":1,"n_rows":583,"n_cols":27,"rows_kept":583,"cut":false,"hidden":false,"merged":[]}
["الرقم","اللقب والاسم","الرتبة","ح العائلية","ع \nالأولاد","<\n10","أ\nالوحيد","ت أ\n الوحيد","رقم الحساب","الصنف","الرقم إ الأدنى",null,"الرقم الاستدلالي","الدرجة",null,"الرقم إ للدرجات","م ت تعويضية","علاوة المنصب\nت ت م تعليمية","م التوثيق","م\n السكن","م التأهيل","م ن للمنصب","م د المدرسي",null,"إ \nالتعاضدية","إ \nالخدمات","إ \nأخرى"]
[1,"بن عامر حدة","أستاذ في التعليم المتوسط","متزوجة",null,null,null,null,"9223194/12",12,{"$f":"IF(J2=\"\",\"\",VLOOKUP(J2,'الشبكة الاستدلالية للمرتبات'!A:C,3,0))","v":537},{"$f":"MATCH(K2,'الشبكة الاستدلالية للمرتبات'!C2:C19,0)","v":13},{"$f":"K2+P2","v":537},null,{"$f":"MATCH(N2,'الشبكة الاستدلالية للمرتبات'!C2:P2,0)","v":2},{"$f":"INDEX('الشبكة الاستدلالية للمرتبات'!C2:P19,L2,O2)","v":0},{"$f":"VLOOKUP(J2,'الشبكة الاستدلالية للمرتبات'!R3:V19,5,0)","v":1500},null,{"$f":"VLOOKUP(J2,'الشبكة الاستدلالية للمرتبات'!R3:S19,2,0)","v":2500},{"$f":"VLOOKUP(J2,'الشبكة الاستدلالية للمرتبات'!R3:X19,7,0)","v":1000},{"$f":"VLOOKUP(J2,'الشبكة الاستدلالية للمرتبات'!R3:T19,3,0)","v":40},{"$f":"VLOOKUP(J2,'الشبكة الاستدلالية للمرتبات'!R3:U19,4,0)","v":10},{"$f":"VLOOKUP(J2,'الشبكة الاستدلالية للمرتبات'!R3:W19,6,0)","v":15}]
[2,"بوعافية خديجة","أستاذ في التعليم المتوسط","عازبة",null,null,null,null,"16354459/51",12,{"$f":"IF(J3=\"\",\"\",VLOOKUP(J3,'الشبكة الاستدلالية للمرتبات'!A:C,3,0))","v":537},{"$f":"MATCH(K3,'الشبكة الاستدلالية للمرتبات'!C2:C19,0)","v":13},537,null,{"$f":"MATCH(N3,'الشبكة الاستدلالية للمرتبات'!C2:P2,0)","v":2},{"$f":"INDEX('الشبكة الاستدلالية للمرتبات'!C2:P19,L3,O3)","v":0},{"$f":"VLOOKUP(J3,'الشبكة الاستدلالية للمرتبات'!R3:V19,5,0)","v":1500},null,{"$f":"VLOOKUP(J3,'الشبكة الاستدلالية للمرتبات'!R3:S19,2,0)","v":2500},{"$f":"VLOOKUP(J3,'الشبكة الاستدلالية للمرتبات'!R3:X19,7,0)","v":1000},{"$f":"VLOOKUP(J3,'الشبكة الاستدلالية للمرتبات'!R3:T19,3,0)","v":40},{"$f":"VLOOKUP(J3,'الشبكة الاستدلالية للمرتبات'!R3:U19,4,0)","v":10},{"$f":"VLOOKUP(J3,'الشبكة الاستدلالية للمرتبات'!R3:W19,6,0)","v":15}]
[3,"حرحوز عيسى","أستاذ التعليم الأساسي","متزوج",3,null,1,null,"2394609/19",11,{"$f":"IF(J4=\"\",\"\",VLOOKUP(J4,'الشبكة الاستدلالية للمرتبات'!A:C,3,0))","v":498},{"$f":"MATCH(K4,'الشبكة الاستدلالية للمرتبات'!C2:C19,0)","v":12},747,10,{"$f":"MATCH(N4,'الشبكة الاستدلالية للمرتبات'!C2:P2,0)","v":12},{"$f":"INDEX('الشبكة الاستدلالية للمرتبات'!C2:P19,L4,O4)","v":249},{"$f":"VLOOKUP(J4,'الشبكة الاستدلالية للمرتبات'!R3:V19,5,0)","v":1500},null,{"$f":"VLOOKUP(J4,'الشبكة الاستدلالية للمرتبات'!R3:S19,2,0)","v":2500},{"$f":"VLOOKUP(J4,'الشبكة الاستدلالية للمرتبات'!R3:X19,7,0)","v":0},{"$f":"VLOOKUP(J4,'الشبكة الاستدلالية للمرتبات'!R3:T19,3,0)","v":40},{"$f":"VLOOKUP(J4,'الشبكة الاستدلالية للمرتبات'!R3:U19,4,0)","v":0},{"$f":"VLOOKUP(J4,'الشبكة الاستدلالية للمرتبات'!R3:W19,6,0)","v":15}]
[4,"حرحوز لخضر","أستاذ رئيسي للتعليم المتوسط","متزوج",1,null,1,null,"6275828/59",13,{"$f":"IF(J5=\"\",\"\",VLOOKUP(J5,'الشبكة الاستدلالية للمرتبات'!A:C,3,0))","v":578},{"$f":"MATCH(K5,'الشبكة الاستدلالية للمرتبات'!C2:C19,0)","v":14},665,3,{"$f":"MATCH(N5,'الشبكة الاستدلالية للمرتبات'!C2:P2,0)","v":5},{"$f":"INDEX('الشبكة الاستدلالية للمرتبات'!C2:P19,L5,O5)","v":87},{"$f":"VLOOKUP(J5,'الشبكة الاستدلالية للمرتبات'!R3:V19,5,0)","v":1500},null,{"$f":"VLOOKUP(J5,'الشبكة الاستدلالية للمرتبات'!R3:S19,2,0)","v":3000},{"$f":"VLOOKUP(J5,'الشبكة الاستدلالية للمرتبات'!R3:X19,7,0)","v":1000},{"$f":"VLOOKUP(J5,'الشبكة الاستدلالية للمرتبات'!R3:T19,3,0)","v":45},{"$f":"VLOOKUP(J5,'الشبكة الاستدلالية للمرتبات'!R3:U19,4,0)","v":10},{"$f":"VLOOKUP(J5,'الشبكة الاستدلالية للمرتبات'!R3:W19,6,0)","v":15},null,1]
[5,"حرحوز نبيل","أستاذ في التعليم المتوسط","عازب",null,null,null,null,"11715250/64",12,{"$f":"IF(J6=\"\",\"\",VLOOKUP(J6,'الشبكة الاستدلالية للمرتبات'!A:C,3,0))","v":537},{"$f":"MATCH(K6,'الشبكة الاستدلالية للمرتبات'!C2:C19,0)","v":13},537,null,{"$f":"MATCH(N6,'الشبكة الاستدلالية للمرتبات'!C2:P2,0)","v":2},{"$f":"INDEX('الشبكة الاستدلالية للمرتبات'!C2:P19,L6,O6)","v":0},{"$f":"VLOOKUP(J6,'الشبكة الاستدلالية للمرتبات'!R3:V19,5,0)","v":1500},null,{"$f":"VLOOKUP(J6,'الشبكة الاستدلالية للمرتبات'!R3:S19,2,0)","v":2500},{"$f":"VLOOKUP(J6,'الشبكة الاستدلالية للمرتبات'!R3:X19,7,0)","v":1000},{"$f":"VLOOKUP(J6,'الشبكة الاستدلالية للمرتبات'!R3:T19,3,0)","v":40},{"$f":"VLOOKUP(J6,'الشبكة الاستدلالية للمرتبات'!R3:U19,4,0)","v":10},{"$f":"VLOOKUP(J6,'الشبكة الاستدلالية للمرتبات'!R3:W19,6,0)","v":15}]
[6,"خبال سعدية","أستاذ في التعليم المتوسط","متزوجة",2,null,1,null,"9388569/33",12,{"$f":"IF(J7=\"\",\"\",VLOOKUP(J7,'الشبكة الاستدلالية للمرتبات'!A:C,3,0))","v":537},{"$f":"MATCH(K7,'الشبكة الاستدلالية للمرتبات'!C2:C19,0)","v":13},591,2,{"$f":"MATCH(N7,'الشبكة الاستدلالية للمرتبات'!C2:P2,0)","v":4},{"$f":"INDEX('الشبكة الاستدلالية للمرتبات'!C2:P19,L7,O7)","v":54},{"$f":"VLOOKUP(J7,'الشبكة الاستدلالية للمرتبات'!R3:V19,5,0)","v":1500},null,{"$f":"VLOOKUP(J7,'الشبكة الاستدلالية للمرتبات'!R3:S19,2,0)","v":2500},{"$f":"VLOOKUP(J7,'الشبكة الاستدلالية للمرتبات'!R3:X19,7,0)","v":1000},{"$f":"VLOOKUP(J7,'الشبكة الاستدلالية للمرتبات'!R3:T19,3,0)","v":40},{"$f":"VLOOKUP(J7,'الشبكة الاستدلالية للمرتبات'!R3:U19,4,0)","v":10},{"$f":"VLOOKUP(J7,'الشبكة الاستدلالية للمرتبات'!R3:W19,6,0)","v":15}]
[7,"دبوسي نوال","أستاذ في التعليم المتوسط","عازبة",null,null,null,null,"6162574/12",12,{"$f":"IF(J8=\"\",\"\",VLOOKUP(J8,'الشبكة الاستدلالية للمرتبات'!A:C,3,0))","v":537},{"$f":"MATCH(K8,'الشبكة الاستدلالية للمرتبات'!C2:C19,0)","v":13},537,null,{"$f":"MATCH(N8,'الشبكة الاستدلالية للمرتبات'!C2:P2,0)","v":2},{"$f":"INDEX('الشبكة الاستدلالية للمرتبات'!C2:P19,L8,O8)","v":0},{"$f":"VLOOKUP(J8,'الشبكة الاستدلالية للمرتبات'!R3:V19,5,0)","v":1500},null,{"$f":"VLOOKUP(J8,'الشبكة الاستدلالية للمرتبات'!R3:S19,2,0)","v":2500},{"$f":"VLOOKUP(J8,'الشبكة الاستدلالية للمرتبات'!R3:X19,7,0)","v":1000},{"$f":"VLOOKUP(J8,'الشبكة الاستدلالية للمرتبات'!R3:T19,3,0)","v":40},{"$f":"VLOOKUP(J8,'الشبكة الاستدلالية للمرتبات'!R3:U19,4,0)","v":10},{"$f":"VLOOKUP(J8,'الشبكة الاستدلالية للمرتبات'!R3:W19,6,0)","v":15},null,1]
[8,"دوسن فطيمة زهرة","أستاذ في التعليم المتوسط","عازبة",null,null,null,null,"9391377/77",12,{"$f":"IF(J9=\"\",\"\",VLOOKUP(J9,'الشبكة الاستدلالية للمرتبات'!A:C,3,0))","v":537},{"$f":"MATCH(K9,'الشبكة الاستدلالية للمرتبات'!C2:C19,0)","v":13},564,1,{"$f":"MATCH(N9,'الشبكة الاستدلالية للمرتبات'!C2:P2,0)","v":3},{"$f":"INDEX('الشبكة الاستدلالية للمرتبات'!C2:P19,L9,O9)","v":27},{"$f":"VLOOKUP(J9,'الشبكة الاستدلالية للمرتبات'!R3:V19,5,0)","v":1500},null,{"$f":"VLOOKUP(J9,'الشبكة الاستدلالية للمرتبات'!R3:S19,2,0)","v":2500},{"$f":"VLOOKUP(J9,'الشبكة الاستدلالية للمرتبات'!R3:X19,7,0)","v":1000},{"$f":"VLOOKUP(J9,'الشبكة الاستدلالية للمرتبات'!R3:T19,3,0)","v":40},{"$f":"VLOOKUP(J9,'الشبكة الاستدلالية للمرتبات'!R3:U19,4,0)","v":10},{"$f":"VLOOKUP(J9,'الشبكة الاستدلالية للمرتبات'!R3:W19,6,0)","v":15}]
[9,"زايدي صخرية","أستاذ في التعليم المتوسط","متزوجة",null,null,null,null,"6400605/52",12,{"$f":"IF(J10=\"\",\"\",VLOOKUP(J10,'الشبكة الاستدلالية للمرتبات'!A:C,3,0))","v":537},{"$f":"MATCH(K10,'الشبكة الاستدلالية للمرتبات'!C2:C19,0)","v":13},591,2,{"$f":"MATCH(N10,'الشبكة الاستدلالية للمرتبات'!C2:P2,0)","v":4},{"$f":"INDEX('الشبكة الاستدلالية للمرتبات'!C2:P19,L10,O10)","v":54},{"$f":"VLOOKUP(J10,'الشبكة الاستدلالية للمرتبات'!R3:V19,5,0)","v":1500},null,{"$f":"VLOOKUP(J10,'الشبكة الاستدلالية للمرتبات'!R3:S19,2,0)","v":2500},{"$f":"VLOOKUP(J10,'الشبكة الاستدلالية للمرتبات'!R3:X19,7,0)","v":1000},{"$f":"VLOOKUP(J10,'الشبكة الاستدلالية للمرتبات'!R3:T19,3,0)","v":40},{"$f":"VLOOKUP(J10,'الشبكة الاستدلالية للمرتبات'!R3:U19,4,0)","v":10},{"$f":"VLOOKUP(J10,'الشبكة الاستدلالية للمرتبات'!R3:W19,6,0)","v":15}]
[10,"زيان لويزة","أستاذ في التعليم المتوسط","عازبة",null,null,null,null,"9878267/44",12,{"$f":"IF(J11=\"\",\"\",VLOOKUP(J11,'الشبكة الاستدلالية للمرتبات'!A:C,3,0))","v":537},{"$f":"MATCH(K11,'الشبكة الاستدلالية للمرتبات'!C2:C19,0)","v":13},564,1,{"$f":"MATCH(N11,'الشبكة الاستدلالية للمرتبات'!C2:P2,0)","v":3},{"$f":"INDEX('الشبكة الاستدلالية للمرتبات'!C2:P19,L11,O11)","v":27},{"$f":"VLOOKUP(J11,'الشبكة الاستدلالية للمرتبات'!R3:V19,5,0)","v":1500},null,{"$f":"VLOOKUP(J11,'الشبكة الاستدلالية للمرتبات'!R3:S19,2,0)","v":2500},{"$f":"VLOOKUP(J11,'الشبكة الاستدلالية للمرتبات'!R3:X19,7,0)","v":1000},{"$f":"VLOOKUP(J11,'الشبكة الاستدلالية للمرتبات'!R3:T19,3,0)","v":40},{"$f":"VLOOKUP(J11,'الشبكة الاستدلالية للمرتبات'!R3:U19,4,0)","v":10},{"$f":"VLOOKUP(J11,'الشبكة الاستدلالية للمرتبات'!R3:W19,6,0)","v":15}]
[11,"زيواش محمد","أستاذ مكون للتعليم المتوسط","متزوج",4,null,null,null,"6160522/65",15,{"$f":"IF(J12=\"\",\"\",VLOOKUP(J12,'الشبكة الاستدلالية للمرتبات'!A:C,3,0))","v":666},{"$f":"MATCH(K12,'الشبكة الاستدلالية للمرتبات'!C2:C19,0)","v":16},833,5,{"$f":"MATCH(N12,'الشبكة الاستدلالية للمرتبات'!C2:P2,0)","v":7},{"$f":"INDEX('الشبكة الاستدلالية للمرتبات'!C2:P19,L12,O12)","v":167},{"$f":"VLOOKUP(J12,'الشبكة الاستدلالية للمرتبات'!R3:V19,5,0)","v":1500},null,{"$f":"VLOOKUP(J12,'الشبكة الاستدلالية للمرتبات'!R3:S19,2,0)","v":3000},{"$f":"VLOOKUP(J12,'الشبكة الاستدلالية للمرتبات'!R3:X19,7,0)","v":1000},{"$f":"VLOOKUP(J12,'الشبكة الاستدلالية للمرتبات'!R3:T19,3,0)","v":45},{"$f":"VLOOKUP(J12,'الشبكة الاستدلالية للمرتبات'!R3:U19,4,0)","v":10},{"$f":"VLOOKUP(J12,'الشبكة الاستدلالية للمرتبات'!R3:W19,6,0)","v":15}]
[12,"سعداوي بلخير","أستاذ مكون للتعليم المتوسط","متزوج",1,1,1,null,"2117517/49",15,{"$f":"IF(J13=\"\",\"\",VLOOKUP(J13,'الشبكة الاستدلالية للمرتبات'!A:C,3,0))","v":666},{"$f":"MATCH(K13,'الشبكة الاستدلالية للمرتبات'!C2:C19,0)","v":16},999,10,{"$f":"MATCH(N13,'الشبكة الاستدلالية للمرتبات'!C2:P2,0)","v":12},{"$f":"INDEX('الشبكة الاستدلالية للمرتبات'!C2:P19,L13,O13)","v":333},{"$f":"VLOOKUP(J13,'الشبكة الاستدلالية للمرتبات'!R3:V19,5,0)","v":1500},null,{"$f":"VLOOKUP(J13,'الشبكة الاستدلالية للمرتبات'!R3:S19,2,0)","v":3000},{"$f":"VLOOKUP(J13,'الشبكة الاستدلالية للمرتبات'!R3:X19,7,0)","v":1000},{"$f":"VLOOKUP(J13,'الشبكة الاستدلالية للمرتبات'!R3:T19,3,0)","v":45},{"$f":"VLOOKUP(J13,'الشبكة الاستدلالية للمرتبات'!R3:U19,4,0)","v":10},{"$f":"VLOOKUP(J13,'الشبكة الاستدلالية للمرتبات'!R3:W19,6,0)","v":15},null,1]
[13,"سويب سميرة","أستاذ رئيسي للتعليم المتوسط","متزوجة",null,null,null,null,"1643787/27",13,{"$f":"IF(J14=\"\",\"\",VLOOKUP(J14,'الشبكة الاستدلالية للمرتبات'!A:C,3,0))","v":578},{"$f":"MATCH(K14,'الشبكة الاستدلالية للمرتبات'!C2:C19,0)","v":14},751,6,{"$f":"MATCH(N14,'الشبكة الاستدلالية للمرتبات'!C2:P2,0)","v":8},{"$f":"INDEX('الشبكة الاستدلالية للمرتبات'!C2:P19,L14,O14)","v":173},{"$f":"VLOOKUP(J14,'الشبكة الاستدلالية للمرتبات'!R3:V19,5,0)","v":1500},null,{"$f":"VLOOKUP(J14,'الشبكة الاستدلالية للمرتبات'!R3:S19,2,0)","v":3000},{"$f":"VLOOKUP(J14,'الشبكة الاستدلالية للمرتبات'!R3:X19,7,0)","v":1000},{"$f":"VLOOKUP(J14,'الشبكة الاستدلالية للمرتبات'!R3:T19,3,0)","v":45},{"$f":"VLOOKUP(J14,'الشبكة الاستدلالية للمرتبات'!R3:U19,4,0)","v":10},{"$f":"VLOOKUP(J14,'الشبكة الاستدلالية للمرتبات'!R3:W19,6,0)","v":15},null,1]
[14,"شريفي ليندة","أستاذ في التعليم المتوسط","متزوجة",null,null,null,null,"14742197/39",12,{"$f":"IF(J15=\"\",\"\",VLOOKUP(J15,'الشبكة الاستدلالية للمرتبات'!A:C,3,0))","v":537},{"$f":"MATCH(K15,'الشبكة الاستدلالية للمرتبات'!C2:C19,0)","v":13},537,null,{"$f":"MATCH(N15,'الشبكة الاستدلالية للمرتبات'!C2:P2,0)","v":2},{"$f":"INDEX('الشبكة الاستدلالية للمرتبات'!C2:P19,L15,O15)","v":0},{"$f":"VLOOKUP(J15,'الشبكة الاستدلالية للمرتبات'!R3:V19,5,0)","v":1500},null,{"$f":"VLOOKUP(J15,'الشبكة الاستدلالية للمرتبات'!R3:S19,2,0)","v":2500},{"$f":"VLOOKUP(J15,'الشبكة الاستدلالية للمرتبات'!R3:X19,7,0)","v":1000},{"$f":"VLOOKUP(J15,'الشبكة الاستدلالية للمرتبات'!R3:T19,3,0)","v":40},{"$f":"VLOOKUP(J15,'الشبكة الاستدلالية للمرتبات'!R3:U19,4,0)","v":10},{"$f":"VLOOKUP(J15,'الشبكة الاستدلالية للمرتبات'!R3:W19,6,0)","v":15},null,1]
[15,"فايد عائشة","أستاذ في التعليم المتوسط","متزوجة",null,null,null,null,"9802485/60",12,{"$f":"IF(J16=\"\",\"\",VLOOKUP(J16,'الشبكة الاستدلالية للمرتبات'!A:C,3,0))","v":537},{"$f":"MATCH(K16,'الشبكة الاستدلالية للمرتبات'!C2:C19,0)","v":13},564,1,{"$f":"MATCH(N16,'الشبكة الاستدلالية للمرتبات'!C2:P2,0)","v":3},{"$f":"INDEX('الشبكة الاستدلالية للمرتبات'!C2:P19,L16,O16)","v":27},{"$f":"VLOOKUP(J16,'الشبكة الاستدلالية للمرتبات'!R3:V19,5,0)","v":1500},null,{"$f":"VLOOKUP(J16,'الشبكة الاستدلالية للمرتبات'!R3:S19,2,0)","v":2500},{"$f":"VLOOKUP(J16,'الشبكة الاستدلالية للمرتبات'!R3:X19,7,0)","v":1000},{"$f":"VLOOKUP(J16,'الشبكة الاستدلالية للمرتبات'!R3:T19,3,0)","v":40},{"$f":"VLOOKUP(J16,'الشبكة الاستدلالية للمرتبات'!R3:U19,4,0)","v":10},{"$f":"VLOOKUP(J16,'الشبكة الاستدلالية للمرتبات'!R3:W19,6,0)","v":15}]
[16,"قاقي عبد الكريم","أستاذ في التعليم المتوسط","عازب",null,null,null,null,"9388228/91",12,{"$f":"IF(J17=\"\",\"\",VLOOKUP(J17,'الشبكة الاستدلالية للمرتبات'!A:C,3,0))","v":537},{"$f":"MATCH(K17,'الشبكة الاستدلالية للمرتبات'!C2:C19,0)","v":13},537,null,{"$f":"MATCH(N17,'الشبكة الاستدلالية للمرتبات'!C2:P2,0)","v":2},{"$f":"INDEX('الشبكة الاستدلالية للمرتبات'!C2:P19,L17,O17)","v":0},{"$f":"VLOOKUP(J17,'الشبكة الاستدلالية للمرتبات'!R3:V19,5,0)","v":1500},null,{"$f":"VLOOKUP(J17,'الشبكة الاستدلالية للمرتبات'!R3:S19,2,0)","v":2500},{"$f":"VLOOKUP(J17,'الشبكة الاستدلالية للمرتبات'!R3:X19,7,0)","v":1000},{"$f":"VLOOKUP(J17,'الشبكة الاستدلالية للمرتبات'!R3:T19,3,0)","v":40},{"$f":"VLOOKUP(J17,'الشبكة الاستدلالية للمرتبات'!R3:U19,4,0)","v":10},{"$f":"VLOOKUP(J17,'الشبكة الاستدلالية للمرتبات'!R3:W19,6,0)","v":15}]
[17,"قانة مريم","أستاذ في التعليم المتوسط","عازبة",null,null,null,null,"17553365/55",12,{"$f":"IF(J18=\"\",\"\",VLOOKUP(J18,'الشبكة الاستدلالية للمرتبات'!A:C,3,0))","v":537},{"$f":"MATCH(K18,'الشبكة الاستدلالية للمرتبات'!C2:C19,0)","v":13},537,null,{"$f":"MATCH(N18,'الشبكة الاستدلالية للمرتبات'!C2:P2,0)","v":2},{"$f":"INDEX('الشبكة الاستدلالية للمرتبات'!C2:P19,L18,O18)","v":0},{"$f":"VLOOKUP(J18,'الشبكة الاستدلالية للمرتبات'!R3:V19,5,0)","v":1500},null,{"$f":"VLOOKUP(J18,'الشبكة الاستدلالية للمرتبات'!R3:S19,2,0)","v":2500},{"$f":"VLOOKUP(J18,'الشبكة الاستدلالية للمرتبات'!R3:X19,7,0)","v":1000},{"$f":"VLOOKUP(J18,'الشبكة الاستدلالية للمرتبات'!R3:T19,3,0)","v":40},{"$f":"VLOOKUP(J18,'الشبكة الاستدلالية للمرتبات'!R3:U19,4,0)","v":10},{"$f":"VLOOKUP(J18,'الشبكة الاستدلالية للمرتبات'!R3:W19,6,0)","v":15}]
[18,"لباشي محمد","أستاذ رئيسي للتعليم المتوسط","متزوج",3,null,1,null,"6274485/46",13,{"$f":"IF(J19=\"\",\"\",VLOOKUP(J19,'الشبكة الاستدلالية للمرتبات'!A:C,3,0))","v":578},{"$f":"MATCH(K19,'الشبكة الاستدلالية للمرتبات'!C2:C19,0)","v":14},665,3,{"$f":"MATCH(N19,'الشبكة الاستدلالية للمرتبات'!C2:P2,0)","v":5},{"$f":"INDEX('الشبكة الاستدلالية للمرتبات'!C2:P19,L19,O19)","v":87},{"$f":"VLOOKUP(J19,'الشبكة الاستدلالية للمرتبات'!R3:V19,5,0)","v":1500},null,{"$f":"VLOOKUP(J19,'الشبكة الاستدلالية للمرتبات'!R3:S19,2,0)","v":3000},{"$f":"VLOOKUP(J19,'الشبكة الاستدلالية للمرتبات'!R3:X19,7,0)","v":1000},{"$f":"VLOOKUP(J19,'الشبكة الاستدلالية للمرتبات'!R3:T19,3,0)","v":45},{"$f":"VLOOKUP(J19,'الشبكة الاستدلالية للمرتبات'!R3:U19,4,0)","v":10},{"$f":"VLOOKUP(J19,'الشبكة الاستدلالية للمرتبات'!R3:W19,6,0)","v":15}]
[19,"لبزة يمينة","أستاذ في التعليم المتوسط","متزوجة",null,null,null,null,"9398669/47",12,{"$f":"IF(J20=\"\",\"\",VLOOKUP(J20,'الشبكة الاستدلالية للمرتبات'!A:C,3,0))","v":537},{"$f":"MATCH(K20,'الشبكة الاستدلالية للمرتبات'!C2:C19,0)","v":13},591,2,{"$f":"MATCH(N20,'الشبكة الاستدلالية للمرتبات'!C2:P2,0)","v":4},{"$f":"INDEX('الشبكة الاستدلالية للمرتبات'!C2:P19,L20,O20)","v":54},{"$f":"VLOOKUP(J20,'الشبكة الاستدلالية للمرتبات'!R3:V19,5,0)","v":1500},null,{"$f":"VLOOKUP(J20,'الشبكة الاستدلالية للمرتبات'!R3:S19,2,0)","v":2500},{"$f":"VLOOKUP(J20,'الشبكة الاستدلالية للمرتبات'!R3:X19,7,0)","v":1000},{"$f":"VLOOKUP(J20,'الشبكة الاستدلالية للمرتبات'!R3:T19,3,0)","v":40},{"$f":"VLOOKUP(J20,'الشبكة الاستدلالية للمرتبات'!R3:U19,4,0)","v":10},{"$f":"VLOOKUP(J20,'الشبكة الاستدلالية للمرتبات'!R3:W19,6,0)","v":15}]
[20,"لعيفاوي عبد الرزاق","أستاذ مكون للتعليم المتوسط","متزوج",4,null,null,null,"08923/32",15,{"$f":"IF(J21=\"\",\"\",VLOOKUP(J21,'الشبكة الاستدلالية للمرتبات'!A:C,3,0))","v":666},{"$f":"MATCH(K21,'الشبكة الاستدلالية للمرتبات'!C2:C19,0)","v":16},833,5,{"$f":"MATCH(N21,'الشبكة الاستدلالية للمرتبات'!C2:P2,0)","v":7},{"$f":"INDEX('الشبكة الاستدلالية للمرتبات'!C2:P19,L21,O21)","v":167},{"$f":"VLOOKUP(J21,'الشبكة الاستدلالية للمرتبات'!R3:V19,5,0)","v":1500},null,{"$f":"VLOOKUP(J21,'الشبكة الاستدلالية للمرتبات'!R3:S19,2,0)","v":3000},{"$f":"VLOOKUP(J21,'الشبكة الاستدلالية للمرتبات'!R3:X19,7,0)","v":1000},{"$f":"VLOOKUP(J21,'الشبكة الاستدلالية للمرتبات'!R3:T19,3,0)","v":45},{"$f":"VLOOKUP(J21,'الشبكة الاستدلالية للمرتبات'!R3:U19,4,0)","v":10},{"$f":"VLOOKUP(J21,'الشبكة الاستدلالية للمرتبات'!R3:W19,6,0)","v":15}]
[21,"منصور سميحة","أستاذ في التعليم المتوسط","عازبة",null,null,null,null,"10519992/34",12,{"$f":"IF(J22=\"\",\"\",VLOOKUP(J22,'الشبكة الاستدلالية للمرتبات'!A:C,3,0))","v":537},{"$f":"MATCH(K22,'الشبكة الاستدلالية للمرتبات'!C2:C19,0)","v":13},537,null,{"$f":"MATCH(N22,'الشبكة الاستدلالية للمرتبات'!C2:P2,0)","v":2},{"$f":"INDEX('الشبكة الاستدلالية للمرتبات'!C2:P19,L22,O22)","v":0},{"$f":"VLOOKUP(J22,'الشبكة الاستدلالية للمرتبات'!R3:V19,5,0)","v":1500},null,{"$f":"VLOOKUP(J22,'الشبكة الاستدلالية للمرتبات'!R3:S19,2,0)","v":2500},{"$f":"VLOOKUP(J22,'الشبكة الاستدلالية للمرتبات'!R3:X19,7,0)","v":1000},{"$f":"VLOOKUP(J22,'الشبكة الاستدلالية للمرتبات'!R3:T19,3,0)","v":40},{"$f":"VLOOKUP(J22,'الشبكة الاستدلالية للمرتبات'!R3:U19,4,0)","v":10},{"$f":"VLOOKUP(J22,'الشبكة الاستدلالية للمرتبات'!R3:W19,6,0)","v":15}]
[22,"معمري شيماء","أستاذ في التعليم المتوسط","عازبة",null,null,null,null,"17529112/24",12,{"$f":"IF(J23=\"\",\"\",VLOOKUP(J23,'الشبكة الاستدلالية للمرتبات'!A:C,3,0))","v":537},{"$f":"MATCH(K23,'الشبكة الاستدلالية للمرتبات'!C2:C19,0)","v":13},537,null,{"$f":"MATCH(N23,'الشبكة الاستدلالية للمرتبات'!C2:P2,0)","v":2},{"$f":"INDEX('الشبكة الاستدلالية للمرتبات'!C2:P19,L23,O23)","v":0},{"$f":"VLOOKUP(J23,'الشبكة الاستدلالية للمرتبات'!R3:V19,5,0)","v":1500},null,{"$f":"VLOOKUP(J23,'الشبكة الاستدلالية للمرتبات'!R3:S19,2,0)","v":2500},{"$f":"VLOOKUP(J23,'الشبكة الاستدلالية للمرتبات'!R3:X19,7,0)","v":1000},{"$f":"VLOOKUP(J23,'الشبكة الاستدلالية للمرتبات'!R3:T19,3,0)","v":40},{"$f":"VLOOKUP(J23,'الشبكة الاستدلالية للمرتبات'!R3:U19,4,0)","v":10},{"$f":"VLOOKUP(J23,'الشبكة الاستدلالية للمرتبات'!R3:W19,6,0)","v":15}]
[23,null,null,null,null,null,null,null,null,null,{"$f":"IF(J24=\"\",\"\",VLOOKUP(J24,'الشبكة الاستدلالية للمرتبات'!A:C,3,0))","v":""},{"$f":"MATCH(K24,'الشبكة الاستدلالية للمرتبات'!C2:C19,0)","v":{"$error":"#N/A"}},{"$error":"#VALUE!"},null,{"$f":"MATCH(N24,'الشبكة الاستدلالية للمرتبات'!C2:P2,0)","v":2},{"$f":"INDEX('الشبكة الاستدلالية للمرتبات'!C2:P19,L24,O24)","v":{"$error":"#N/A"}},{"$f":"VLOOKUP(J24,'الشبكة الاستدلالية للمرتبات'!R3:V19,5,0)","v":{"$error":"#N/A"}},null,{"$f":"VLOOKUP(J24,'الشبكة الاستدلالية للمرتبات'!R3:S19,2,0)","v":{"$error":"#N/A"}},{"$f":"VLOOKUP(J24,'الشبكة الاستدلالية للمرتبات'!R3:X19,7,0)","v":{"$error":"#N/A"}},{"$f":"VLOOKUP(J24,'الشبكة الاستدلالية للمرتبات'!R3:T19,3,0)","v":{"$error":"#N/A"}},{"$f":"VLOOKUP(J24,'الشبكة الاستدلالية للمرتبات'!R3:U19,4,0)","v":{"$error":"#N/A"}},{"$f":"VLOOKUP(J24,'الشبكة الاستدلالية للمرتبات'!R3:W19,6,0)","v":{"$error":"#N/A"}}]
[24,null,null,null,null,null,null,null,null,null,{"$f":"IF(J25=\"\",\"\",VLOOKUP(J25,'الشبكة الاستدلالية للمرتبات'!A:C,3,0))","v":""},{"$f":"MATCH(K25,'الشبكة الاستدلالية للمرتبات'!C2:C19,0)","v":{"$error":"#N/A"}},{"$error":"#VALUE!"},null,{"$f":"MATCH(N25,'الشبكة الاستدلالية للمرتبات'!C2:P2,0)","v":2},{"$f":"INDEX('الشبكة الاستدلالية للمرتبات'!C2:P19,L25,O25)","v":{"$error":"#N/A"}},{"$f":"VLOOKUP(J25,'الشبكة الاستدلالية للمرتبات'!R3:V19,5,0)","v":{"$error":"#N/A"}},null,{"$f":"VLOOKUP(J25,'الشبكة الاستدلالية للمرتبات'!R3:S19,2,0)","v":{"$error":"#N/A"}},{"$f":"VLOOKUP(J25,'الشبكة الاستدلالية للمرتبات'!R3:X19,7,0)","v":{"$error":"#N/A"}},{"$f":"VLOOKUP(J25,'الشبكة الاستدلالية للمرتبات'!R3:T19,3,0)","v":{"$error":"#N/A"}},{"$f":"VLOOKUP(J25,'الشبكة الاستدلالية للمرتبات'!R3:U19,4,0)","v":{"$error":"#N/A"}},{"$f":"VLOOKUP(J25,'الشبكة الاستدلالية للمرتبات'!R3:W19,6,0)","v":{"$error":"#N/A"}}]
[25,null,null,null,null,null,null,null,null,null,{"$f":"IF(J26=\"\",\"\",VLOOKUP(J26,'الشبكة الاستدلالية للمرتبات'!A:C,3,0))","v":""},{"$f":"MATCH(K26,'الشبكة الاستدلالية للمرتبات'!C2:C19,0)","v":{"$error":"#N/A"}},{"$error":"#VALUE!"},null,{"$f":"MATCH(N26,'الشبكة الاستدلالية للمرتبات'!C2:P2,0)","v":2},{"$f":"INDEX('الشبكة الاستدلالية للمرتبات'!C2:P19,L26,O26)","v":{"$error":"#N/A"}},{"$f":"VLOOKUP(J26,'الشبكة الاستدلالية للمرتبات'!R3:V19,5,0)","v":{"$error":"#N/A"}},null,{"$f":"VLOOKUP(J26,'الشبكة الاستدلالية للمرتبات'!R3:S19,2,0)","v":{"$error":"#N/A"}},{"$f":"VLOOKUP(J26,'الشبكة الاستدلالية للمرتبات'!R3:X19,7,0)","v":{"$error":"#N/A"}},{"$f":"VLOOKUP(J26,'الشبكة الاستدلالية للمرتبات'!R3:T19,3,0)","v":{"$error":"#N/A"}},{"$f":"VLOOKUP(J26,'الشبكة الاستدلالية للمرتبات'!R3:U19,4,0)","v":{"$error":"#N/A"}},{"$f":"VLOOKUP(J26,'الشبكة الاستدلالية للمرتبات'!R3:W19,6,0)","v":{"$error":"#N/A"}}]
[26,null,null,null,null,null,null,null,null,null,{"$f":"IF(J27=\"\",\"\",VLOOKUP(J27,'الشبكة الاستدلالية للمرتبات'!A:C,3,0))","v":""},{"$f":"MATCH(K27,'الشبكة الاستدلالية للمرتبات'!C2:C19,0)","v":{"$error":"#N/A"}},{"$error":"#VALUE!"},null,{"$f":"MATCH(N27,'الشبكة الاستدلالية للمرتبات'!C2:P2,0)","v":2},{"$f":"INDEX('الشبكة الاستدلالية للمرتبات'!C2:P19,L27,O27)","v":{"$error":"#N/A"}},{"$f":"VLOOKUP(J27,'الشبكة الاستدلالية للمرتبات'!R3:V19,5,0)","v":{"$error":"#N/A"}},null,{"$f":"VLOOKUP(J27,'الشبكة الاستدلالية للمرتبات'!R3:S19,2,0)","v":{"$error":"#N/A"}},{"$f":"VLOOKUP(J27,'الشبكة الاستدلالية للمرتبات'!R3:X19,7,0)","v":{"$error":"#N/A"}},{"$f":"VLOOKUP(J27,'الشبكة الاستدلالية للمرتبات'!R3:T19,3,0)","v":{"$error":"#N/A"}},{"$f":"VLOOKUP(J27,'الشبكة الاستدلالية للمرتبات'!R3:U19,4,0)","v":{"$error":"#N/A"}},{"$f":"VLOOKUP(J27,'الشبكة الاستدلالية للمرتبات'!R3:W19,6,0)","v":{"$error":"#N/A"}}]
[27,null,null,null,null,null,null,null,null,null,{"$f":"IF(J28=\"\",\"\",VLOOKUP(J28,'الشبكة الاستدلالية للمرتبات'!A:C,3,0))","v":""},{"$f":"MATCH(K28,'الشبكة الاستدلالية للمرتبات'!C2:C19,0)","v":{"$error":"#N/A"}},{"$error":"#VALUE!"},null,{"$f":"MATCH(N28,'الشبكة الاستدلالية للمرتبات'!C2:P2,0)","v":2},{"$f":"INDEX('الشبكة الاستدلالية للمرتبات'!C2:P19,L28,O28)","v":{"$error":"#N/A"}},{"$f":"VLOOKUP(J28,'الشبكة الاستدلالية للمرتبات'!R3:V19,5,0)","v":{"$error":"#N/A"}},null,{"$f":"VLOOKUP(J28,'الشبكة الاستدلالية للمرتبات'!R3:S19,2,0)","v":{"$error":"#N/A"}},{"$f":"VLOOKUP(J28,'الشبكة الاستدلالية للمرتبات'!R3:X19,7,0)","v":{"$error":"#N/A"}},{"$f":"VLOOKUP(J28,'الشبكة الاستدلالية للمرتبات'!R3:T19,3,0)","v":{"$error":"#N/A"}},{"$f":"VLOOKUP(J28,'الشبكة الاستدلالية للمرتبات'!R3:U19,4,0)","v":{"$error":"#N/A"}},{"$f":"VLOOKUP(J28,'الشبكة الاستدلالية للمرتبات'!R3:W19,6,0)","v":{"$error":"#N/A"}}]
[28,null,null,null,null,null,null,null,null,null,{"$f":"IF(J29=\"\",\"\",VLOOKUP(J29,'الشبكة الاستدلالية للمرتبات'!A:C,3,0))","v":""},{"$f":"MATCH(K29,'الشبكة الاستدلالية للمرتبات'!C2:C19,0)","v":{"$error":"#N/A"}},{"$error":"#VALUE!"},null,{"$f":"MATCH(N29,'الشبكة الاستدلالية للمرتبات'!C2:P2,0)","v":2},{"$f":"INDEX('الشبكة الاستدلالية للمرتبات'!C2:P19,L29,O29)","v":{"$error":"#N/A"}},{"$f":"VLOOKUP(J29,'الشبكة الاستدلالية للمرتبات'!R3:V19,5,0)","v":{"$error":"#N/A"}},null,{"$f":"VLOOKUP(J29,'الشبكة الاستدلالية للمرتبات'!R3:S19,2,0)","v":{"$error":"#N/A"}},{"$f":"VLOOKUP(J29,'الشبكة الاستدلالية للمرتبات'!R3:X19,7,0)","v":{"$error":"#N/A"}},{"$f":"VLOOKUP(J29,'الشبكة الاستدلالية للمرتبات'!R3:T19,3,0)","v":{"$error":"#N/A"}},{"$f":"VLOOKUP(J29,'الشبكة الاستدلالية للمرتبات'!R3:U19,4,0)","v":{"$error":"#N/A"}},{"$f":"VLOOKUP(J29,'الشبكة الاستدلالية للمرتبات'!R3:W19,6,0)","v":{"$error":"#N/A"}}]
[29,null,null,null,null,null,null,null,null,null,{"$f":"IF(J30=\"\",\"\",VLOOKUP(J30,'الشبكة الاستدلالية للمرتبات'!A:C,3,0))","v":""},{"$f":"MATCH(K30,'الشبكة الاستدلالية للمرتبات'!C2:C19,0)","v":{"$error":"#N/A"}},{"$error":"#VALUE!"},null,{"$f":"MATCH(N30,'الشبكة الاستدلالية للمرتبات'!C2:P2,0)","v":2},{"$f":"INDEX('الشبكة الاستدلالية للمرتبات'!C2:P19,L30,O30)","v":{"$error":"#N/A"}},{"$f":"VLOOKUP(J30,'الشبكة الاستدلالية للمرتبات'!R3:V19,5,0)","v":{"$error":"#N/A"}},null,{"$f":"VLOOKUP(J30,'الشبكة الاستدلالية للمرتبات'!R3:S19,2,0)","v":{"$error":"#N/A"}},{"$f":"VLOOKUP(J30,'الشبكة الاستدلالية للمرتبات'!R3:X19,7,0)","v":{"$error":"#N/A"}},{"$f":"VLOOKUP(J30,'الشبكة الاستدلالية للمرتبات'!R3:T19,3,0)","v":{"$error":"#N/A"}},{"$f":"VLOOKUP(J30,'الشبكة الاستدلالية للمرتبات'!R3:U19,4,0)","v":{"$error":"#N/A"}},{"$f":"VLOOKUP(J30,'الشبكة الاستدلالية للمرتبات'!R3:W19,6,0)","v":{"$error":"#N/A"}}]
[30,null,null,null,null,null,null,null,null,null,{"$f":"IF(J31=\"\",\"\",VLOOKUP(J31,'الشبكة الاستدلالية للمرتبات'!A:C,3,0))","v":""},{"$f":"MATCH(K31,'الشبكة الاستدلالية للمرتبات'!C2:C19,0)","v":{"$error":"#N/A"}},{"$error":"#VALUE!"},null,{"$f":"MATCH(N31,'الشبكة الاستدلالية للمرتبات'!C2:P2,0)","v":2},{"$f":"INDEX('الشبكة الاستدلالية للمرتبات'!C2:P19,L31,O31)","v":{"$error":"#N/A"}},{"$f":"VLOOKUP(J31,'الشبكة الاستدلالية للمرتبات'!R3:V19,5,0)","v":{"$error":"#N/A"}},null,{"$f":"VLOOKUP(J31,'الشبكة الاستدلالية للمرتبات'!R3:S19,2,0)","v":{"$error":"#N/A"}},{"$f":"VLOOKUP(J31,'الشبكة الاستدلالية للمرتبات'!R3:X19,7,0)","v":{"$error":"#N/A"}},{"$f":"VLOOKUP(J31,'الشبكة الاستدلالية للمرتبات'!R3:T19,3,0)","v":{"$error":"#N/A"}},{"$f":"VLOOKUP(J31,'الشبكة الاستدلالية للمرتبات'!R3:U19,4,0)","v":{"$error":"#N/A"}},{"$f":"VLOOKUP(J31,'الشبكة الاستدلالية للمرتبات'!R3:W19,6,0)","v":{"$error":"#N/A"}}]
[31,"بغدادي وسيلة","أستاذ المدرسة الابتدائية","عازبة",null,null,null,null,"6567734/75",11,{"$f":"IF(J32=\"\",\"\",VLOOKUP(J32,'الشبكة الاستدلالية للمرتبات'!A:C,3,0))","v":498},{"$f":"MATCH(K32,'الشبكة الاستدلالية للمرتبات'!C2:C19,0)","v":12},498,null,{"$f":"MATCH(N32,'الشبكة الاستدلالية للمرتبات'!C2:P2,0)","v":2},{"$f":"INDEX('الشبكة الاستدلالية للمرتبات'!C2:P19,L32,O32)","v":0},{"$f":"VLOOKUP(J32,'الشبكة الاستدلالية للمرتبات'!R3:V19,5,0)","v":1500},null,{"$f":"VLOOKUP(J32,'الشبكة الاستدلالية للمرتبات'!R3:S19,2,0)","v":2500},{"$f":"VLOOKUP(J32,'الشبكة الاستدلالية للمرتبات'!R3:X19,7,0)","v":0},{"$f":"VLOOKUP(J32,'الشبكة الاستدلالية للمرتبات'!R3:T19,3,0)","v":40},{"$f":"VLOOKUP(J32,'الشبكة الاستدلالية للمرتبات'!R3:U19,4,0)","v":0},{"$f":"VLOOKUP(J32,'الشبكة الاستدلالية للمرتبات'!R36:W49,6,0)","v":{"$error":"#N/A"}}]
[32,"بلخضر بدرية","أستاذ المدرسة الابتدائية","عازبة",null,null,null,null,"6398352/66",11,{"$f":"IF(J33=\"\",\"\",VLOOKUP(J33,'الشبكة الاستدلالية للمرتبات'!A:C,3,0))","v":498},{"$f":"MATCH(K33,'الشبكة الاستدلالية للمرتبات'!C2:C19,0)","v":12},523,1,{"$f":"MATCH(N33,'الشبكة الاستدلالية للمرتبات'!C2:P2,0)","v":3},{"$f":"INDEX('الشبكة الاستدلالية للمرتبات'!C2:P19,L33,O33)","v":25},{"$f":"VLOOKUP(J33,'الشبكة الاستدلالية للمرتبات'!R3:V19,5,0)","v":1500},null,{"$f":"VLOOKUP(J33,'الشبكة الاستدلالية للمرتبات'!R3:S19,2,0)","v":2500},{"$f":"VLOOKUP(J33,'الشبكة الاستدلالية للمرتبات'!R3:X19,7,0)","v":0},{"$f":"VLOOKUP(J33,'الشبكة الاستدلالية للمرتبات'!R3:T19,3,0)","v":40},{"$f":"VLOOKUP(J33,'الشبكة الاستدلالية للمرتبات'!R3:U19,4,0)","v":0},{"$f":"VLOOKUP(J33,'الشبكة الاستدلالية للمرتبات'!R3:W19,6,0)","v":15}]
[33,"حرحوز هجيرة","أستاذ المدرسة الابتدائية","متزوجة",null,null,null,null,"9292759/97",11,{"$f":"IF(J34=\"\",\"\",VLOOKUP(J34,'الشبكة الاستدلالية للمرتبات'!A:C,3,0))","v":498},{"$f":"MATCH(K34,'الشبكة الاستدلالية للمرتبات'!C2:C19,0)","v":12},{"$f":"K34+P34","v":523},1,{"$f":"MATCH(N34,'الشبكة الاستدلالية للمرتبات'!C2:P2,0)","v":3},{"$f":"INDEX('الشبكة الاستدلالية للمرتبات'!C2:P19,L34,O34)","v":25},{"$f":"VLOOKUP(J34,'الشبكة الاستدلالية للمرتبات'!R3:V19,5,0)","v":1500},null,{"$f":"VLOOKUP(J34,'الشبكة الاستدلالية للمرتبات'!R3:S19,2,0)","v":2500},{"$f":"VLOOKUP(J34,'الشبكة الاستدلالية للمرتبات'!R3:X19,7,0)","v":0},{"$f":"VLOOKUP(J34,'الشبكة الاستدلالية للمرتبات'!R3:T19,3,0)","v":40},{"$f":"VLOOKUP(J34,'الشبكة الاستدلالية للمرتبات'!R3:U19,4,0)","v":0},{"$f":"VLOOKUP(J34,'الشبكة الاستدلالية للمرتبات'!R3:W19,6,0)","v":15}]
[34,"داودي زهرة","أستاذ المدرسة الابتدائية","عازبة",null,null,null,null,"14898530/96",11,{"$f":"IF(J35=\"\",\"\",VLOOKUP(J35,'الشبكة الاستدلالية للمرتبات'!A:C,3,0))","v":498},{"$f":"MATCH(K35,'الشبكة الاستدلالية للمرتبات'!C2:C19,0)","v":12},498,null,{"$f":"MATCH(N35,'الشبكة الاستدلالية للمرتبات'!C2:P2,0)","v":2},{"$f":"INDEX('الشبكة الاستدلالية للمرتبات'!C2:P19,L35,O35)","v":0},{"$f":"VLOOKUP(J35,'الشبكة الاستدلالية للمرتبات'!R3:V19,5,0)","v":1500},null,{"$f":"VLOOKUP(J35,'الشبكة الاستدلالية للمرتبات'!R3:S19,2,0)","v":2500},{"$f":"VLOOKUP(J35,'الشبكة الاستدلالية للمرتبات'!R3:X19,7,0)","v":0},{"$f":"VLOOKUP(J35,'الشبكة الاستدلالية للمرتبات'!R3:T19,3,0)","v":40},{"$f":"VLOOKUP(J35,'الشبكة الاستدلالية للمرتبات'!R3:U19,4,0)","v":0},{"$f":"VLOOKUP(J35,'الشبكة الاستدلالية للمرتبات'!R3:W19,6,0)","v":15}]
[35,"بلولة سامية","أستاذ رئيسي للمدرسة الابتدائية","متزوجة",null,null,null,null,"6469679/14",12,{"$f":"IF(J36=\"\",\"\",VLOOKUP(J36,'الشبكة الاستدلالية للمرتبات'!A:C,3,0))","v":537},{"$f":"MATCH(K36,'الشبكة الاستدلالية للمرتبات'!C2:C19,0)","v":13},644,4,{"$f":"MATCH(N36,'الشبكة الاستدلالية للمرتبات'!C2:P2,0)","v":6},{"$f":"INDEX('الشبكة الاستدلالية للمرتبات'!C2:P19,L36,O36)","v":107},{"$f":"VLOOKUP(J36,'الشبكة الاستدلالية للمرتبات'!R3:V19,5,0)","v":1500},null,{"$f":"VLOOKUP(J36,'الشبكة الاستدلالية للمرتبات'!R3:S19,2,0)","v":2500},{"$f":"VLOOKUP(J36,'الشبكة الاستدلالية للمرتبات'!R3:X19,7,0)","v":1000},{"$f":"VLOOKUP(J36,'الشبكة الاستدلالية للمرتبات'!R3:T19,3,0)","v":40},{"$f":"VLOOKUP(J36,'الشبكة الاستدلالية للمرتبات'!R3:U19,4,0)","v":10},{"$f":"VLOOKUP(J36,'الشبكة الاستدلالية للمرتبات'!R3:W19,6,0)","v":15}]
[36,"بن حامد صالح","أستاذ المدرسة الابتدائية","متزوج",2,null,1,null,"6279137/46",11,{"$f":"IF(J37=\"\",\"\",VLOOKUP(J37,'الشبكة الاستدلالية للمرتبات'!A:C,3,0))","v":498},{"$f":"MATCH(K37,'الشبكة الاستدلالية للمرتبات'!C2:C19,0)","v":12},498,null,{"$f":"MATCH(N37,'الشبكة الاستدلالية للمرتبات'!C2:P2,0)","v":2},{"$f":"INDEX('الشبكة الاستدلالية للمرتبات'!C2:P19,L37,O37)","v":0},{"$f":"VLOOKUP(J37,'الشبكة الاستدلالية للمرتبات'!R3:V19,5,0)","v":1500},null,{"$f":"VLOOKUP(J37,'الشبكة الاستدلالية للمرتبات'!R3:S19,2,0)","v":2500},{"$f":"VLOOKUP(J37,'الشبكة الاستدلالية للمرتبات'!R3:X19,7,0)","v":0},{"$f":"VLOOKUP(J37,'الشبكة الاستدلالية للمرتبات'!R3:T19,3,0)","v":40},{"$f":"VLOOKUP(J37,'الشبكة الاستدلالية للمرتبات'!R3:U19,4,0)","v":0},{"$f":"VLOOKUP(J37,'الشبكة الاستدلالية للمرتبات'!R3:W19,6,0)","v":15}]
[37,"بوحملة شريف","أستاذ المدرسة الابتدائية","عازب",null,null,null,null,"6618282/38",11,{"$f":"IF(J38=\"\",\"\",VLOOKUP(J38,'الشبكة الاستدلالية للمرتبات'!A:C,3,0))","v":498},{"$f":"MATCH(K38,'الشبكة الاستدلالية للمرتبات'!C2:C19,0)","v":12},498,null,{"$f":"MATCH(N38,'الشبكة الاستدلالية للمرتبات'!C2:P2,0)","v":2},{"$f":"INDEX('الشبكة الاستدلالية للمرتبات'!C2:P19,L38,O38)","v":0},{"$f":"VLOOKUP(J38,'الشبكة الاستدلالية للمرتبات'!R3:V19,5,0)","v":1500},null,{"$f":"VLOOKUP(J38,'الشبكة الاستدلالية للمرتبات'!R3:S19,2,0)","v":2500},{"$f":"VLOOKUP(J38,'الشبكة الاستدلالية للمرتبات'!R3:X19,7,0)","v":0},{"$f":"VLOOKUP(J38,'الشبكة الاستدلالية للمرتبات'!R3:T19,3,0)","v":40},{"$f":"VLOOKUP(J38,'الشبكة الاستدلالية للمرتبات'!R3:U19,4,0)","v":0},{"$f":"VLOOKUP(J38,'الشبكة الاستدلالية للمرتبات'!R3:W19,6,0)","v":15},null,1]
[38,"بوطيبة حنان","أستاذ رئيسي للمدرسة الابتدائية","متزوجة",null,null,null,null,"1014878/18",12,{"$f":"IF(J39=\"\",\"\",VLOOKUP(J39,'الشبكة الاستدلالية للمرتبات'!A:C,3,0))","v":537},{"$f":"MATCH(K39,'الشبكة الاستدلالية للمرتبات'!C2:C19,0)","v":13},564,1,{"$f":"MATCH(N39,'الشبكة الاستدلالية للمرتبات'!C2:P2,0)","v":3},{"$f":"INDEX('الشبكة الاستدلالية للمرتبات'!C2:P19,L39,O39)","v":27},{"$f":"VLOOKUP(J39,'الشبكة الاستدلالية للمرتبات'!R3:V19,5,0)","v":1500},null,{"$f":"VLOOKUP(J39,'الشبكة الاستدلالية للمرتبات'!R3:S19,2,0)","v":2500},{"$f":"VLOOKUP(J39,'الشبكة الاستدلالية للمرتبات'!R3:X19,7,0)","v":1000},{"$f":"VLOOKUP(J39,'الشبكة الاستدلالية للمرتبات'!R3:T19,3,0)","v":40},{"$f":"VLOOKUP(J39,'الشبكة الاستدلالية للمرتبات'!R3:U19,4,0)","v":10},{"$f":"VLOOKUP(J39,'الشبكة الاستدلالية للمرتبات'!R3:W19,6,0)","v":15}]
[39,"حلاب بشير","أستاذ مكون للمدرسة الابتدائية","متزوج",2,2,1,null,"2140291/22",14,{"$f":"IF(J40=\"\",\"\",VLOOKUP(J40,'الشبكة الاستدلالية للمرتبات'!A:C,3,0))","v":621},{"$f":"MATCH(K40,'الشبكة الاستدلالية للمرتبات'!C2:C19,0)","v":15},963,11,{"$f":"MATCH(N40,'الشبكة الاستدلالية للمرتبات'!C2:P2,0)","v":13},{"$f":"INDEX('الشبكة الاستدلالية للمرتبات'!C2:P19,L40,O40)","v":342},{"$f":"VLOOKUP(J40,'الشبكة الاستدلالية للمرتبات'!R3:V19,5,0)","v":1500},null,{"$f":"VLOOKUP(J40,'الشبكة الاستدلالية للمرتبات'!R3:S19,2,0)","v":3000},{"$f":"VLOOKUP(J40,'الشبكة الاستدلالية للمرتبات'!R3:X19,7,0)","v":1000},{"$f":"VLOOKUP(J40,'الشبكة الاستدلالية للمرتبات'!R3:T19,3,0)","v":45},{"$f":"VLOOKUP(J40,'الشبكة الاستدلالية للمرتبات'!R3:U19,4,0)","v":10},{"$f":"VLOOKUP(J40,'الشبكة الاستدلالية للمرتبات'!R3:W19,6,0)","v":15},null,1]
[40,"حلاب هدى","أستاذ المدرسة الابتدائية","عازبة",null,null,null,null,"6595018/49",11,{"$f":"IF(J41=\"\",\"\",VLOOKUP(J41,'الشبكة الاستدلالية للمرتبات'!A:C,3,0))","v":498},{"$f":"MATCH(K41,'الشبكة الاستدلالية للمرتبات'!C2:C19,0)","v":12},523,1,{"$f":"MATCH(N41,'الشبكة الاستدلالية للمرتبات'!C2:P2,0)","v":3},{"$f":"INDEX('الشبكة الاستدلالية للمرتبات'!C2:P19,L41,O41)","v":25},{"$f":"VLOOKUP(J41,'الشبكة الاستدلالية للمرتبات'!R3:V19,5,0)","v":1500},null,{"$f":"VLOOKUP(J41,'الشبكة الاستدلالية للمرتبات'!R3:S19,2,0)","v":2500},{"$f":"VLOOKUP(J41,'الشبكة الاستدلالية للمرتبات'!R3:X19,7,0)","v":0},{"$f":"VLOOKUP(J41,'الشبكة الاستدلالية للمرتبات'!R3:T19,3,0)","v":40},{"$f":"VLOOKUP(J41,'الشبكة الاستدلالية للمرتبات'!R3:U19,4,0)","v":0},{"$f":"VLOOKUP(J41,'الشبكة الاستدلالية للمرتبات'!R3:W19,6,0)","v":15}]
[41,"دبوسي صبرينة","أستاذ المدرسة الابتدائية","عازبة",null,null,null,null,"6573607/46",11,{"$f":"IF(J42=\"\",\"\",VLOOKUP(J42,'الشبكة الاستدلالية للمرتبات'!A:C,3,0))","v":498},{"$f":"MATCH(K42,'الشبكة الاستدلالية للمرتبات'!C3:C20,0)","v":11},{"$f":"K42+P42","v":{"$error":"#N/A"}},1,{"$f":"MATCH(N42,'الشبكة الاستدلالية للمرتبات'!C3:P3,0)","v":{"$error":"#N/A"}},{"$f":"INDEX('الشبكة الاستدلالية للمرتبات'!C3:P20,L42,O42)","v":{"$error":"#N/A"}},{"$f":"VLOOKUP(J42,'الشبكة الاستدلالية للمرتبات'!R3:V19,5,0)","v":1500},null,{"$f":"VLOOKUP(J42,'الشبكة الاستدلالية للمرتبات'!R3:S19,2,0)","v":2500},{"$f":"VLOOKUP(J42,'الشبكة الاستدلالية للمرتبات'!R3:X19,7,0)","v":0},{"$f":"VLOOKUP(J42,'الشبكة الاستدلالية للمرتبات'!R3:T19,3,0)","v":40},{"$f":"VLOOKUP(J42,'الشبكة الاستدلالية للمرتبات'!R3:U19,4,0)","v":0},{"$f":"VLOOKUP(J42,'الشبكة الاستدلالية للمرتبات'!R3:W19,6,0)","v":15}]
[42,"ربيعي عمر","أستاذ مكون للمدرسة الابتدائية","عازب",null,null,null,null,"2557063/96",14,{"$f":"IF(J43=\"\",\"\",VLOOKUP(J43,'الشبكة الاستدلالية للمرتبات'!A:C,3,0))","v":621},{"$f":"MATCH(K43,'الشبكة الاستدلالية للمرتبات'!C2:C19,0)","v":15},807,6,{"$f":"MATCH(N43,'الشبكة الاستدلالية للمرتبات'!C2:P2,0)","v":8},{"$f":"INDEX('الشبكة الاستدلالية للمرتبات'!C2:P19,L43,O43)","v":186},{"$f":"VLOOKUP(J43,'الشبكة الاستدلالية للمرتبات'!R3:V19,5,0)","v":1500},null,{"$f":"VLOOKUP(J43,'الشبكة الاستدلالية للمرتبات'!R3:S19,2,0)","v":3000},{"$f":"VLOOKUP(J43,'الشبكة الاستدلالية للمرتبات'!R3:X19,7,0)","v":1000},{"$f":"VLOOKUP(J43,'الشبكة الاستدلالية للمرتبات'!R3:T19,3,0)","v":45},{"$f":"VLOOKUP(J43,'الشبكة الاستدلالية للمرتبات'!R3:U19,4,0)","v":10},{"$f":"VLOOKUP(J43,'الشبكة الاستدلالية للمرتبات'!R3:W19,6,0)","v":15}]
[43,"زايدي يحي","أستاذ رئيسي للمدرسة الابتدائية","متزوج",4,2,1,null,"20135944/80",12,{"$f":"IF(J44=\"\",\"\",VLOOKUP(J44,'الشبكة الاستدلالية للمرتبات'!A:C,3,0))","v":537},{"$f":"MATCH(K44,'الشبكة الاستدلالية للمرتبات'!C2:C19,0)","v":13},752,8,{"$f":"MATCH(N44,'الشبكة الاستدلالية للمرتبات'!C2:P2,0)","v":10},{"$f":"INDEX('الشبكة الاستدلالية للمرتبات'!C2:P19,L44,O44)","v":215},{"$f":"VLOOKUP(J44,'الشبكة الاستدلالية للمرتبات'!R3:V19,5,0)","v":1500},null,{"$f":"VLOOKUP(J44,'الشبكة الاستدلالية للمرتبات'!R3:S19,2,0)","v":2500},{"$f":"VLOOKUP(J44,'الشبكة الاستدلالية للمرتبات'!R3:X19,7,0)","v":1000},{"$f":"VLOOKUP(J44,'الشبكة الاستدلالية للمرتبات'!R3:T19,3,0)","v":40},{"$f":"VLOOKUP(J44,'الشبكة الاستدلالية للمرتبات'!R3:U19,4,0)","v":10},{"$f":"VLOOKUP(J44,'الشبكة الاستدلالية للمرتبات'!R3:W19,6,0)","v":15},null,1]
[44,"عاشور زهية","أستاذ المدرسة الابتدائية","عازبة",null,null,null,null,"9887324/19",11,{"$f":"IF(J45=\"\",\"\",VLOOKUP(J45,'الشبكة الاستدلالية للمرتبات'!A:C,3,0))","v":498},{"$f":"MATCH(K45,'الشبكة الاستدلالية للمرتبات'!C2:C19,0)","v":12},498,null,{"$f":"MATCH(N45,'الشبكة الاستدلالية للمرتبات'!C2:P2,0)","v":2},{"$f":"INDEX('الشبكة الاستدلالية للمرتبات'!C2:P19,L45,O45)","v":0},{"$f":"VLOOKUP(J45,'الشبكة الاستدلالية للمرتبات'!R3:V19,5,0)","v":1500},null,{"$f":"VLOOKUP(J45,'الشبكة الاستدلالية للمرتبات'!R3:S19,2,0)","v":2500},{"$f":"VLOOKUP(J45,'الشبكة الاستدلالية للمرتبات'!R3:X19,7,0)","v":0},{"$f":"VLOOKUP(J45,'الشبكة الاستدلالية للمرتبات'!R3:T19,3,0)","v":40},{"$f":"VLOOKUP(J45,'الشبكة الاستدلالية للمرتبات'!R3:U19,4,0)","v":0},{"$f":"VLOOKUP(J45,'الشبكة الاستدلالية للمرتبات'!R3:W19,6,0)","v":15}]
[45,"عواج احمد","أستاذ مكون للمدرسة الابتدائية","متزوج",3,1,1,null,"2657988/89",14,{"$f":"IF(J46=\"\",\"\",VLOOKUP(J46,'الشبكة الاستدلالية للمرتبات'!A:C,3,0))","v":621},{"$f":"MATCH(K46,'الشبكة الاستدلالية للمرتبات'!C2:C19,0)","v":15},900,9,{"$f":"MATCH(N46,'الشبكة الاستدلالية للمرتبات'!C2:P2,0)","v":11},{"$f":"INDEX('الشبكة الاستدلالية للمرتبات'!C2:P19,L46,O46)","v":279},{"$f":"VLOOKUP(J46,'الشبكة الاستدلالية للمرتبات'!R3:V19,5,0)","v":1500},null,{"$f":"VLOOKUP(J46,'الشبكة الاستدلالية للمرتبات'!R3:S19,2,0)","v":3000},{"$f":"VLOOKUP(J46,'الشبكة الاستدلالية للمرتبات'!R3:X19,7,0)","v":1000},{"$f":"VLOOKUP(J46,'الشبكة الاستدلالية للمرتبات'!R3:T19,3,0)","v":45},{"$f":"VLOOKUP(J46,'الشبكة الاستدلالية للمرتبات'!R3:U19,4,0)","v":10},{"$f":"VLOOKUP(J46,'الشبكة الاستدلالية للمرتبات'!R3:W19,6,0)","v":15},null,1]
[46,"عواج كلثوم","أستاذ رئيسي للمدرسة الابتدائية","عازبة",null,null,null,null,"6162916/14",12,{"$f":"IF(J47=\"\",\"\",VLOOKUP(J47,'الشبكة الاستدلالية للمرتبات'!A:C,3,0))","v":537},{"$f":"MATCH(K47,'الشبكة الاستدلالية للمرتبات'!C2:C19,0)","v":13},644,4,{"$f":"MATCH(N47,'الشبكة الاستدلالية للمرتبات'!C2:P2,0)","v":6},{"$f":"INDEX('الشبكة الاستدلالية للمرتبات'!C2:P19,L47,O47)","v":107},{"$f":"VLOOKUP(J47,'الشبكة الاستدلالية للمرتبات'!R3:V19,5,0)","v":1500},null,{"$f":"VLOOKUP(J47,'الشبكة الاستدلالية للمرتبات'!R3:S19,2,0)","v":2500},{"$f":"VLOOKUP(J47,'الشبكة الاستدلالية للمرتبات'!R3:X19,7,0)","v":1000},{"$f":"VLOOKUP(J47,'الشبكة الاستدلالية للمرتبات'!R3:T19,3,0)","v":40},{"$f":"VLOOKUP(J47,'الشبكة الاستدلالية للمرتبات'!R3:U19,4,0)","v":10},{"$f":"VLOOKUP(J47,'الشبكة الاستدلالية للمرتبات'!R3:W19,6,0)","v":15},null,1]
[47,"لعوجي رشيد","أستاذ رئيسي للمدرسة الابتدائية","متزوج",3,1,1,null,"865955/54",12,{"$f":"IF(J48=\"\",\"\",VLOOKUP(J48,'الشبكة الاستدلالية للمرتبات'!A:C,3,0))","v":537},{"$f":"MATCH(K48,'الشبكة الاستدلالية للمرتبات'!C2:C19,0)","v":13},832,11,{"$f":"MATCH(N48,'الشبكة الاستدلالية للمرتبات'!C2:P2,0)","v":13},{"$f":"INDEX('الشبكة الاستدلالية للمرتبات'!C2:P19,L48,O48)","v":295},{"$f":"VLOOKUP(J48,'الشبكة الاستدلالية للمرتبات'!R3:V19,5,0)","v":1500},null,{"$f":"VLOOKUP(J48,'الشبكة الاستدلالية للمرتبات'!R3:S19,2,0)","v":2500},{"$f":"VLOOKUP(J48,'الشبكة الاستدلالية للمرتبات'!R3:X19,7,0)","v":1000},{"$f":"VLOOKUP(J48,'الشبكة الاستدلالية للمرتبات'!R3:T19,3,0)","v":40},{"$f":"VLOOKUP(J48,'الشبكة الاستدلالية للمرتبات'!R3:U19,4,0)","v":10},{"$f":"VLOOKUP(J48,'الشبكة الاستدلالية للمرتبات'!R3:W19,6,0)","v":15},null,1]
[48,"محمد شيكوش سارة","أستاذ المدرسة الابتدائية","متزوجة",null,null,null,null,"11164882/02",11,{"$f":"IF(J49=\"\",\"\",VLOOKUP(J49,'الشبكة الاستدلالية للمرتبات'!A:C,3,0))","v":498},{"$f":"MATCH(K49,'الشبكة الاستدلالية للمرتبات'!C2:C19,0)","v":12},498,null,{"$f":"MATCH(N49,'الشبكة الاستدلالية للمرتبات'!C2:P2,0)","v":2},{"$f":"INDEX('الشبكة الاستدلالية للمرتبات'!C2:P19,L49,O49)","v":0},{"$f":"VLOOKUP(J49,'الشبكة الاستدلالية للمرتبات'!R3:V19,5,0)","v":1500},null,{"$f":"VLOOKUP(J49,'الشبكة الاستدلالية للمرتبات'!R3:S19,2,0)","v":2500},{"$f":"VLOOKUP(J49,'الشبكة الاستدلالية للمرتبات'!R3:X19,7,0)","v":0},{"$f":"VLOOKUP(J49,'الشبكة الاستدلالية للمرتبات'!R3:T19,3,0)","v":40},{"$f":"VLOOKUP(J49,'الشبكة الاستدلالية للمرتبات'!R3:U19,4,0)","v":0},{"$f":"VLOOKUP(J49,'الشبكة الاستدلالية للمرتبات'!R3:W19,6,0)","v":15}]
[49,"مخلوف صليحة","توقيف ع.ط.م","متزوجة",2,2,null,null,null,null,{"$f":"IF(J50=\"\",\"\",VLOOKUP(J50,'الشبكة الاستدلالية للمرتبات'!A:C,3,0))","v":""},{"$f":"MATCH(K50,'الشبكة الاستدلالية للمرتبات'!C2:C19,0)","v":{"$error":"#N/A"}},{"$error":"#VALUE!"},null,{"$f":"MATCH(N50,'الشبكة الاستدلالية للمرتبات'!C2:P2,0)","v":2},{"$f":"INDEX('الشبكة الاستدلالية للمرتبات'!C2:P19,L50,O50)","v":{"$error":"#N/A"}},{"$f":"VLOOKUP(J50,'الشبكة الاستدلالية للمرتبات'!R3:V19,5,0)","v":{"$error":"#N/A"}},null,{"$f":"VLOOKUP(J50,'الشبكة الاستدلالية للمرتبات'!R3:S19,2,0)","v":{"$error":"#N/A"}},{"$f":"VLOOKUP(J50,'الشبكة الاستدلالية للمرتبات'!R3:X19,7,0)","v":{"$error":"#N/A"}},{"$f":"VLOOKUP(J50,'الشبكة الاستدلالية للمرتبات'!R3:T19,3,0)","v":{"$error":"#N/A"}},{"$f":"VLOOKUP(J50,'الشبكة الاستدلالية للمرتبات'!R3:U19,4,0)","v":{"$error":"#N/A"}},{"$f":"VLOOKUP(J50,'الشبكة الاستدلالية للمرتبات'!R3:W19,6,0)","v":{"$error":"#N/A"}}]
[50,"مشتر مريم","أستاذ مكون للمدرسة الابتدائية","متزوجة",null,null,null,null,"2648771/43",14,{"$f":"IF(J51=\"\",\"\",VLOOKUP(J51,'الشبكة الاستدلالية للمرتبات'!A:C,3,0))","v":621},{"$f":"MATCH(K51,'الشبكة الاستدلالية للمرتبات'!C2:C19,0)","v":15},900,9,{"$f":"MATCH(N51,'الشبكة الاستدلالية للمرتبات'!C2:P2,0)","v":11},{"$f":"INDEX('الشبكة الاستدلالية للمرتبات'!C2:P19,L51,O51)","v":279},{"$f":"VLOOKUP(J51,'الشبكة الاستدلالية للمرتبات'!R3:V19,5,0)","v":1500},null,{"$f":"VLOOKUP(J51,'الشبكة الاستدلالية للمرتبات'!R3:S19,2,0)","v":3000},{"$f":"VLOOKUP(J51,'الشبكة الاستدلالية للمرتبات'!R3:X19,7,0)","v":1000},{"$f":"VLOOKUP(J51,'الشبكة الاستدلالية للمرتبات'!R3:T19,3,0)","v":45},{"$f":"VLOOKUP(J51,'الشبكة الاستدلالية للمرتبات'!R3:U19,4,0)","v":10},{"$f":"VLOOKUP(J51,'الشبكة الاستدلالية للمرتبات'!R3:W19,6,0)","v":15}]
[51,"مشتر ميلود","أستاذ مكون للمدرسة الابتدائية","متزوج",4,null,null,null,"2799414/63",14,{"$f":"IF(J52=\"\",\"\",VLOOKUP(J52,'الشبكة الاستدلالية للمرتبات'!A:C,3,0))","v":621},{"$f":"MATCH(K52,'الشبكة الاستدلالية للمرتبات'!C2:C19,0)","v":15},807,6,{"$f":"MATCH(N52,'الشبكة الاستدلالية للمرتبات'!C2:P2,0)","v":8},{"$f":"INDEX('الشبكة الاستدلالية للمرتبات'!C2:P19,L52,O52)","v":186},{"$f":"VLOOKUP(J52,'الشبكة الاستدلالية للمرتبات'!R3:V19,5,0)","v":1500},null,{"$f":"VLOOKUP(J52,'الشبكة الاستدلالية للمرتبات'!R3:S19,2,0)","v":3000},{"$f":"VLOOKUP(J52,'الشبكة الاستدلالية للمرتبات'!R3:X19,7,0)","v":1000},{"$f":"VLOOKUP(J52,'الشبكة الاستدلالية للمرتبات'!R3:T19,3,0)","v":45},{"$f":"VLOOKUP(J52,'الشبكة الاستدلالية للمرتبات'!R3:U19,4,0)","v":10},{"$f":"VLOOKUP(J52,'الشبكة الاستدلالية للمرتبات'!R3:W19,6,0)","v":15},null,1,null,6000]
[52,"معمري بوخاتم","أستاذ المدرسة الابتدائية","متزوج",1,null,null,null,"6274495/51",11,{"$f":"IF(J53=\"\",\"\",VLOOKUP(J53,'الشبكة الاستدلالية للمرتبات'!A:C,3,0))","v":498},{"$f":"MATCH(K53,'الشبكة الاستدلالية للمرتبات'!C2:C19,0)","v":12},498,null,{"$f":"MATCH(N53,'الشبكة الاستدلالية للمرتبات'!C2:P2,0)","v":2},{"$f":"INDEX('الشبكة الاستدلالية للمرتبات'!C2:P19,L53,O53)","v":0},{"$f":"VLOOKUP(J53,'الشبكة الاستدلالية للمرتبات'!R3:V19,5,0)","v":1500},null,{"$f":"VLOOKUP(J53,'الشبكة الاستدلالية للمرتبات'!R3:S19,2,0)","v":2500},{"$f":"VLOOKUP(J53,'الشبكة الاستدلالية للمرتبات'!R3:X19,7,0)","v":0},{"$f":"VLOOKUP(J53,'الشبكة الاستدلالية للمرتبات'!R3:T19,3,0)","v":40},{"$f":"VLOOKUP(J53,'الشبكة الاستدلالية للمرتبات'!R3:U19,4,0)","v":0},{"$f":"VLOOKUP(J53,'الشبكة الاستدلالية للمرتبات'!R3:W19,6,0)","v":15},null,1]
[53,"معمري عبد الرحمان بن عامر","أستاذ مكون للمدرسة الابتدائية","متزوج",null,null,null,1,"2387976/73",14,{"$f":"IF(J54=\"\",\"\",VLOOKUP(J54,'الشبكة الاستدلالية للمرتبات'!A:C,3,0))","v":621},{"$f":"MATCH(K54,'الشبكة الاستدلالية للمرتبات'!C2:C19,0)","v":15},900,9,{"$f":"MATCH(N54,'الشبكة الاستدلالية للمرتبات'!C2:P2,0)","v":11},{"$f":"INDEX('الشبكة الاستدلالية للمرتبات'!C2:P19,L54,O54)","v":279},{"$f":"VLOOKUP(J54,'الشبكة الاستدلالية للمرتبات'!R3:V19,5,0)","v":1500},null,{"$f":"VLOOKUP(J54,'الشبكة الاستدلالية للمرتبات'!R3:S19,2,0)","v":3000},{"$f":"VLOOKUP(J54,'الشبكة الاستدلالية للمرتبات'!R3:X19,7,0)","v":1000},{"$f":"VLOOKUP(J54,'الشبكة الاستدلالية للمرتبات'!R3:T19,3,0)","v":45},{"$f":"VLOOKUP(J54,'الشبكة الاستدلالية للمرتبات'!R3:U19,4,0)","v":10},{"$f":"VLOOKUP(J54,'الشبكة الاستدلالية للمرتبات'!R3:W19,6,0)","v":15},null,1]
[54,"معمري عبلة","أستاذ مكون للمدرسة الابتدائية","متزوجة",null,null,null,null,"708751/90",14,{"$f":"IF(J55=\"\",\"\",VLOOKUP(J55,'الشبكة الاستدلالية للمرتبات'!A:C,3,0))","v":621},{"$f":"MATCH(K55,'الشبكة الاستدلالية للمرتبات'!C2:C19,0)","v":15},869,8,{"$f":"MATCH(N55,'الشبكة الاستدلالية للمرتبات'!C2:P2,0)","v":10},{"$f":"INDEX('الشبكة الاستدلالية للمرتبات'!C2:P19,L55,O55)","v":248},{"$f":"VLOOKUP(J55,'الشبكة الاستدلالية للمرتبات'!R3:V19,5,0)","v":1500},null,{"$f":"VLOOKUP(J55,'الشبكة الاستدلالية للمرتبات'!R3:S19,2,0)","v":3000},{"$f":"VLOOKUP(J55,'الشبكة الاستدلالية للمرتبات'!R3:X19,7,0)","v":1000},{"$f":"VLOOKUP(J55,'الشبكة الاستدلالية للمرتبات'!R3:T19,3,0)","v":45},{"$f":"VLOOKUP(J55,'الشبكة الاستدلالية للمرتبات'!R3:U19,4,0)","v":10},{"$f":"VLOOKUP(J55,'الشبكة الاستدلالية للمرتبات'!R3:W19,6,0)","v":15},null,1]
[55,"معمري عبد النور","أستاذ المدرسة الابتدائية","عازب",null,null,null,null,"9286988/40",11,{"$f":"IF(J56=\"\",\"\",VLOOKUP(J56,'الشبكة الاستدلالية للمرتبات'!A:C,3,0))","v":498},{"$f":"MATCH(K56,'الشبكة الاستدلالية للمرتبات'!C2:C19,0)","v":12},498,null,{"$f":"MATCH(N56,'الشبكة الاستدلالية للمرتبات'!C2:P2,0)","v":2},{"$f":"INDEX('الشبكة الاستدلالية للمرتبات'!C2:P19,L56,O56)","v":0},{"$f":"VLOOKUP(J56,'الشبكة الاستدلالية للمرتبات'!R3:V19,5,0)","v":1500},null,{"$f":"VLOOKUP(J56,'الشبكة الاستدلالية للمرتبات'!R3:S19,2,0)","v":2500},{"$f":"VLOOKUP(J56,'الشبكة الاستدلالية للمرتبات'!R3:X19,7,0)","v":0},{"$f":"VLOOKUP(J56,'الشبكة الاستدلالية للمرتبات'!R3:T19,3,0)","v":40},{"$f":"VLOOKUP(J56,'الشبكة الاستدلالية للمرتبات'!R3:U19,4,0)","v":0},{"$f":"VLOOKUP(J56,'الشبكة الاستدلالية للمرتبات'!R3:W19,6,0)","v":15}]
[56,"معمري كريمة","أستاذ المدرسة الابتدائية","متزوجة",null,null,null,null,"14132552/61",11,{"$f":"IF(J57=\"\",\"\",VLOOKUP(J57,'الشبكة الاستدلالية للمرتبات'!A:C,3,0))","v":498},{"$f":"MATCH(K57,'الشبكة الاستدلالية للمرتبات'!C2:C19,0)","v":12},498,null,{"$f":"MATCH(N57,'الشبكة الاستدلالية للمرتبات'!C2:P2,0)","v":2},{"$f":"INDEX('الشبكة الاستدلالية للمرتبات'!C2:P19,L57,O57)","v":0},{"$f":"VLOOKUP(J57,'الشبكة الاستدلالية للمرتبات'!R3:V19,5,0)","v":1500},null,{"$f":"VLOOKUP(J57,'الشبكة الاستدلالية للمرتبات'!R3:S19,2,0)","v":2500},{"$f":"VLOOKUP(J57,'الشبكة الاستدلالية للمرتبات'!R3:X19,7,0)","v":0},{"$f":"VLOOKUP(J57,'الشبكة الاستدلالية للمرتبات'!R3:T19,3,0)","v":40},{"$f":"VLOOKUP(J57,'الشبكة الاستدلالية للمرتبات'!R3:U19,4,0)","v":0},{"$f":"VLOOKUP(J57,'الشبكة الاستدلالية للمرتبات'!R3:W19,6,0)","v":15},null,1]
[57,"هجرسي سليمان","أستاذ المدرسة الابتدائية","متزوج",1,null,null,null,"11148761/94",11,{"$f":"IF(J58=\"\",\"\",VLOOKUP(J58,'الشبكة الاستدلالية للمرتبات'!A:C,3,0))","v":498},{"$f":"MATCH(K58,'الشبكة الاستدلالية للمرتبات'!C2:C19,0)","v":12},498,null,{"$f":"MATCH(N58,'الشبكة الاستدلالية للمرتبات'!C2:P2,0)","v":2},{"$f":"INDEX('الشبكة الاستدلالية للمرتبات'!C2:P19,L58,O58)","v":0},{"$f":"VLOOKUP(J58,'الشبكة الاستدلالية للمرتبات'!R3:V19,5,0)","v":1500},null,{"$f":"VLOOKUP(J58,'الشبكة الاستدلالية للمرتبات'!R3:S19,2,0)","v":2500},{"$f":"VLOOKUP(J58,'الشبكة الاستدلالية للمرتبات'!R3:X19,7,0)","v":0},{"$f":"VLOOKUP(J58,'الشبكة الاستدلالية للمرتبات'!R3:T19,3,0)","v":40},{"$f":"VLOOKUP(J58,'الشبكة الاستدلالية للمرتبات'!R3:U19,4,0)","v":0},{"$f":"VLOOKUP(J58,'الشبكة الاستدلالية للمرتبات'!R3:W19,6,0)","v":15},null,1]
[58,null,null,null,null,null,null,null,null,null,{"$f":"IF(J59=\"\",\"\",VLOOKUP(J59,'الشبكة الاستدلالية للمرتبات'!A:C,3,0))","v":""},{"$f":"MATCH(K59,'الشبكة الاستدلالية للمرتبات'!C2:C19,0)","v":{"$error":"#N/A"}},{"$error":"#VALUE!"},null,{"$f":"MATCH(N59,'الشبكة الاستدلالية للمرتبات'!C2:P2,0)","v":2},{"$f":"INDEX('الشبكة الاستدلالية للمرتبات'!C2:P19,L59,O59)","v":{"$error":"#N/A"}},{"$f":"VLOOKUP(J59,'الشبكة الاستدلالية للمرتبات'!R3:V19,5,0)","v":{"$error":"#N/A"}},null,{"$f":"VLOOKUP(J59,'الشبكة الاستدلالية للمرتبات'!R3:S19,2,0)","v":{"$error":"#N/A"}},{"$f":"VLOOKUP(J59,'الشبكة الاستدلالية للمرتبات'!R3:X19,7,0)","v":{"$error":"#N/A"}},{"$f":"VLOOKUP(J59,'الشبكة الاستدلالية للمرتبات'!R3:T19,3,0)","v":{"$error":"#N/A"}},{"$f":"VLOOKUP(J59,'الشبكة الاستدلالية للمرتبات'!R3:U19,4,0)","v":{"$error":"#N/A"}},{"$f":"VLOOKUP(J59,'الشبكة الاستدلالية للمرتبات'!R3:W19,6,0)","v":{"$error":"#N/A"}}]
[59,null,null,null,null,null,null,null,null,null,{"$f":"IF(J60=\"\",\"\",VLOOKUP(J60,'الشبكة الاستدلالية للمرتبات'!A:C,3,0))","v":""},{"$f":"MATCH(K60,'الشبكة الاستدلالية للمرتبات'!C2:C19,0)","v":{"$error":"#N/A"}},{"$error":"#VALUE!"},null,{"$f":"MATCH(N60,'الشبكة الاستدلالية للمرتبات'!C2:P2,0)","v":2},{"$f":"INDEX('الشبكة الاستدلالية للمرتبات'!C2:P19,L60,O60)","v":{"$error":"#N/A"}},{"$f":"VLOOKUP(J60,'الشبكة الاستدلالية للمرتبات'!R3:V19,5,0)","v":{"$error":"#N/A"}},null,{"$f":"VLOOKUP(J60,'الشبكة الاستدلالية للمرتبات'!R3:S19,2,0)","v":{"$error":"#N/A"}},{"$f":"VLOOKUP(J60,'الشبكة الاستدلالية للمرتبات'!R3:X19,7,0)","v":{"$error":"#N/A"}},{"$f":"VLOOKUP(J60,'الشبكة الاستدلالية للمرتبات'!R3:T19,3,0)","v":{"$error":"#N/A"}},{"$f":"VLOOKUP(J60,'الشبكة الاستدلالية للمرتبات'!R3:U19,4,0)","v":{"$error":"#N/A"}},{"$f":"VLOOKUP(J60,'الشبكة الاستدلالية للمرتبات'!R3:W19,6,0)","v":{"$error":"#N/A"}}]
[60,null,null,null,null,null,null,null,null,null,{"$f":"IF(J61=\"\",\"\",VLOOKUP(J61,'الشبكة الاستدلالية للمرتبات'!A:C,3,0))","v":""},{"$f":"MATCH(K61,'الشبكة الاستدلالية للمرتبات'!C2:C19,0)","v":{"$error":"#N/A"}},{"$error":"#VALUE!"},null,{"$f":"MATCH(N61,'الشبكة الاستدلالية للمرتبات'!C2:P2,0)","v":2},{"$f":"INDEX('الشبكة الاستدلالية للمرتبات'!C2:P19,L61,O61)","v":{"$error":"#N/A"}},{"$f":"VLOOKUP(J61,'الشبكة الاستدلالية للمرتبات'!R3:V19,5,0)","v":{"$error":"#N/A"}},null,{"$f":"VLOOKUP(J61,'الشبكة الاستدلالية للمرتبات'!R3:S19,2,0)","v":{"$error":"#N/A"}},{"$f":"VLOOKUP(J61,'الشبكة الاستدلالية للمرتبات'!R3:X19,7,0)","v":{"$error":"#N/A"}},{"$f":"VLOOKUP(J61,'الشبكة الاستدلالية للمرتبات'!R3:T19,3,0)","v":{"$error":"#N/A"}},{"$f":"VLOOKUP(J61,'الشبكة الاستدلالية للمرتبات'!R3:U19,4,0)","v":{"$error":"#N/A"}},{"$f":"VLOOKUP(J61,'الشبكة الاستدلالية للمرتبات'!R3:W19,6,0)","v":{"$error":"#N/A"}}]
[61,"بن قرون عمر","مدير  مدرسة ابتدائية","متزوج",5,3,1,null,"826531/79",14,{"$f":"IF(J62=\"\",\"\",VLOOKUP(J62,'الشبكة الاستدلالية للمرتبات'!A:C,3,0))","v":621},{"$f":"MATCH(K62,'الشبكة الاستدلالية للمرتبات'!C2:C19,0)","v":15},900,9,{"$f":"MATCH(N62,'الشبكة الاستدلالية للمرتبات'!C2:P2,0)","v":11},{"$f":"INDEX('الشبكة الاستدلالية للمرتبات'!C2:P19,L62,O62)","v":279},{"$f":"VLOOKUP(J62,'الشبكة الاستدلالية للمرتبات'!R3:V19,5,0)","v":1500},3000,{"$f":"VLOOKUP(J62,'الشبكة الاستدلالية للمرتبات'!R3:S19,2,0)","v":3000},{"$f":"VLOOKUP(J62,'الشبكة الاستدلالية للمرتبات'!R3:X19,7,0)","v":1000},{"$f":"VLOOKUP(J62,'الشبكة الاستدلالية للمرتبات'!R3:T19,3,0)","v":45},{"$f":"VLOOKUP(J62,'الشبكة الاستدلالية للمرتبات'!R3:U19,4,0)","v":10},{"$f":"VLOOKUP(J62,'الشبكة الاستدلالية للمرتبات'!R3:W19,6,0)","v":15},null,1]
[62,"حمدي حاج صادق","مدير  مدرسة ابتدائية","متزوج",6,3,1,null,"1901943/84",14,{"$f":"IF(J63=\"\",\"\",VLOOKUP(J63,'الشبكة الاستدلالية للمرتبات'!A:C,3,0))","v":621},{"$f":"MATCH(K63,'الشبكة الاستدلالية للمرتبات'!C2:C19,0)","v":15},932,10,{"$f":"MATCH(N63,'الشبكة الاستدلالية للمرتبات'!C2:P2,0)","v":12},{"$f":"INDEX('الشبكة الاستدلالية للمرتبات'!C2:P19,L63,O63)","v":311},{"$f":"VLOOKUP(J63,'الشبكة الاستدلالية للمرتبات'!R3:V19,5,0)","v":1500},3000,{"$f":"VLOOKUP(J63,'الشبكة الاستدلالية للمرتبات'!R3:S19,2,0)","v":3000},{"$f":"VLOOKUP(J63,'الشبكة الاستدلالية للمرتبات'!R3:X19,7,0)","v":1000},{"$f":"VLOOKUP(J63,'الشبكة الاستدلالية للمرتبات'!R3:T19,3,0)","v":45},{"$f":"VLOOKUP(J63,'الشبكة الاستدلالية للمرتبات'!R3:U19,4,0)","v":10},{"$f":"VLOOKUP(J63,'الشبكة الاستدلالية للمرتبات'!R3:W19,6,0)","v":15},null,1,null,6000]
[63,"نقبيل بولنوار","مدير  مدرسة ابتدائية","متزوج",4,null,1,null,"481198/90",14,{"$f":"IF(J64=\"\",\"\",VLOOKUP(J64,'الشبكة الاستدلالية للمرتبات'!A:C,3,0))","v":621},{"$f":"MATCH(K64,'الشبكة الاستدلالية للمرتبات'!C2:C19,0)","v":15},838,7,{"$f":"MATCH(N64,'الشبكة الاستدلالية للمرتبات'!C2:P2,0)","v":9},{"$f":"INDEX('الشبكة الاستدلالية للمرتبات'!C2:P19,L64,O64)","v":217},{"$f":"VLOOKUP(J64,'الشبكة الاستدلالية للمرتبات'!R3:V19,5,0)","v":1500},3000,{"$f":"VLOOKUP(J64,'الشبكة الاستدلالية للمرتبات'!R3:S19,2,0)","v":3000},{"$f":"VLOOKUP(J64,'الشبكة الاستدلالية للمرتبات'!R3:X19,7,0)","v":1000},{"$f":"VLOOKUP(J64,'الشبكة الاستدلالية للمرتبات'!R3:T19,3,0)","v":45},{"$f":"VLOOKUP(J64,'الشبكة الاستدلالية للمرتبات'!R3:U19,4,0)","v":10},{"$f":"VLOOKUP(J64,'الشبكة الاستدلالية للمرتبات'!R3:W19,6,0)","v":15}]
[64,null,null,null,null,null,null,null,null,null,{"$f":"IF(J65=\"\",\"\",VLOOKUP(J65,'الشبكة الاستدلالية للمرتبات'!A:C,3,0))","v":""},{"$f":"MATCH(K65,'الشبكة الاستدلالية للمرتبات'!C2:C19,0)","v":{"$error":"#N/A"}},{"$error":"#VALUE!"},null,{"$f":"MATCH(N65,'الشبكة الاستدلالية للمرتبات'!C2:P2,0)","v":2},{"$f":"INDEX('الشبكة الاستدلالية للمرتبات'!C2:P19,L65,O65)","v":{"$error":"#N/A"}},{"$f":"VLOOKUP(J65,'الشبكة الاستدلالية للمرتبات'!R3:V19,5,0)","v":{"$error":"#N/A"}},null,{"$f":"VLOOKUP(J65,'الشبكة الاستدلالية للمرتبات'!R3:S19,2,0)","v":{"$error":"#N/A"}},{"$f":"VLOOKUP(J65,'الشبكة الاستدلالية للمرتبات'!R3:X19,7,0)","v":{"$error":"#N/A"}},{"$f":"VLOOKUP(J65,'الشبكة الاستدلالية للمرتبات'!R3:T19,3,0)","v":{"$error":"#N/A"}},{"$f":"VLOOKUP(J65,'الشبكة الاستدلالية للمرتبات'!R3:U19,4,0)","v":{"$error":"#N/A"}},{"$f":"VLOOKUP(J65,'الشبكة الاستدلالية للمرتبات'!R3:W19,6,0)","v":{"$error":"#N/A"}}]
[65,null,null,null,null,null,null,null,null,null,{"$f":"IF(J66=\"\",\"\",VLOOKUP(J66,'الشبكة الاستدلالية للمرتبات'!A:C,3,0))","v":""},{"$f":"MATCH(K66,'الشبكة الاستدلالية للمرتبات'!C2:C19,0)","v":{"$error":"#N/A"}},{"$f":"K66+P66","v":{"$error":"#VALUE!"}},null,{"$f":"MATCH(N66,'الشبكة الاستدلالية للمرتبات'!C2:P2,0)","v":2},{"$f":"INDEX('الشبكة الاستدلالية للمرتبات'!C2:P19,L66,O66)","v":{"$error":"#N/A"}},{"$f":"VLOOKUP(J66,'الشبكة الاستدلالية للمرتبات'!R3:V19,5,0)","v":{"$error":"#N/A"}},null,{"$f":"VLOOKUP(J66,'الشبكة الاستدلالية للمرتبات'!R3:S19,2,0)","v":{"$error":"#N/A"}},{"$f":"VLOOKUP(J66,'الشبكة الاستدلالية للمرتبات'!R3:X19,7,0)","v":{"$error":"#N/A"}},{"$f":"VLOOKUP(J66,'الشبكة الاستدلالية للمرتبات'!R3:T19,3,0)","v":{"$error":"#N/A"}},{"$f":"VLOOKUP(J66,'الشبكة الاستدلالية للمرتبات'!R3:U19,4,0)","v":{"$error":"#N/A"}},{"$f":"VLOOKUP(J66,'الشبكة الاستدلالية للمرتبات'!R3:W19,6,0)","v":{"$error":"#N/A"}}]
[66,null,null,null,null,null,null,null,null,null,{"$f":"IF(J67=\"\",\"\",VLOOKUP(J67,'الشبكة الاستدلالية للمرتبات'!A:C,3,0))","v":""},{"$f":"MATCH(K67,'الشبكة الاستدلالية للمرتبات'!C2:C19,0)","v":{"$error":"#N/A"}},{"$error":"#VALUE!"},null,{"$f":"MATCH(N67,'الشبكة الاستدلالية للمرتبات'!C2:P2,0)","v":2},{"$f":"INDEX('الشبكة الاستدلالية للمرتبات'!C2:P19,L67,O67)","v":{"$error":"#N/A"}},{"$f":"VLOOKUP(J67,'الشبكة الاستدلالية للمرتبات'!R3:V19,5,0)","v":{"$error":"#N/A"}},null,{"$f":"VLOOKUP(J67,'الشبكة الاستدلالية للمرتبات'!R3:S19,2,0)","v":{"$error":"#N/A"}},{"$f":"VLOOKUP(J67,'الشبكة الاستدلالية للمرتبات'!R3:X19,7,0)","v":{"$error":"#N/A"}},{"$f":"VLOOKUP(J67,'الشبكة الاستدلالية للمرتبات'!R3:T19,3,0)","v":{"$error":"#N/A"}},{"$f":"VLOOKUP(J67,'الشبكة الاستدلالية للمرتبات'!R3:U19,4,0)","v":{"$error":"#N/A"}},{"$f":"VLOOKUP(J67,'الشبكة الاستدلالية للمرتبات'!R3:W19,6,0)","v":{"$error":"#N/A"}}]
[67,null,null,null,null,null,null,null,null,null,{"$f":"IF(J68=\"\",\"\",VLOOKUP(J68,'الشبكة الاستدلالية للمرتبات'!A:C,3,0))","v":""},{"$f":"MATCH(K68,'الشبكة الاستدلالية للمرتبات'!C2:C19,0)","v":{"$error":"#N/A"}},{"$error":"#VALUE!"},null,{"$f":"MATCH(N68,'الشبكة الاستدلالية للمرتبات'!C2:P2,0)","v":2},{"$f":"INDEX('الشبكة الاستدلالية للمرتبات'!C2:P19,L68,O68)","v":{"$error":"#N/A"}},{"$f":"VLOOKUP(J68,'الشبكة الاستدلالية للمرتبات'!R3:V19,5,0)","v":{"$error":"#N/A"}},null,{"$f":"VLOOKUP(J68,'الشبكة الاستدلالية للمرتبات'!R3:S19,2,0)","v":{"$error":"#N/A"}},{"$f":"VLOOKUP(J68,'الشبكة الاستدلالية للمرتبات'!R3:X19,7,0)","v":{"$error":"#N/A"}},{"$f":"VLOOKUP(J68,'الشبكة الاستدلالية للمرتبات'!R3:T19,3,0)","v":{"$error":"#N/A"}},{"$f":"VLOOKUP(J68,'الشبكة الاستدلالية للمرتبات'!R3:U19,4,0)","v":{"$error":"#N/A"}},{"$f":"VLOOKUP(J68,'الشبكة الاستدلالية للمرتبات'!R3:W19,6,0)","v":{"$error":"#N/A"}}]
[68,null,null,null,null,null,null,null,null,null,{"$f":"IF(J69=\"\",\"\",VLOOKUP(J69,'الشبكة الاستدلالية للمرتبات'!A:C,3,0))","v":""},{"$f":"MATCH(K69,'الشبكة الاستدلالية للمرتبات'!C2:C19,0)","v":{"$error":"#N/A"}},{"$error":"#VALUE!"},null,{"$f":"MATCH(N69,'الشبكة الاستدلالية للمرتبات'!C2:P2,0)","v":2},{"$f":"INDEX('الشبكة الاستدلالية للمرتبات'!C2:P19,L69,O69)","v":{"$error":"#N/A"}},{"$f":"VLOOKUP(J69,'الشبكة الاستدلالية للمرتبات'!R3:V19,5,0)","v":{"$error":"#N/A"}},null,{"$f":"VLOOKUP(J69,'الشبكة الاستدلالية للمرتبات'!R3:S19,2,0)","v":{"$error":"#N/A"}},{"$f":"VLOOKUP(J69,'الشبكة الاستدلالية للمرتبات'!R3:X19,7,0)","v":{"$error":"#N/A"}},{"$f":"VLOOKUP(J69,'الشبكة الاستدلالية للمرتبات'!R3:T19,3,0)","v":{"$error":"#N/A"}},{"$f":"VLOOKUP(J69,'الشبكة الاستدلالية للمرتبات'!R3:U19,4,0)","v":{"$error":"#N/A"}},{"$f":"VLOOKUP(J69,'الشبكة الاستدلالية للمرتبات'!R3:W19,6,0)","v":{"$error":"#N/A"}}]
[69,null,null,null,null,null,null,null,null,null,{"$f":"IF(J70=\"\",\"\",VLOOKUP(J70,'الشبكة الاستدلالية للمرتبات'!A:C,3,0))","v":""},{"$f":"MATCH(K70,'الشبكة الاستدلالية للمرتبات'!C2:C19,0)","v":{"$error":"#N/A"}},{"$error":"#VALUE!"},null,{"$f":"MATCH(N70,'الشبكة الاستدلالية للمرتبات'!C2:P2,0)","v":2},{"$f":"INDEX('الشبكة الاستدلالية للمرتبات'!C2:P19,L70,O70)","v":{"$error":"#N/A"}},{"$f":"VLOOKUP(J70,'الشبكة الاستدلالية للمرتبات'!R3:V19,5,0)","v":{"$error":"#N/A"}},null,{"$f":"VLOOKUP(J70,'الشبكة الاستدلالية للمرتبات'!R3:S19,2,0)","v":{"$error":"#N/A"}},{"$f":"VLOOKUP(J70,'الشبكة الاستدلالية للمرتبات'!R3:X19,7,0)","v":{"$error":"#N/A"}},{"$f":"VLOOKUP(J70,'الشبكة الاستدلالية للمرتبات'!R3:T19,3,0)","v":{"$error":"#N/A"}},{"$f":"VLOOKUP(J70,'الشبكة الاستدلالية للمرتبات'!R3:U19,4,0)","v":{"$error":"#N/A"}},{"$f":"VLOOKUP(J70,'الشبكة الاستدلالية للمرتبات'!R3:W19,6,0)","v":{"$error":"#N/A"}}]
[70,null,null,null,null,null,null,null,null,null,{"$f":"IF(J71=\"\",\"\",VLOOKUP(J71,'الشبكة الاستدلالية للمرتبات'!A:C,3,0))","v":""},{"$f":"MATCH(K71,'الشبكة الاستدلالية للمرتبات'!C2:C19,0)","v":{"$error":"#N/A"}},{"$error":"#VALUE!"},null,{"$f":"MATCH(N71,'الشبكة الاستدلالية للمرتبات'!C2:P2,0)","v":2},{"$f":"INDEX('الشبكة الاستدلالية للمرتبات'!C2:P19,L71,O71)","v":{"$error":"#N/A"}},{"$f":"VLOOKUP(J71,'الشبكة الاستدلالية للمرتبات'!R3:V19,5,0)","v":{"$error":"#N/A"}},null,{"$f":"VLOOKUP(J71,'الشبكة الاستدلالية للمرتبات'!R3:S19,2,0)","v":{"$error":"#N/A"}},{"$f":"VLOOKUP(J71,'الشبكة الاستدلالية للمرتبات'!R3:X19,7,0)","v":{"$error":"#N/A"}},{"$f":"VLOOKUP(J71,'الشبكة الاستدلالية للمرتبات'!R3:T19,3,0)","v":{"$error":"#N/A"}},{"$f":"VLOOKUP(J71,'الشبكة الاستدلالية للمرتبات'!R3:U19,4,0)","v":{"$error":"#N/A"}},{"$f":"VLOOKUP(J71,'الشبكة الاستدلالية للمرتبات'!R3:W19,6,0)","v":{"$error":"#N/A"}}]
[71,null,null,null,null,null,null,null,null,null,{"$f":"IF(J72=\"\",\"\",VLOOKUP(J72,'الشبكة الاستدلالية للمرتبات'!A:C,3,0))","v":""},{"$f":"MATCH(K72,'الشبكة الاستدلالية للمرتبات'!C2:C19,0)","v":{"$error":"#N/A"}},{"$error":"#VALUE!"},null,{"$f":"MATCH(N72,'الشبكة الاستدلالية للمرتبات'!C2:P2,0)","v":2},{"$f":"INDEX('الشبكة الاستدلالية للمرتبات'!C2:P19,L72,O72)","v":{"$error":"#N/A"}},{"$f":"VLOOKUP(J72,'الشبكة الاستدلالية للمرتبات'!R3:V19,5,0)","v":{"$error":"#N/A"}},null,{"$f":"VLOOKUP(J72,'الشبكة الاستدلالية للمرتبات'!R3:S19,2,0)","v":{"$error":"#N/A"}},{"$f":"VLOOKUP(J72,'الشبكة الاستدلالية للمرتبات'!R3:X19,7,0)","v":{"$error":"#N/A"}},{"$f":"VLOOKUP(J72,'الشبكة الاستدلالية للمرتبات'!R3:T19,3,0)","v":{"$error":"#N/A"}},{"$f":"VLOOKUP(J72,'الشبكة الاستدلالية للمرتبات'!R3:U19,4,0)","v":{"$error":"#N/A"}},{"$f":"VLOOKUP(J72,'الشبكة الاستدلالية للمرتبات'!R3:W19,6,0)","v":{"$error":"#N/A"}}]
[72,null,null,null,null,null,null,null,null,null,{"$f":"IF(J73=\"\",\"\",VLOOKUP(J73,'الشبكة الاستدلالية للمرتبات'!A:C,3,0))","v":""},{"$f":"MATCH(K73,'الشبكة الاستدلالية للمرتبات'!C2:C19,0)","v":{"$error":"#N/A"}},{"$error":"#VALUE!"},null,{"$f":"MATCH(N73,'الشبكة الاستدلالية للمرتبات'!C2:P2,0)","v":2},{"$f":"INDEX('الشبكة الاستدلالية للمرتبات'!C2:P19,L73,O73)","v":{"$error":"#N/A"}},{"$f":"VLOOKUP(J73,'الشبكة الاستدلالية للمرتبات'!R3:V19,5,0)","v":{"$error":"#N/A"}},null,{"$f":"VLOOKUP(J73,'الشبكة الاستدلالية للمرتبات'!R3:S19,2,0)","v":{"$error":"#N/A"}},{"$f":"VLOOKUP(J73,'الشبكة الاستدلالية للمرتبات'!R3:X19,7,0)","v":{"$error":"#N/A"}},{"$f":"VLOOKUP(J73,'الشبكة الاستدلالية للمرتبات'!R3:T19,3,0)","v":{"$error":"#N/A"}},{"$f":"VLOOKUP(J73,'الشبكة الاستدلالية للمرتبات'!R3:U19,4,0)","v":{"$error":"#N/A"}},{"$f":"VLOOKUP(J73,'الشبكة الاستدلالية للمرتبات'!R3:W19,6,0)","v":{"$error":"#N/A"}}]
[73,null,null,null,null,null,null,null,null,null,{"$f":"IF(J74=\"\",\"\",VLOOKUP(J74,'الشبكة الاستدلالية للمرتبات'!A:C,3,0))","v":""},{"$f":"MATCH(K74,'الشبكة الاستدلالية للمرتبات'!C2:C19,0)","v":{"$error":"#N/A"}},{"$error":"#VALUE!"},null,{"$f":"MATCH(N74,'الشبكة الاستدلالية للمرتبات'!C2:P2,0)","v":2},{"$f":"INDEX('الشبكة الاستدلالية للمرتبات'!C2:P19,L74,O74)","v":{"$error":"#N/A"}},{"$f":"VLOOKUP(J74,'الشبكة الاستدلالية للمرتبات'!R3:V19,5,0)","v":{"$error":"#N/A"}},null,{"$f":"VLOOKUP(J74,'الشبكة الاستدلالية للمرتبات'!R3:S19,2,0)","v":{"$error":"#N/A"}},{"$f":"VLOOKUP(J74,'الشبكة الاستدلالية للمرتبات'!R3:X19,7,0)","v":{"$error":"#N/A"}},{"$f":"VLOOKUP(J74,'الشبكة الاستدلالية للمرتبات'!R3:T19,3,0)","v":{"$error":"#N/A"}},{"$f":"VLOOKUP(J74,'الشبكة الاستدلالية للمرتبات'!R3:U19,4,0)","v":{"$error":"#N/A"}},{"$f":"VLOOKUP(J74,'الشبكة الاستدلالية للمرتبات'!R3:W19,6,0)","v":{"$error":"#N/A"}}]
[74,null,null,null,null,null,null,null,null,null,{"$f":"IF(J75=\"\",\"\",VLOOKUP(J75,'الشبكة الاستدلالية للمرتبات'!A:C,3,0))","v":""},{"$f":"MATCH(K75,'الشبكة الاستدلالية للمرتبات'!C2:C19,0)","v":{"$error":"#N/A"}},{"$error":"#VALUE!"},null,{"$f":"MATCH(N75,'الشبكة الاستدلالية للمرتبات'!C2:P2,0)","v":2},{"$f":"INDEX('الشبكة الاستدلالية للمرتبات'!C2:P19,L75,O75)","v":{"$error":"#N/A"}},{"$f":"VLOOKUP(J75,'الشبكة الاستدلالية للمرتبات'!R3:V19,5,0)","v":{"$error":"#N/A"}},null,{"$f":"VLOOKUP(J75,'الشبكة الاستدلالية للمرتبات'!R3:S19,2,0)","v":{"$error":"#N/A"}},{"$f":"VLOOKUP(J75,'الشبكة الاستدلالية للمرتبات'!R3:X19,7,0)","v":{"$error":"#N/A"}},{"$f":"VLOOKUP(J75,'الشبكة الاستدلالية للمرتبات'!R3:T19,3,0)","v":{"$error":"#N/A"}},{"$f":"VLOOKUP(J75,'الشبكة الاستدلالية للمرتبات'!R3:U19,4,0)","v":{"$error":"#N/A"}},{"$f":"VLOOKUP(J75,'الشبكة الاستدلالية للمرتبات'!R3:W19,6,0)","v":{"$error":"#N/A"}}]
[75,null,null,null,null,null,null,null,null,null,{"$f":"IF(J76=\"\",\"\",VLOOKUP(J76,'الشبكة الاستدلالية للمرتبات'!A:C,3,0))","v":""},{"$f":"MATCH(K76,'الشبكة الاستدلالية للمرتبات'!C2:C19,0)","v":{"$error":"#N/A"}},{"$error":"#VALUE!"},null,{"$f":"MATCH(N76,'الشبكة الاستدلالية للمرتبات'!C2:P2,0)","v":2},{"$f":"INDEX('الشبكة الاستدلالية للمرتبات'!C2:P19,L76,O76)","v":{"$error":"#N/A"}},{"$f":"VLOOKUP(J76,'الشبكة الاستدلالية للمرتبات'!R3:V19,5,0)","v":{"$error":"#N/A"}},null,{"$f":"VLOOKUP(J76,'الشبكة الاستدلالية للمرتبات'!R3:S19,2,0)","v":{"$error":"#N/A"}},{"$f":"VLOOKUP(J76,'الشبكة الاستدلالية للمرتبات'!R3:X19,7,0)","v":{"$error":"#N/A"}},{"$f":"VLOOKUP(J76,'الشبكة الاستدلالية للمرتبات'!R3:T19,3,0)","v":{"$error":"#N/A"}},{"$f":"VLOOKUP(J76,'الشبكة الاستدلالية للمرتبات'!R3:U19,4,0)","v":{"$error":"#N/A"}},{"$f":"VLOOKUP(J76,'الشبكة الاستدلالية للمرتبات'!R3:W19,6,0)","v":{"$error":"#N/A"}}]
[76,null,null,null,null,null,null,null,null,null,{"$f":"IF(J77=\"\",\"\",VLOOKUP(J77,'الشبكة الاستدلالية للمرتبات'!A:C,3,0))","v":""},{"$f":"MATCH(K77,'الشبكة الاستدلالية للمرتبات'!C2:C19,0)","v":{"$error":"#N/A"}},{"$error":"#VALUE!"},null,{"$f":"MATCH(N77,'الشبكة الاستدلالية للمرتبات'!C2:P2,0)","v":2},{"$f":"INDEX('الشبكة الاستدلالية للمرتبات'!C2:P19,L77,O77)","v":{"$error":"#N/A"}},{"$f":"VLOOKUP(J77,'الشبكة الاستدلالية للمرتبات'!R3:V19,5,0)","v":{"$error":"#N/A"}},null,{"$f":"VLOOKUP(J77,'الشبكة الاستدلالية للمرتبات'!R3:S19,2,0)","v":{"$error":"#N/A"}},{"$f":"VLOOKUP(J77,'الشبكة الاستدلالية للمرتبات'!R3:X19,7,0)","v":{"$error":"#N/A"}},{"$f":"VLOOKUP(J77,'الشبكة الاستدلالية للمرتبات'!R3:T19,3,0)","v":{"$error":"#N/A"}},{"$f":"VLOOKUP(J77,'الشبكة الاستدلالية للمرتبات'!R3:U19,4,0)","v":{"$error":"#N/A"}},{"$f":"VLOOKUP(J77,'الشبكة الاستدلالية للمرتبات'!R3:W19,6,0)","v":{"$error":"#N/A"}}]
[77,null,null,null,null,null,null,null,null,null,{"$f":"IF(J78=\"\",\"\",VLOOKUP(J78,'الشبكة الاستدلالية للمرتبات'!A:C,3,0))","v":""},{"$f":"MATCH(K78,'الشبكة الاستدلالية للمرتبات'!C2:C19,0)","v":{"$error":"#N/A"}},{"$error":"#VALUE!"},null,{"$f":"MATCH(N78,'الشبكة الاستدلالية للمرتبات'!C2:P2,0)","v":2},{"$f":"INDEX('الشبكة الاستدلالية للمرتبات'!C2:P19,L78,O78)","v":{"$error":"#N/A"}},{"$f":"VLOOKUP(J78,'الشبكة الاستدلالية للمرتبات'!R3:V19,5,0)","v":{"$error":"#N/A"}},null,{"$f":"VLOOKUP(J78,'الشبكة الاستدلالية للمرتبات'!R3:S19,2,0)","v":{"$error":"#N/A"}},{"$f":"VLOOKUP(J78,'الشبكة الاستدلالية للمرتبات'!R3:X19,7,0)","v":{"$error":"#N/A"}},{"$f":"VLOOKUP(J78,'الشبكة الاستدلالية للمرتبات'!R3:T19,3,0)","v":{"$error":"#N/A"}},{"$f":"VLOOKUP(J78,'الشبكة الاستدلالية للمرتبات'!R3:U19,4,0)","v":{"$error":"#N/A"}},{"$f":"VLOOKUP(J78,'الشبكة الاستدلالية للمرتبات'!R3:W19,6,0)","v":{"$error":"#N/A"}}]
[78,null,null,null,null,null,null,null,null,null,{"$f":"IF(J79=\"\",\"\",VLOOKUP(J79,'الشبكة الاستدلالية للمرتبات'!A:C,3,0))","v":""},{"$f":"MATCH(K79,'الشبكة الاستدلالية للمرتبات'!C2:C19,0)","v":{"$error":"#N/A"}},{"$error":"#VALUE!"},null,{"$f":"MATCH(N79,'الشبكة الاستدلالية للمرتبات'!C2:P2,0)","v":2},{"$f":"INDEX('الشبكة الاستدلالية للمرتبات'!C2:P19,L79,O79)","v":{"$error":"#N/A"}},{"$f":"VLOOKUP(J79,'الشبكة الاستدلالية للمرتبات'!R3:V19,5,0)","v":{"$error":"#N/A"}},null,{"$f":"VLOOKUP(J79,'الشبكة الاستدلالية للمرتبات'!R3:S19,2,0)","v":{"$error":"#N/A"}},{"$f":"VLOOKUP(J79,'الشبكة الاستدلالية للمرتبات'!R3:X19,7,0)","v":{"$error":"#N/A"}},{"$f":"VLOOKUP(J79,'الشبكة الاستدلالية للمرتبات'!R3:T19,3,0)","v":{"$error":"#N/A"}},{"$f":"VLOOKUP(J79,'الشبكة الاستدلالية للمرتبات'!R3:U19,4,0)","v":{"$error":"#N/A"}},{"$f":"VLOOKUP(J79,'الشبكة الاستدلالية للمرتبات'!R3:W19,6,0)","v":{"$error":"#N/A"}}]
[79,null,null,null,null,null,null,null,null,null,{"$f":"IF(J80=\"\",\"\",VLOOKUP(J80,'الشبكة الاستدلالية للمرتبات'!A:C,3,0))","v":""},{"$f":"MATCH(K80,'الشبكة الاستدلالية للمرتبات'!C2:C19,0)","v":{"$error":"#N/A"}},{"$error":"#VALUE!"},null,{"$f":"MATCH(N80,'الشبكة الاستدلالية للمرتبات'!C2:P2,0)","v":2},{"$f":"INDEX('الشبكة الاستدلالية للمرتبات'!C2:P19,L80,O80)","v":{"$error":"#N/A"}},{"$f":"VLOOKUP(J80,'الشبكة الاستدلالية للمرتبات'!R3:V19,5,0)","v":{"$error":"#N/A"}},null,{"$f":"VLOOKUP(J80,'الشبكة الاستدلالية للمرتبات'!R3:S19,2,0)","v":{"$error":"#N/A"}},{"$f":"VLOOKUP(J80,'الشبكة الاستدلالية للمرتبات'!R3:X19,7,0)","v":{"$error":"#N/A"}},{"$f":"VLOOKUP(J80,'الشبكة الاستدلالية للمرتبات'!R3:T19,3,0)","v":{"$error":"#N/A"}},{"$f":"VLOOKUP(J80,'الشبكة الاستدلالية للمرتبات'!R3:U19,4,0)","v":{"$error":"#N/A"}},{"$f":"VLOOKUP(J80,'الشبكة الاستدلالية للمرتبات'!R3:W19,6,0)","v":{"$error":"#N/A"}}]
[80,null,null,null,null,null,null,null,null,null,{"$f":"IF(J81=\"\",\"\",VLOOKUP(J81,'الشبكة الاستدلالية للمرتبات'!A:C,3,0))","v":""},{"$f":"MATCH(K81,'الشبكة الاستدلالية للمرتبات'!C2:C19,0)","v":{"$error":"#N/A"}},{"$error":"#VALUE!"},null,{"$f":"MATCH(N81,'الشبكة الاستدلالية للمرتبات'!C2:P2,0)","v":2},{"$f":"INDEX('الشبكة الاستدلالية للمرتبات'!C2:P19,L81,O81)","v":{"$error":"#N/A"}},{"$f":"VLOOKUP(J81,'الشبكة الاستدلالية للمرتبات'!R3:V19,5,0)","v":{"$error":"#N/A"}},null,{"$f":"VLOOKUP(J81,'الشبكة الاستدلالية للمرتبات'!R3:S19,2,0)","v":{"$error":"#N/A"}},{"$f":"VLOOKUP(J81,'الشبكة الاستدلالية للمرتبات'!R3:X19,7,0)","v":{"$error":"#N/A"}},{"$f":"VLOOKUP(J81,'الشبكة الاستدلالية للمرتبات'!R53:T69,3,0)","v":{"$error":"#N/A"}},{"$f":"VLOOKUP(J81,'الشبكة الاستدلالية للمرتبات'!R3:U19,4,0)","v":{"$error":"#N/A"}},{"$f":"VLOOKUP(J81,'الشبكة الاستدلالية للمرتبات'!R3:W19,6,0)","v":{"$error":"#N/A"}}]
[81,null,null,null,null,null,null,null,null,null,{"$f":"IF(J82=\"\",\"\",VLOOKUP(J82,'الشبكة الاستدلالية للمرتبات'!A:C,3,0))","v":""},{"$f":"MATCH(K82,'الشبكة الاستدلالية للمرتبات'!C2:C19,0)","v":{"$error":"#N/A"}},{"$error":"#VALUE!"},null,{"$f":"MATCH(N82,'الشبكة الاستدلالية للمرتبات'!C2:P2,0)","v":2},{"$f":"INDEX('الشبكة الاستدلالية للمرتبات'!C2:P19,L82,O82)","v":{"$error":"#N/A"}},{"$f":"VLOOKUP(J82,'الشبكة الاستدلالية للمرتبات'!R3:V19,5,0)","v":{"$error":"#N/A"}},null,{"$f":"VLOOKUP(J82,'الشبكة الاستدلالية للمرتبات'!R3:S19,2,0)","v":{"$error":"#N/A"}},{"$f":"VLOOKUP(J82,'الشبكة الاستدلالية للمرتبات'!R3:X19,7,0)","v":{"$error":"#N/A"}},{"$f":"VLOOKUP(J82,'الشبكة الاستدلالية للمرتبات'!R3:T19,3,0)","v":{"$error":"#N/A"}},{"$f":"VLOOKUP(J82,'الشبكة الاستدلالية للمرتبات'!R3:U19,4,0)","v":{"$error":"#N/A"}},{"$f":"VLOOKUP(J82,'الشبكة الاستدلالية للمرتبات'!R3:W19,6,0)","v":{"$error":"#N/A"}}]
[82,null,null,null,null,null,null,null,null,null,{"$f":"IF(J83=\"\",\"\",VLOOKUP(J83,'الشبكة الاستدلالية للمرتبات'!A:C,3,0))","v":""},{"$f":"MATCH(K83,'الشبكة الاستدلالية للمرتبات'!C2:C19,0)","v":{"$error":"#N/A"}},{"$error":"#VALUE!"},null,{"$f":"MATCH(N83,'الشبكة الاستدلالية للمرتبات'!C2:P2,0)","v":2},{"$f":"INDEX('الشبكة الاستدلالية للمرتبات'!C2:P19,L83,O83)","v":{"$error":"#N/A"}},{"$f":"VLOOKUP(J83,'الشبكة الاستدلالية للمرتبات'!R3:V19,5,0)","v":{"$error":"#N/A"}},null,{"$f":"VLOOKUP(J83,'الشبكة الاستدلالية للمرتبات'!R3:S19,2,0)","v":{"$error":"#N/A"}},{"$f":"VLOOKUP(J83,'الشبكة الاستدلالية للمرتبات'!R3:X19,7,0)","v":{"$error":"#N/A"}},{"$f":"VLOOKUP(J83,'الشبكة الاستدلالية للمرتبات'!R3:T19,3,0)","v":{"$error":"#N/A"}},{"$f":"VLOOKUP(J83,'الشبكة الاستدلالية للمرتبات'!R3:U19,4,0)","v":{"$error":"#N/A"}},{"$f":"VLOOKUP(J83,'الشبكة الاستدلالية للمرتبات'!R3:W19,6,0)","v":{"$error":"#N/A"}}]
[83,null,null,null,null,null,null,null,null,null,{"$f":"IF(J84=\"\",\"\",VLOOKUP(J84,'الشبكة الاستدلالية للمرتبات'!A:C,3,0))","v":""},{"$f":"MATCH(K84,'الشبكة الاستدلالية للمرتبات'!C2:C19,0)","v":{"$error":"#N/A"}},{"$error":"#VALUE!"},null,{"$f":"MATCH(N84,'الشبكة الاستدلالية للمرتبات'!C2:P2,0)","v":2},{"$f":"INDEX('الشبكة الاستدلالية للمرتبات'!C2:P19,L84,O84)","v":{"$error":"#N/A"}},{"$f":"VLOOKUP(J84,'الشبكة الاستدلالية للمرتبات'!R3:V19,5,0)","v":{"$error":"#N/A"}},null,{"$f":"VLOOKUP(J84,'الشبكة الاستدلالية للمرتبات'!R3:S19,2,0)","v":{"$error":"#N/A"}},{"$f":"VLOOKUP(J84,'الشبكة الاستدلالية للمرتبات'!R3:X19,7,0)","v":{"$error":"#N/A"}},{"$f":"VLOOKUP(J84,'الشبكة الاستدلالية للمرتبات'!R3:T19,3,0)","v":{"$error":"#N/A"}},{"$f":"VLOOKUP(J84,'الشبكة الاستدلالية للمرتبات'!R3:U19,4,0)","v":{"$error":"#N/A"}},{"$f":"VLOOKUP(J84,'الشبكة الاستدلالية للمرتبات'!R3:W19,6,0)","v":{"$error":"#N/A"}}]
[84,null,null,null,null,null,null,null,null,null,{"$f":"IF(J85=\"\",\"\",VLOOKUP(J85,'الشبكة الاستدلالية للمرتبات'!A:C,3,0))","v":""},{"$f":"MATCH(K85,'الشبكة الاستدلالية للمرتبات'!C2:C19,0)","v":{"$error":"#N/A"}},{"$error":"#VALUE!"},null,{"$f":"MATCH(N85,'الشبكة الاستدلالية للمرتبات'!C2:P2,0)","v":2},{"$f":"INDEX('الشبكة الاستدلالية للمرتبات'!C2:P19,L85,O85)","v":{"$error":"#N/A"}},{"$f":"VLOOKUP(J85,'الشبكة الاستدلالية للمرتبات'!R3:V19,5,0)","v":{"$error":"#N/A"}},null,{"$f":"VLOOKUP(J85,'الشبكة الاستدلالية للمرتبات'!R3:S19,2,0)","v":{"$error":"#N/A"}},{"$f":"VLOOKUP(J85,'الشبكة الاستدلالية للمرتبات'!R3:X19,7,0)","v":{"$error":"#N/A"}},{"$f":"VLOOKUP(J85,'الشبكة الاستدلالية للمرتبات'!R3:T19,3,0)","v":{"$error":"#N/A"}},{"$f":"VLOOKUP(J85,'الشبكة الاستدلالية للمرتبات'!R3:U19,4,0)","v":{"$error":"#N/A"}},{"$f":"VLOOKUP(J85,'الشبكة الاستدلالية للمرتبات'!R3:W19,6,0)","v":{"$error":"#N/A"}}]
[85,null,null,null,null,null,null,null,null,null,{"$f":"IF(J86=\"\",\"\",VLOOKUP(J86,'الشبكة الاستدلالية للمرتبات'!A:C,3,0))","v":""},{"$f":"MATCH(K86,'الشبكة الاستدلالية للمرتبات'!C2:C19,0)","v":{"$error":"#N/A"}},{"$error":"#VALUE!"},null,{"$f":"MATCH(N86,'الشبكة الاستدلالية للمرتبات'!C2:P2,0)","v":2},{"$f":"INDEX('الشبكة الاستدلالية للمرتبات'!C2:P19,L86,O86)","v":{"$error":"#N/A"}},{"$f":"VLOOKUP(J86,'الشبكة الاستدلالية للمرتبات'!R3:V19,5,0)","v":{"$error":"#N/A"}},null,{"$f":"VLOOKUP(J86,'الشبكة الاستدلالية للمرتبات'!R3:S19,2,0)","v":{"$error":"#N/A"}},{"$f":"VLOOKUP(J86,'الشبكة الاستدلالية للمرتبات'!R3:X19,7,0)","v":{"$error":"#N/A"}},{"$f":"VLOOKUP(J86,'الشبكة الاستدلالية للمرتبات'!R3:T19,3,0)","v":{"$error":"#N/A"}},{"$f":"VLOOKUP(J86,'الشبكة الاستدلالية للمرتبات'!R3:U19,4,0)","v":{"$error":"#N/A"}},{"$f":"VLOOKUP(J86,'الشبكة الاستدلالية للمرتبات'!R3:W19,6,0)","v":{"$error":"#N/A"}}]
[86,null,null,null,null,null,null,null,null,null,{"$f":"IF(J87=\"\",\"\",VLOOKUP(J87,'الشبكة الاستدلالية للمرتبات'!A:C,3,0))","v":""},{"$f":"MATCH(K87,'الشبكة الاستدلالية للمرتبات'!C2:C19,0)","v":{"$error":"#N/A"}},{"$error":"#VALUE!"},null,{"$f":"MATCH(N87,'الشبكة الاستدلالية للمرتبات'!C2:P2,0)","v":2},{"$f":"INDEX('الشبكة الاستدلالية للمرتبات'!C2:P19,L87,O87)","v":{"$error":"#N/A"}},{"$f":"VLOOKUP(J87,'الشبكة الاستدلالية للمرتبات'!R3:V19,5,0)","v":{"$error":"#N/A"}},null,{"$f":"VLOOKUP(J87,'الشبكة الاستدلالية للمرتبات'!R3:S19,2,0)","v":{"$error":"#N/A"}},{"$f":"VLOOKUP(J87,'الشبكة الاستدلالية للمرتبات'!R3:X19,7,0)","v":{"$error":"#N/A"}},{"$f":"VLOOKUP(J87,'الشبكة الاستدلالية للمرتبات'!R3:T19,3,0)","v":{"$error":"#N/A"}},{"$f":"VLOOKUP(J87,'الشبكة الاستدلالية للمرتبات'!R3:U19,4,0)","v":{"$error":"#N/A"}},{"$f":"VLOOKUP(J87,'الشبكة الاستدلالية للمرتبات'!R3:W19,6,0)","v":{"$error":"#N/A"}}]
[87,null,null,null,null,null,null,null,null,null,{"$f":"IF(J88=\"\",\"\",VLOOKUP(J88,'الشبكة الاستدلالية للمرتبات'!A:C,3,0))","v":""},{"$f":"MATCH(K88,'الشبكة الاستدلالية للمرتبات'!C2:C19,0)","v":{"$error":"#N/A"}},{"$error":"#VALUE!"},null,{"$f":"MATCH(N88,'الشبكة الاستدلالية للمرتبات'!C2:P2,0)","v":2},{"$f":"INDEX('الشبكة الاستدلالية للمرتبات'!C2:P19,L88,O88)","v":{"$error":"#N/A"}},{"$f":"VLOOKUP(J88,'الشبكة الاستدلالية للمرتبات'!R3:V19,5,0)","v":{"$error":"#N/A"}},null,{"$f":"VLOOKUP(J88,'الشبكة الاستدلالية للمرتبات'!R3:S19,2,0)","v":{"$error":"#N/A"}},{"$f":"VLOOKUP(J88,'الشبكة الاستدلالية للمرتبات'!R3:X19,7,0)","v":{"$error":"#N/A"}},{"$f":"VLOOKUP(J88,'الشبكة الاستدلالية للمرتبات'!R3:T19,3,0)","v":{"$error":"#N/A"}},{"$f":"VLOOKUP(J88,'الشبكة الاستدلالية للمرتبات'!R3:U19,4,0)","v":{"$error":"#N/A"}},{"$f":"VLOOKUP(J88,'الشبكة الاستدلالية للمرتبات'!R3:W19,6,0)","v":{"$error":"#N/A"}}]
[88,null,null,null,null,null,null,null,null,null,{"$f":"IF(J89=\"\",\"\",VLOOKUP(J89,'الشبكة الاستدلالية للمرتبات'!A:C,3,0))","v":""},{"$f":"MATCH(K89,'الشبكة الاستدلالية للمرتبات'!C2:C19,0)","v":{"$error":"#N/A"}},{"$error":"#VALUE!"},null,{"$f":"MATCH(N89,'الشبكة الاستدلالية للمرتبات'!C2:P2,0)","v":2},{"$f":"INDEX('الشبكة الاستدلالية للمرتبات'!C2:P19,L89,O89)","v":{"$error":"#N/A"}},{"$f":"VLOOKUP(J89,'الشبكة الاستدلالية للمرتبات'!R3:V19,5,0)","v":{"$error":"#N/A"}},null,{"$f":"VLOOKUP(J89,'الشبكة الاستدلالية للمرتبات'!R3:S19,2,0)","v":{"$error":"#N/A"}},{"$f":"VLOOKUP(J89,'الشبكة الاستدلالية للمرتبات'!R3:X19,7,0)","v":{"$error":"#N/A"}},{"$f":"VLOOKUP(J89,'الشبكة الاستدلالية للمرتبات'!R3:T19,3,0)","v":{"$error":"#N/A"}},{"$f":"VLOOKUP(J89,'الشبكة الاستدلالية للمرتبات'!R3:U19,4,0)","v":{"$error":"#N/A"}},{"$f":"VLOOKUP(J89,'الشبكة الاستدلالية للمرتبات'!R3:W19,6,0)","v":{"$error":"#N/A"}}]
[89,null,null,null,null,null,null,null,null,null,{"$f":"IF(J90=\"\",\"\",VLOOKUP(J90,'الشبكة الاستدلالية للمرتبات'!A:C,3,0))","v":""},{"$f":"MATCH(K90,'الشبكة الاستدلالية للمرتبات'!C2:C19,0)","v":{"$error":"#N/A"}},{"$error":"#VALUE!"},null,{"$f":"MATCH(N90,'الشبكة الاستدلالية للمرتبات'!C2:P2,0)","v":2},{"$f":"INDEX('الشبكة الاستدلالية للمرتبات'!C2:P19,L90,O90)","v":{"$error":"#N/A"}},{"$f":"VLOOKUP(J90,'الشبكة الاستدلالية للمرتبات'!R3:V19,5,0)","v":{"$error":"#N/A"}},null,{"$f":"VLOOKUP(J90,'الشبكة الاستدلالية للمرتبات'!R3:S19,2,0)","v":{"$error":"#N/A"}},{"$f":"VLOOKUP(J90,'الشبكة الاستدلالية للمرتبات'!R3:X19,7,0)","v":{"$error":"#N/A"}},{"$f":"VLOOKUP(J90,'الشبكة الاستدلالية للمرتبات'!R3:T19,3,0)","v":{"$error":"#N/A"}},{"$f":"VLOOKUP(J90,'الشبكة الاستدلالية للمرتبات'!R3:U19,4,0)","v":{"$error":"#N/A"}},{"$f":"VLOOKUP(J90,'الشبكة الاستدلالية للمرتبات'!R3:W19,6,0)","v":{"$error":"#N/A"}}]
[90,null,null,null,null,null,null,null,null,null,{"$f":"IF(J91=\"\",\"\",VLOOKUP(J91,'الشبكة الاستدلالية للمرتبات'!A:C,3,0))","v":""},{"$f":"MATCH(K91,'الشبكة الاستدلالية للمرتبات'!C2:C19,0)","v":{"$error":"#N/A"}},{"$error":"#VALUE!"},null,{"$f":"MATCH(N91,'الشبكة الاستدلالية للمرتبات'!C2:P2,0)","v":2},{"$f":"INDEX('الشبكة الاستدلالية للمرتبات'!C2:P19,L91,O91)","v":{"$error":"#N/A"}},{"$f":"VLOOKUP(J91,'الشبكة الاستدلالية للمرتبات'!R3:V19,5,0)","v":{"$error":"#N/A"}},null,{"$f":"VLOOKUP(J91,'الشبكة الاستدلالية للمرتبات'!R3:S19,2,0)","v":{"$error":"#N/A"}},{"$f":"VLOOKUP(J91,'الشبكة الاستدلالية للمرتبات'!R3:X19,7,0)","v":{"$error":"#N/A"}},{"$f":"VLOOKUP(J91,'الشبكة الاستدلالية للمرتبات'!R3:T19,3,0)","v":{"$error":"#N/A"}},{"$f":"VLOOKUP(J91,'الشبكة الاستدلالية للمرتبات'!R3:U19,4,0)","v":{"$error":"#N/A"}},{"$f":"VLOOKUP(J91,'الشبكة الاستدلالية للمرتبات'!R3:W19,6,0)","v":{"$error":"#N/A"}}]
[null,null,null,null,null,null,null,null,null,null,null,null,null,null,null,null,null,null,{"$f":"VLOOKUP(J92,'الشبكة الاستدلالية للمرتبات'!R3:S19,2,0)","v":{"$error":"#N/A"}},null,{"$f":"VLOOKUP(J92,'الشبكة الاستدلالية للمرتبات'!R64:T80,3,0)","v":{"$error":"#N/A"}}]
[null,null,null,null,null,null,null,null,null,null,null,null,null,null,null,null,null,null,{"$f":"VLOOKUP(J93,'الشبكة الاستدلالية للمرتبات'!R3:S19,2,0)","v":{"$error":"#N/A"}},null,{"$f":"VLOOKUP(J93,'الشبكة الاستدلالية للمرتبات'!R65:T81,3,0)","v":{"$error":"#N/A"}}]
[null,null,null,null,null,null,null,null,null,null,null,null,null,null,null,null,null,null,{"$f":"VLOOKUP(J94,'الشبكة الاستدلالية للمرتبات'!R3:S19,2,0)","v":{"$error":"#N/A"}},null,{"$f":"VLOOKUP(J94,'الشبكة الاستدلالية للمرتبات'!R66:T82,3,0)","v":{"$error":"#N/A"}}]
[null,null,null,null,null,null,null,null,null,null,null,null,null,null,null,null,null,null,{"$f":"VLOOKUP(J95,'الشبكة الاستدلالية للمرتبات'!R3:S19,2,0)","v":{"$error":"#N/A"}},null,{"$f":"VLOOKUP(J95,'الشبكة الاستدلالية للمرتبات'!R67:T83,3,0)","v":{"$error":"#N/A"}}]
[null,null,null,null,null,null,null,null,null,null,null,null,null,null,null,null,null,null,{"$f":"VLOOKUP(J96,'الشبكة الاستدلالية للمرتبات'!R3:S19,2,0)","v":{"$error":"#N/A"}},null,{"$f":"VLOOKUP(J96,'الشبكة الاستدلالية للمرتبات'!R68:T84,3,0)","v":{"$error":"#N/A"}}]
[null,null,null,null,null,null,null,null,null,null,null,null,null,null,null,null,null,null,{"$f":"VLOOKUP(J97,'الشبكة الاستدلالية للمرتبات'!R3:S19,2,0)","v":{"$error":"#N/A"}},null,{"$f":"VLOOKUP(J97,'الشبكة الاستدلالية للمرتبات'!R69:T85,3,0)","v":{"$error":"#N/A"}}]
[null,null,null,null,null,null,null,null,null,null,null,null,null,null,null,null,null,null,{"$f":"VLOOKUP(J98,'الشبكة الاستدلالية للمرتبات'!R3:S19,2,0)","v":{"$error":"#N/A"}},null,{"$f":"VLOOKUP(J98,'الشبكة الاستدلالية للمرتبات'!R70:T86,3,0)","v":{"$error":"#N/A"}}]
[null,null,null,null,null,null,null,null,null,null,null,null,null,null,null,null,null,null,{"$f":"VLOOKUP(J99,'الشبكة الاستدلالية للمرتبات'!R3:S19,2,0)","v":{"$error":"#N/A"}},null,{"$f":"VLOOKUP(J99,'الشبكة الاستدلالية للمرتبات'!R71:T87,3,0)","v":{"$error":"#N/A"}}]
[null,null,null,null,null,null,null,null,null,null,null,null,null,null,null,null,null,null,{"$f":"VLOOKUP(J100,'الشبكة الاستدلالية للمرتبات'!R3:S19,2,0)","v":{"$error":"#N/A"}},null,{"$f":"VLOOKUP(J100,'الشبكة الاستدلالية للمرتبات'!R72:T88,3,0)","v":{"$error":"#N/A"}}]
[null,null,null,null,null,null,null,null,null,null,null,null,null,null,null,null,null,null,{"$f":"VLOOKUP(J101,'الشبكة الاستدلالية للمرتبات'!R3:S19,2,0)","v":{"$error":"#N/A"}}]
[null,null,null,null,null,null,null,null,null,null,null,null,null,null,null,null,null,null,{"$f":"VLOOKUP(J102,'الشبكة الاستدلالية للمرتبات'!R3:S19,2,0)","v":{"$error":"#N/A"}}]
[null,null,null,null,null,null,null,null,null,null,null,null,null,null,null,null,null,null,{"$f":"VLOOKUP(J103,'الشبكة الاستدلالية للمرتبات'!R104:S120,2,0)","v":{"$error":"#N/A"}}]
[null,null,null,null,null,null,null,null,null,null,null,null,null,null,null,null,null,null,{"$f":"VLOOKUP(J104,'الشبكة الاستدلالية للمرتبات'!R105:S121,2,0)","v":{"$error":"#N/A"}}]
[null,null,null,null,null,null,null,null,null,null,null,null,null,null,null,null,null,null,{"$f":"VLOOKUP(J105,'الشبكة الاستدلالية للمرتبات'!R106:S122,2,0)","v":{"$error":"#N/A"}}]
[null,null,null,null,null,null,null,null,null,null,null,null,null,null,null,null,null,null,{"$f":"VLOOKUP(J106,'الشبكة الاستدلالية للمرتبات'!R107:S123,2,0)","v":{"$error":"#N/A"}}]
[null,null,null,null,null,null,null,null,null,null,null,null,null,null,null,null,null,null,{"$f":"VLOOKUP(J107,'الشبكة الاستدلالية للمرتبات'!R108:S124,2,0)","v":{"$error":"#N/A"}}]
[null,null,null,null,null,null,null,null,null,null,null,null,null,null,null,null,null,null,{"$f":"VLOOKUP(J108,'الشبكة الاستدلالية للمرتبات'!R109:S125,2,0)","v":{"$error":"#N/A"}}]
[null,null,null,null,null,null,null,null,null,null,null,null,null,null,null,null,null,null,{"$f":"VLOOKUP(J109,'الشبكة الاستدلالية للمرتبات'!R110:S126,2,0)","v":{"$error":"#N/A"}}]
[null,null,null,null,null,null,null,null,null,null,null,null,null,null,null,null,null,null,{"$f":"VLOOKUP(J110,'الشبكة الاستدلالية للمرتبات'!R111:S127,2,0)","v":{"$error":"#N/A"}}]
[null,null,null,null,null,null,null,null,null,null,null,null,null,null,null,null,null,null,{"$f":"VLOOKUP(J111,'الشبكة الاستدلالية للمرتبات'!R112:S128,2,0)","v":{"$error":"#N/A"}}]
[null,null,null,null,null,null,null,null,null,null,null,null,null,null,null,null,null,null,{"$f":"VLOOKUP(J112,'الشبكة الاستدلالية للمرتبات'!R113:S129,2,0)","v":{"$error":"#N/A"}}]
[null,null,null,null,null,null,null,null,null,null,null,null,null,null,null,null,null,null,{"$f":"VLOOKUP(J113,'الشبكة الاستدلالية للمرتبات'!R114:S130,2,0)","v":{"$error":"#N/A"}}]
[null,null,null,null,null,null,null,null,null,null,null,null,null,null,null,null,null,null,{"$f":"VLOOKUP(J114,'الشبكة الاستدلالية للمرتبات'!R115:S131,2,0)","v":{"$error":"#N/A"}}]
[null,null,null,null,null,null,null,null,null,null,null,null,null,null,null,null,null,null,{"$f":"VLOOKUP(J115,'الشبكة الاستدلالية للمرتبات'!R116:S132,2,0)","v":{"$error":"#N/A"}}]
[null,null,null,null,null,null,null,null,null,null,null,null,null,null,null,null,null,null,{"$f":"VLOOKUP(J116,'الشبكة الاستدلالية للمرتبات'!R117:S133,2,0)","v":{"$error":"#N/A"}}]
[null,null,null,null,null,null,null,null,null,null,null,null,null,null,null,null,null,null,{"$f":"VLOOKUP(J117,'الشبكة الاستدلالية للمرتبات'!R118:S134,2,0)","v":{"$error":"#N/A"}}]
[null,null,null,null,null,null,null,null,null,null,null,null,null,null,null,null,null,null,{"$f":"VLOOKUP(J118,'الشبكة الاستدلالية للمرتبات'!R119:S135,2,0)","v":{"$error":"#N/A"}}]
[null,null,null,null,null,null,null,null,null,null,null,null,null,null,null,null,null,null,{"$f":"VLOOKUP(J119,'الشبكة الاستدلالية للمرتبات'!R120:S136,2,0)","v":{"$error":"#N/A"}}]
[null,null,null,null,null,null,null,null,null,null,null,null,null,null,null,null,null,null,{"$f":"VLOOKUP(J120,'الشبكة الاستدلالية للمرتبات'!R121:S137,2,0)","v":{"$error":"#N/A"}}]
[null,null,null,null,null,null,null,null,null,null,null,null,null,null,null,null,null,null,{"$f":"VLOOKUP(J121,'الشبكة الاستدلالية للمرتبات'!R122:S138,2,0)","v":{"$error":"#N/A"}}]
[null,null,null,null,null,null,null,null,null,null,null,null,null,null,null,null,null,null,{"$f":"VLOOKUP(J122,'الشبكة الاستدلالية للمرتبات'!R123:S139,2,0)","v":{"$error":"#N/A"}}]
[]
[]
[]
[]
[]
[]
[]
[]
[]
[]
[]
[]
[]
[]
[]
[]
[]
[]
[]
[]
[]
[]
[]
[]
[]
[]
[]
[]
[]
[]
[]
[]
[]
[]
[]
[]
[]
[null,null,null,null,null,null,null,null,null,null,null,null,null,null,null,null,null,null,{"$f":"VLOOKUP(J160,'الشبكة الاستدلالية للمرتبات'!R161:S177,2,0)","v":{"$error":"#N/A"}}]
[null,null,null,null,null,null,null,null,null,null,null,null,null,null,null,null,null,null,{"$f":"VLOOKUP(J161,'الشبكة الاستدلالية للمرتبات'!R162:S178,2,0)","v":{"$error":"#N/A"}}]
[null,null,null,null,null,null,null,null,null,null,null,null,null,null,null,null,null,null,{"$f":"VLOOKUP(J162,'الشبكة الاستدلالية للمرتبات'!R163:S179,2,0)","v":{"$error":"#N/A"}}]
[null,null,null,null,null,null,null,null,null,null,null,null,null,null,null,null,null,null,{"$f":"VLOOKUP(J163,'الشبكة الاستدلالية للمرتبات'!R164:S180,2,0)","v":{"$error":"#N/A"}}]
[null,null,null,null,null,null,null,null,null,null,{"$f":"IF(J164=\"\",\"\",VLOOKUP(J164,'الشبكة الاستدلالية للمرتبات'!A:C,3,0))","v":""},null,null,null,null,null,null,null,{"$f":"VLOOKUP(J164,'الشبكة الاستدلالية للمرتبات'!R165:S181,2,0)","v":{"$error":"#N/A"}}]
[null,null,null,null,null,null,null,null,null,null,{"$f":"IF(J165=\"\",\"\",VLOOKUP(J165,'الشبكة الاستدلالية للمرتبات'!A:C,3,0))","v":""},null,null,null,null,null,null,null,{"$f":"VLOOKUP(J165,'الشبكة الاستدلالية للمرتبات'!R166:S182,2,0)","v":{"$error":"#N/A"}}]
[null,null,null,null,null,null,null,null,null,null,{"$f":"IF(J166=\"\",\"\",VLOOKUP(J166,'الشبكة الاستدلالية للمرتبات'!A:C,3,0))","v":""},null,null,null,null,null,null,null,{"$f":"VLOOKUP(J166,'الشبكة الاستدلالية للمرتبات'!R167:S183,2,0)","v":{"$error":"#N/A"}}]
[null,null,null,null,null,null,null,null,null,null,{"$f":"IF(J167=\"\",\"\",VLOOKUP(J167,'الشبكة الاستدلالية للمرتبات'!A:C,3,0))","v":""},null,null,null,null,null,null,null,{"$f":"VLOOKUP(J167,'الشبكة الاستدلالية للمرتبات'!R168:S184,2,0)","v":{"$error":"#N/A"}}]
[null,null,null,null,null,null,null,null,null,null,{"$f":"IF(J168=\"\",\"\",VLOOKUP(J168,'الشبكة الاستدلالية للمرتبات'!A:C,3,0))","v":""},null,null,null,null,null,null,null,{"$f":"VLOOKUP(J168,'الشبكة الاستدلالية للمرتبات'!R169:S185,2,0)","v":{"$error":"#N/A"}}]
[null,null,null,null,null,null,null,null,null,null,{"$f":"IF(J169=\"\",\"\",VLOOKUP(J169,'الشبكة الاستدلالية للمرتبات'!A:C,3,0))","v":""},null,null,null,null,null,null,null,{"$f":"VLOOKUP(J169,'الشبكة الاستدلالية للمرتبات'!R170:S186,2,0)","v":{"$error":"#N/A"}}]
[null,null,null,null,null,null,null,null,null,null,{"$f":"IF(J170=\"\",\"\",VLOOKUP(J170,'الشبكة الاستدلالية للمرتبات'!A:C,3,0))","v":""},null,null,null,null,null,null,null,{"$f":"VLOOKUP(J170,'الشبكة الاستدلالية للمرتبات'!R171:S187,2,0)","v":{"$error":"#N/A"}}]
[null,null,null,null,null,null,null,null,null,null,{"$f":"IF(J171=\"\",\"\",VLOOKUP(J171,'الشبكة الاستدلالية للمرتبات'!A:C,3,0))","v":""},null,null,null,null,null,null,null,{"$f":"VLOOKUP(J171,'الشبكة الاستدلالية للمرتبات'!R172:S188,2,0)","v":{"$error":"#N/A"}}]
[null,null,null,null,null,null,null,null,null,null,{"$f":"IF(J172=\"\",\"\",VLOOKUP(J172,'الشبكة الاستدلالية للمرتبات'!A:C,3,0))","v":""},null,null,null,null,null,null,null,{"$f":"VLOOKUP(J172,'الشبكة الاستدلالية للمرتبات'!R173:S189,2,0)","v":{"$error":"#N/A"}}]
[null,null,null,null,null,null,null,null,null,null,{"$f":"IF(J173=\"\",\"\",VLOOKUP(J173,'الشبكة الاستدلالية للمرتبات'!A:C,3,0))","v":""},null,null,null,null,null,null,null,{"$f":"VLOOKUP(J173,'الشبكة الاستدلالية للمرتبات'!R174:S190,2,0)","v":{"$error":"#N/A"}}]
[null,null,null,null,null,null,null,null,null,null,{"$f":"IF(J174=\"\",\"\",VLOOKUP(J174,'الشبكة الاستدلالية للمرتبات'!A:C,3,0))","v":""},null,null,null,null,null,null,null,{"$f":"VLOOKUP(J174,'الشبكة الاستدلالية للمرتبات'!R175:S191,2,0)","v":{"$error":"#N/A"}}]
[null,null,null,null,null,null,null,null,null,null,{"$f":"IF(J175=\"\",\"\",VLOOKUP(J175,'الشبكة الاستدلالية للمرتبات'!A:C,3,0))","v":""},null,null,null,null,null,null,null,{"$f":"VLOOKUP(J175,'الشبكة الاستدلالية للمرتبات'!R176:S192,2,0)","v":{"$error":"#N/A"}}]
[null,null,null,null,null,null,null,null,null,null,{"$f":"IF(J176=\"\",\"\",VLOOKUP(J176,'الشبكة الاستدلالية للمرتبات'!A:C,3,0))","v":""},null,null,null,null,null,null,null,{"$f":"VLOOKUP(J176,'الشبكة الاستدلالية للمرتبات'!R177:S193,2,0)","v":{"$error":"#N/A"}}]
[null,null,null,null,null,null,null,null,null,null,{"$f":"IF(J177=\"\",\"\",VLOOKUP(J177,'الشبكة الاستدلالية للمرتبات'!A:C,3,0))","v":""},null,null,null,null,null,null,null,{"$f":"VLOOKUP(J177,'الشبكة الاستدلالية للمرتبات'!R178:S194,2,0)","v":{"$error":"#N/A"}}]
[null,null,null,null,null,null,null,null,null,null,{"$f":"IF(J178=\"\",\"\",VLOOKUP(J178,'الشبكة الاستدلالية للمرتبات'!A:C,3,0))","v":""},null,null,null,null,null,null,null,{"$f":"VLOOKUP(J178,'الشبكة الاستدلالية للمرتبات'!R179:S195,2,0)","v":{"$error":"#N/A"}}]
[null,null,null,null,null,null,null,null,null,null,{"$f":"IF(J179=\"\",\"\",VLOOKUP(J179,'الشبكة الاستدلالية للمرتبات'!A:C,3,0))","v":""},null,null,null,null,null,null,null,{"$f":"VLOOKUP(J179,'الشبكة الاستدلالية للمرتبات'!R180:S196,2,0)","v":{"$error":"#N/A"}}]
[null,null,null,null,null,null,null,null,null,null,{"$f":"IF(J180=\"\",\"\",VLOOKUP(J180,'الشبكة الاستدلالية للمرتبات'!A:C,3,0))","v":""},null,null,null,null,null,null,null,{"$f":"VLOOKUP(J180,'الشبكة الاستدلالية للمرتبات'!R181:S197,2,0)","v":{"$error":"#N/A"}}]
[null,null,null,null,null,null,null,null,null,null,{"$f":"IF(J181=\"\",\"\",VLOOKUP(J181,'الشبكة الاستدلالية للمرتبات'!A:C,3,0))","v":""},null,null,null,null,null,null,null,{"$f":"VLOOKUP(J181,'الشبكة الاستدلالية للمرتبات'!R182:S198,2,0)","v":{"$error":"#N/A"}}]
[null,null,null,null,null,null,null,null,null,null,{"$f":"IF(J182=\"\",\"\",VLOOKUP(J182,'الشبكة الاستدلالية للمرتبات'!A:C,3,0))","v":""},null,null,null,null,null,null,null,{"$f":"VLOOKUP(J182,'الشبكة الاستدلالية للمرتبات'!R183:S199,2,0)","v":{"$error":"#N/A"}}]
[null,null,null,null,null,null,null,null,null,null,{"$f":"IF(J183=\"\",\"\",VLOOKUP(J183,'الشبكة الاستدلالية للمرتبات'!A:C,3,0))","v":""},null,null,null,null,null,null,null,{"$f":"VLOOKUP(J183,'الشبكة الاستدلالية للمرتبات'!R184:S200,2,0)","v":{"$error":"#N/A"}}]
[null,null,null,null,null,null,null,null,null,null,{"$f":"IF(J184=\"\",\"\",VLOOKUP(J184,'الشبكة الاستدلالية للمرتبات'!A:C,3,0))","v":""},null,null,null,null,null,null,null,{"$f":"VLOOKUP(J184,'الشبكة الاستدلالية للمرتبات'!R185:S201,2,0)","v":{"$error":"#N/A"}}]
[null,null,null,null,null,null,null,null,null,null,{"$f":"IF(J185=\"\",\"\",VLOOKUP(J185,'الشبكة الاستدلالية للمرتبات'!A:C,3,0))","v":""},null,null,null,null,null,null,null,{"$f":"VLOOKUP(J185,'الشبكة الاستدلالية للمرتبات'!R186:S202,2,0)","v":{"$error":"#N/A"}}]
[null,null,null,null,null,null,null,null,null,null,{"$f":"IF(J186=\"\",\"\",VLOOKUP(J186,'الشبكة الاستدلالية للمرتبات'!A:C,3,0))","v":""},null,null,null,null,null,null,null,{"$f":"VLOOKUP(J186,'الشبكة الاستدلالية للمرتبات'!R187:S203,2,0)","v":{"$error":"#N/A"}}]
[null,null,null,null,null,null,null,null,null,null,{"$f":"IF(J187=\"\",\"\",VLOOKUP(J187,'الشبكة الاستدلالية للمرتبات'!A:C,3,0))","v":""},null,null,null,null,null,null,null,{"$f":"VLOOKUP(J187,'الشبكة الاستدلالية للمرتبات'!R188:S204,2,0)","v":{"$error":"#N/A"}}]
[null,null,null,null,null,null,null,null,null,null,{"$f":"IF(J188=\"\",\"\",VLOOKUP(J188,'الشبكة الاستدلالية للمرتبات'!A:C,3,0))","v":""},null,null,null,null,null,null,null,{"$f":"VLOOKUP(J188,'الشبكة الاستدلالية للمرتبات'!R189:S205,2,0)","v":{"$error":"#N/A"}}]
[null,null,null,null,null,null,null,null,null,null,{"$f":"IF(J189=\"\",\"\",VLOOKUP(J189,'الشبكة الاستدلالية للمرتبات'!A:C,3,0))","v":""},null,null,null,null,null,null,null,{"$f":"VLOOKUP(J189,'الشبكة الاستدلالية للمرتبات'!R190:S206,2,0)","v":{"$error":"#N/A"}}]
[null,null,null,null,null,null,null,null,null,null,{"$f":"IF(J190=\"\",\"\",VLOOKUP(J190,'الشبكة الاستدلالية للمرتبات'!A:C,3,0))","v":""},null,null,null,null,null,null,null,{"$f":"VLOOKUP(J190,'الشبكة الاستدلالية للمرتبات'!R191:S207,2,0)","v":{"$error":"#N/A"}}]
[null,null,null,null,null,null,null,null,null,null,{"$f":"IF(J191=\"\",\"\",VLOOKUP(J191,'الشبكة الاستدلالية للمرتبات'!A:C,3,0))","v":""},null,null,null,null,null,null,null,{"$f":"VLOOKUP(J191,'الشبكة الاستدلالية للمرتبات'!R192:S208,2,0)","v":{"$error":"#N/A"}}]
[null,null,null,null,null,null,null,null,null,null,{"$f":"IF(J192=\"\",\"\",VLOOKUP(J192,'الشبكة الاستدلالية للمرتبات'!A:C,3,0))","v":""},null,null,null,null,null,null,null,{"$f":"VLOOKUP(J192,'الشبكة الاستدلالية للمرتبات'!R193:S209,2,0)","v":{"$error":"#N/A"}}]
[null,null,null,null,null,null,null,null,null,null,{"$f":"IF(J193=\"\",\"\",VLOOKUP(J193,'الشبكة الاستدلالية للمرتبات'!A:C,3,0))","v":""},null,null,null,null,null,null,null,{"$f":"VLOOKUP(J193,'الشبكة الاستدلالية للمرتبات'!R194:S210,2,0)","v":{"$error":"#N/A"}}]
[null,null,null,null,null,null,null,null,null,null,{"$f":"IF(J194=\"\",\"\",VLOOKUP(J194,'الشبكة الاستدلالية للمرتبات'!A:C,3,0))","v":""},null,null,null,null,null,null,null,{"$f":"VLOOKUP(J194,'الشبكة الاستدلالية للمرتبات'!R195:S211,2,0)","v":{"$error":"#N/A"}}]
[null,null,null,null,null,null,null,null,null,null,{"$f":"IF(J195=\"\",\"\",VLOOKUP(J195,'الشبكة الاستدلالية للمرتبات'!A:C,3,0))","v":""},null,null,null,null,null,null,null,{"$f":"VLOOKUP(J195,'الشبكة الاستدلالية للمرتبات'!R196:S212,2,0)","v":{"$error":"#N/A"}}]
[null,null,null,null,null,null,null,null,null,null,{"$f":"IF(J196=\"\",\"\",VLOOKUP(J196,'الشبكة الاستدلالية للمرتبات'!A:C,3,0))","v":""},null,null,null,null,null,null,null,{"$f":"VLOOKUP(J196,'الشبكة الاستدلالية للمرتبات'!R197:S213,2,0)","v":{"$error":"#N/A"}}]
[null,null,null,null,null,null,null,null,null,null,{"$f":"IF(J197=\"\",\"\",VLOOKUP(J197,'الشبكة الاستدلالية للمرتبات'!A:C,3,0))","v":""},null,null,null,null,null,null,null,{"$f":"VLOOKUP(J197,'الشبكة الاستدلالية للمرتبات'!R198:S214,2,0)","v":{"$error":"#N/A"}}]
[null,null,null,null,null,null,null,null,null,null,{"$f":"IF(J198=\"\",\"\",VLOOKUP(J198,'الشبكة الاستدلالية للمرتبات'!A:C,3,0))","v":""},null,null,null,null,null,null,null,{"$f":"VLOOKUP(J198,'الشبكة الاستدلالية للمرتبات'!R199:S215,2,0)","v":{"$error":"#N/A"}}]
[null,null,null,null,null,null,null,null,null,null,{"$f":"IF(J199=\"\",\"\",VLOOKUP(J199,'الشبكة الاستدلالية للمرتبات'!A:C,3,0))","v":""},null,null,null,null,null,null,null,{"$f":"VLOOKUP(J199,'الشبكة الاستدلالية للمرتبات'!R200:S216,2,0)","v":{"$error":"#N/A"}}]
[null,null,null,null,null,null,null,null,null,null,{"$f":"IF(J200=\"\",\"\",VLOOKUP(J200,'الشبكة الاستدلالية للمرتبات'!A:C,3,0))","v":""},null,null,null,null,null,null,null,{"$f":"VLOOKUP(J200,'الشبكة الاستدلالية للمرتبات'!R201:S217,2,0)","v":{"$error":"#N/A"}}]
[null,null,null,null,null,null,null,null,null,null,{"$f":"IF(J201=\"\",\"\",VLOOKUP(J201,'الشبكة الاستدلالية للمرتبات'!A:C,3,0))","v":""},null,null,null,null,null,null,null,{"$f":"VLOOKUP(J201,'الشبكة الاستدلالية للمرتبات'!R202:S218,2,0)","v":{"$error":"#N/A"}}]
[null,null,null,null,null,null,null,null,null,null,{"$f":"IF(J202=\"\",\"\",VLOOKUP(J202,'الشبكة الاستدلالية للمرتبات'!A:C,3,0))","v":""},null,null,null,null,null,null,null,{"$f":"VLOOKUP(J202,'الشبكة الاستدلالية للمرتبات'!R203:S219,2,0)","v":{"$error":"#N/A"}}]
[null,null,null,null,null,null,null,null,null,null,{"$f":"IF(J203=\"\",\"\",VLOOKUP(J203,'الشبكة الاستدلالية للمرتبات'!A:C,3,0))","v":""},null,null,null,null,null,null,null,{"$f":"VLOOKUP(J203,'الشبكة الاستدلالية للمرتبات'!R204:S220,2,0)","v":{"$error":"#N/A"}}]
[null,null,null,null,null,null,null,null,null,null,{"$f":"IF(J204=\"\",\"\",VLOOKUP(J204,'الشبكة الاستدلالية للمرتبات'!A:C,3,0))","v":""},null,null,null,null,null,null,null,{"$f":"VLOOKUP(J204,'الشبكة الاستدلالية للمرتبات'!R205:S221,2,0)","v":{"$error":"#N/A"}}]
[null,null,null,null,null,null,null,null,null,null,{"$f":"IF(J205=\"\",\"\",VLOOKUP(J205,'الشبكة الاستدلالية للمرتبات'!A:C,3,0))","v":""},null,null,null,null,null,null,null,{"$f":"VLOOKUP(J205,'الشبكة الاستدلالية للمرتبات'!R206:S222,2,0)","v":{"$error":"#N/A"}}]
[null,null,null,null,null,null,null,null,null,null,{"$f":"IF(J206=\"\",\"\",VLOOKUP(J206,'الشبكة الاستدلالية للمرتبات'!A:C,3,0))","v":""},null,null,null,null,null,null,null,{"$f":"VLOOKUP(J206,'الشبكة الاستدلالية للمرتبات'!R207:S223,2,0)","v":{"$error":"#N/A"}}]
[null,null,null,null,null,null,null,null,null,null,{"$f":"IF(J207=\"\",\"\",VLOOKUP(J207,'الشبكة الاستدلالية للمرتبات'!A:C,3,0))","v":""},null,null,null,null,null,null,null,{"$f":"VLOOKUP(J207,'الشبكة الاستدلالية للمرتبات'!R208:S224,2,0)","v":{"$error":"#N/A"}}]
[null,null,null,null,null,null,null,null,null,null,{"$f":"IF(J208=\"\",\"\",VLOOKUP(J208,'الشبكة الاستدلالية للمرتبات'!A:C,3,0))","v":""},null,null,null,null,null,null,null,{"$f":"VLOOKUP(J208,'الشبكة الاستدلالية للمرتبات'!R209:S225,2,0)","v":{"$error":"#N/A"}}]
[null,null,null,null,null,null,null,null,null,null,{"$f":"IF(J209=\"\",\"\",VLOOKUP(J209,'الشبكة الاستدلالية للمرتبات'!A:C,3,0))","v":""},null,null,null,null,null,null,null,{"$f":"VLOOKUP(J209,'الشبكة الاستدلالية للمرتبات'!R210:S226,2,0)","v":{"$error":"#N/A"}}]
[null,null,null,null,null,null,null,null,null,null,{"$f":"IF(J210=\"\",\"\",VLOOKUP(J210,'الشبكة الاستدلالية للمرتبات'!A:C,3,0))","v":""},null,null,null,null,null,null,null,{"$f":"VLOOKUP(J210,'الشبكة الاستدلالية للمرتبات'!R211:S227,2,0)","v":{"$error":"#N/A"}}]
[null,null,null,null,null,null,null,null,null,null,{"$f":"IF(J211=\"\",\"\",VLOOKUP(J211,'الشبكة الاستدلالية للمرتبات'!A:C,3,0))","v":""},null,null,null,null,null,null,null,{"$f":"VLOOKUP(J211,'الشبكة الاستدلالية للمرتبات'!R212:S228,2,0)","v":{"$error":"#N/A"}}]
[null,null,null,null,null,null,null,null,null,null,{"$f":"IF(J212=\"\",\"\",VLOOKUP(J212,'الشبكة الاستدلالية للمرتبات'!A:C,3,0))","v":""},null,null,null,null,null,null,null,{"$f":"VLOOKUP(J212,'الشبكة الاستدلالية للمرتبات'!R213:S229,2,0)","v":{"$error":"#N/A"}}]
[null,null,null,null,null,null,null,null,null,null,{"$f":"IF(J213=\"\",\"\",VLOOKUP(J213,'الشبكة الاستدلالية للمرتبات'!A:C,3,0))","v":""},null,null,null,null,null,null,null,{"$f":"VLOOKUP(J213,'الشبكة الاستدلالية للمرتبات'!R214:S230,2,0)","v":{"$error":"#N/A"}}]
[null,null,null,null,null,null,null,null,null,null,{"$f":"IF(J214=\"\",\"\",VLOOKUP(J214,'الشبكة الاستدلالية للمرتبات'!A:C,3,0))","v":""},null,null,null,null,null,null,null,{"$f":"VLOOKUP(J214,'الشبكة الاستدلالية للمرتبات'!R215:S231,2,0)","v":{"$error":"#N/A"}}]
[null,null,null,null,null,null,null,null,null,null,{"$f":"IF(J215=\"\",\"\",VLOOKUP(J215,'الشبكة الاستدلالية للمرتبات'!A:C,3,0))","v":""},null,null,null,null,null,null,null,{"$f":"VLOOKUP(J215,'الشبكة الاستدلالية للمرتبات'!R216:S232,2,0)","v":{"$error":"#N/A"}}]
[null,null,null,null,null,null,null,null,null,null,{"$f":"IF(J216=\"\",\"\",VLOOKUP(J216,'الشبكة الاستدلالية للمرتبات'!A:C,3,0))","v":""},null,null,null,null,null,null,null,{"$f":"VLOOKUP(J216,'الشبكة الاستدلالية للمرتبات'!R217:S233,2,0)","v":{"$error":"#N/A"}}]
[null,null,null,null,null,null,null,null,null,null,{"$f":"IF(J217=\"\",\"\",VLOOKUP(J217,'الشبكة الاستدلالية للمرتبات'!A:C,3,0))","v":""},null,null,null,null,null,null,null,{"$f":"VLOOKUP(J217,'الشبكة الاستدلالية للمرتبات'!R218:S234,2,0)","v":{"$error":"#N/A"}}]
[null,null,null,null,null,null,null,null,null,null,{"$f":"IF(J218=\"\",\"\",VLOOKUP(J218,'الشبكة الاستدلالية للمرتبات'!A:C,3,0))","v":""},null,null,null,null,null,null,null,{"$f":"VLOOKUP(J218,'الشبكة الاستدلالية للمرتبات'!R219:S235,2,0)","v":{"$error":"#N/A"}}]
[null,null,null,null,null,null,null,null,null,null,{"$f":"IF(J219=\"\",\"\",VLOOKUP(J219,'الشبكة الاستدلالية للمرتبات'!A:C,3,0))","v":""},null,null,null,null,null,null,null,{"$f":"VLOOKUP(J219,'الشبكة الاستدلالية للمرتبات'!R220:S236,2,0)","v":{"$error":"#N/A"}}]
[null,null,null,null,null,null,null,null,null,null,{"$f":"IF(J220=\"\",\"\",VLOOKUP(J220,'الشبكة الاستدلالية للمرتبات'!A:C,3,0))","v":""},null,null,null,null,null,null,null,{"$f":"VLOOKUP(J220,'الشبكة الاستدلالية للمرتبات'!R221:S237,2,0)","v":{"$error":"#N/A"}}]
[null,null,null,null,null,null,null,null,null,null,{"$f":"IF(J221=\"\",\"\",VLOOKUP(J221,'الشبكة الاستدلالية للمرتبات'!A:C,3,0))","v":""},null,null,null,null,null,null,null,{"$f":"VLOOKUP(J221,'الشبكة الاستدلالية للمرتبات'!R222:S238,2,0)","v":{"$error":"#N/A"}}]
[null,null,null,null,null,null,null,null,null,null,{"$f":"IF(J222=\"\",\"\",VLOOKUP(J222,'الشبكة الاستدلالية للمرتبات'!A:C,3,0))","v":""},null,null,null,null,null,null,null,{"$f":"VLOOKUP(J222,'الشبكة الاستدلالية للمرتبات'!R223:S239,2,0)","v":{"$error":"#N/A"}}]
[null,null,null,null,null,null,null,null,null,null,{"$f":"IF(J223=\"\",\"\",VLOOKUP(J223,'الشبكة الاستدلالية للمرتبات'!A:C,3,0))","v":""},null,null,null,null,null,null,null,{"$f":"VLOOKUP(J223,'الشبكة الاستدلالية للمرتبات'!R224:S240,2,0)","v":{"$error":"#N/A"}}]
[null,null,null,null,null,null,null,null,null,null,{"$f":"IF(J224=\"\",\"\",VLOOKUP(J224,'الشبكة الاستدلالية للمرتبات'!A:C,3,0))","v":""},null,null,null,null,null,null,null,{"$f":"VLOOKUP(J224,'الشبكة الاستدلالية للمرتبات'!R225:S241,2,0)","v":{"$error":"#N/A"}}]
[null,null,null,null,null,null,null,null,null,null,{"$f":"IF(J225=\"\",\"\",VLOOKUP(J225,'الشبكة الاستدلالية للمرتبات'!A:C,3,0))","v":""},null,null,null,null,null,null,null,{"$f":"VLOOKUP(J225,'الشبكة الاستدلالية للمرتبات'!R226:S242,2,0)","v":{"$error":"#N/A"}}]
[null,null,null,null,null,null,null,null,null,null,{"$f":"IF(J226=\"\",\"\",VLOOKUP(J226,'الشبكة الاستدلالية للمرتبات'!A:C,3,0))","v":""},null,null,null,null,null,null,null,{"$f":"VLOOKUP(J226,'الشبكة الاستدلالية للمرتبات'!R227:S243,2,0)","v":{"$error":"#N/A"}}]
[null,null,null,null,null,null,null,null,null,null,{"$f":"IF(J227=\"\",\"\",VLOOKUP(J227,'الشبكة الاستدلالية للمرتبات'!A:C,3,0))","v":""},null,null,null,null,null,null,null,{"$f":"VLOOKUP(J227,'الشبكة الاستدلالية للمرتبات'!R228:S244,2,0)","v":{"$error":"#N/A"}}]
[null,null,null,null,null,null,null,null,null,null,{"$f":"IF(J228=\"\",\"\",VLOOKUP(J228,'الشبكة الاستدلالية للمرتبات'!A:C,3,0))","v":""},null,null,null,null,null,null,null,{"$f":"VLOOKUP(J228,'الشبكة الاستدلالية للمرتبات'!R229:S245,2,0)","v":{"$error":"#N/A"}}]
[null,null,null,null,null,null,null,null,null,null,{"$f":"IF(J229=\"\",\"\",VLOOKUP(J229,'الشبكة الاستدلالية للمرتبات'!A:C,3,0))","v":""},null,null,null,null,null,null,null,{"$f":"VLOOKUP(J229,'الشبكة الاستدلالية للمرتبات'!R230:S246,2,0)","v":{"$error":"#N/A"}}]
[null,null,null,null,null,null,null,null,null,null,{"$f":"IF(J230=\"\",\"\",VLOOKUP(J230,'الشبكة الاستدلالية للمرتبات'!A:C,3,0))","v":""},null,null,null,null,null,null,null,{"$f":"VLOOKUP(J230,'الشبكة الاستدلالية للمرتبات'!R231:S247,2,0)","v":{"$error":"#N/A"}}]
[null,null,null,null,null,null,null,null,null,null,{"$f":"IF(J231=\"\",\"\",VLOOKUP(J231,'الشبكة الاستدلالية للمرتبات'!A:C,3,0))","v":""},null,null,null,null,null,null,null,{"$f":"VLOOKUP(J231,'الشبكة الاستدلالية للمرتبات'!R232:S248,2,0)","v":{"$error":"#N/A"}}]
[null,null,null,null,null,null,null,null,null,null,{"$f":"IF(J232=\"\",\"\",VLOOKUP(J232,'الشبكة الاستدلالية للمرتبات'!A:C,3,0))","v":""},null,null,null,null,null,null,null,{"$f":"VLOOKUP(J232,'الشبكة الاستدلالية للمرتبات'!R233:S249,2,0)","v":{"$error":"#N/A"}}]
[null,null,null,null,null,null,null,null,null,null,{"$f":"IF(J233=\"\",\"\",VLOOKUP(J233,'الشبكة الاستدلالية للمرتبات'!A:C,3,0))","v":""},null,null,null,null,null,null,null,{"$f":"VLOOKUP(J233,'الشبكة الاستدلالية للمرتبات'!R234:S250,2,0)","v":{"$error":"#N/A"}}]
[null,null,null,null,null,null,null,null,null,null,{"$f":"IF(J234=\"\",\"\",VLOOKUP(J234,'الشبكة الاستدلالية للمرتبات'!A:C,3,0))","v":""},null,null,null,null,null,null,null,{"$f":"VLOOKUP(J234,'الشبكة الاستدلالية للمرتبات'!R235:S251,2,0)","v":{"$error":"#N/A"}}]
[null,null,null,null,null,null,null,null,null,null,{"$f":"IF(J235=\"\",\"\",VLOOKUP(J235,'الشبكة الاستدلالية للمرتبات'!A:C,3,0))","v":""},null,null,null,null,null,null,null,{"$f":"VLOOKUP(J235,'الشبكة الاستدلالية للمرتبات'!R236:S252,2,0)","v":{"$error":"#N/A"}}]
[null,null,null,null,null,null,null,null,null,null,{"$f":"IF(J236=\"\",\"\",VLOOKUP(J236,'الشبكة الاستدلالية للمرتبات'!A:C,3,0))","v":""},null,null,null,null,null,null,null,{"$f":"VLOOKUP(J236,'الشبكة الاستدلالية للمرتبات'!R237:S253,2,0)","v":{"$error":"#N/A"}}]
[null,null,null,null,null,null,null,null,null,null,{"$f":"IF(J237=\"\",\"\",VLOOKUP(J237,'الشبكة الاستدلالية للمرتبات'!A:C,3,0))","v":""},null,null,null,null,null,null,null,{"$f":"VLOOKUP(J237,'الشبكة الاستدلالية للمرتبات'!R238:S254,2,0)","v":{"$error":"#N/A"}}]
[null,null,null,null,null,null,null,null,null,null,{"$f":"IF(J238=\"\",\"\",VLOOKUP(J238,'الشبكة الاستدلالية للمرتبات'!A:C,3,0))","v":""},null,null,null,null,null,null,null,{"$f":"VLOOKUP(J238,'الشبكة الاستدلالية للمرتبات'!R239:S255,2,0)","v":{"$error":"#N/A"}}]
[null,null,null,null,null,null,null,null,null,null,{"$f":"IF(J239=\"\",\"\",VLOOKUP(J239,'الشبكة الاستدلالية للمرتبات'!A:C,3,0))","v":""},null,null,null,null,null,null,null,{"$f":"VLOOKUP(J239,'الشبكة الاستدلالية للمرتبات'!R240:S256,2,0)","v":{"$error":"#N/A"}}]
[null,null,null,null,null,null,null,null,null,null,{"$f":"IF(J240=\"\",\"\",VLOOKUP(J240,'الشبكة الاستدلالية للمرتبات'!A:C,3,0))","v":""},null,null,null,null,null,null,null,{"$f":"VLOOKUP(J240,'الشبكة الاستدلالية للمرتبات'!R241:S257,2,0)","v":{"$error":"#N/A"}}]
[null,null,null,null,null,null,null,null,null,null,{"$f":"IF(J241=\"\",\"\",VLOOKUP(J241,'الشبكة الاستدلالية للمرتبات'!A:C,3,0))","v":""},null,null,null,null,null,null,null,{"$f":"VLOOKUP(J241,'الشبكة الاستدلالية للمرتبات'!R242:S258,2,0)","v":{"$error":"#N/A"}}]
[null,null,null,null,null,null,null,null,null,null,{"$f":"IF(J242=\"\",\"\",VLOOKUP(J242,'الشبكة الاستدلالية للمرتبات'!A:C,3,0))","v":""},null,null,null,null,null,null,null,{"$f":"VLOOKUP(J242,'الشبكة الاستدلالية للمرتبات'!R243:S259,2,0)","v":{"$error":"#N/A"}}]
[null,null,null,null,null,null,null,null,null,null,{"$f":"IF(J243=\"\",\"\",VLOOKUP(J243,'الشبكة الاستدلالية للمرتبات'!A:C,3,0))","v":""},null,null,null,null,null,null,null,{"$f":"VLOOKUP(J243,'الشبكة الاستدلالية للمرتبات'!R244:S260,2,0)","v":{"$error":"#N/A"}}]
[null,null,null,null,null,null,null,null,null,null,{"$f":"IF(J244=\"\",\"\",VLOOKUP(J244,'الشبكة الاستدلالية للمرتبات'!A:C,3,0))","v":""},null,null,null,null,null,null,null,{"$f":"VLOOKUP(J244,'الشبكة الاستدلالية للمرتبات'!R245:S261,2,0)","v":{"$error":"#N/A"}}]
[null,null,null,null,null,null,null,null,null,null,{"$f":"IF(J245=\"\",\"\",VLOOKUP(J245,'الشبكة الاستدلالية للمرتبات'!A:C,3,0))","v":""},null,null,null,null,null,null,null,{"$f":"VLOOKUP(J245,'الشبكة الاستدلالية للمرتبات'!R246:S262,2,0)","v":{"$error":"#N/A"}}]
[null,null,null,null,null,null,null,null,null,null,{"$f":"IF(J246=\"\",\"\",VLOOKUP(J246,'الشبكة الاستدلالية للمرتبات'!A:C,3,0))","v":""},null,null,null,null,null,null,null,{"$f":"VLOOKUP(J246,'الشبكة الاستدلالية للمرتبات'!R247:S263,2,0)","v":{"$error":"#N/A"}}]
[null,null,null,null,null,null,null,null,null,null,{"$f":"IF(J247=\"\",\"\",VLOOKUP(J247,'الشبكة الاستدلالية للمرتبات'!A:C,3,0))","v":""},null,null,null,null,null,null,null,{"$f":"VLOOKUP(J247,'الشبكة الاستدلالية للمرتبات'!R248:S264,2,0)","v":{"$error":"#N/A"}}]
[null,null,null,null,null,null,null,null,null,null,{"$f":"IF(J248=\"\",\"\",VLOOKUP(J248,'الشبكة الاستدلالية للمرتبات'!A:C,3,0))","v":""},null,null,null,null,null,null,null,{"$f":"VLOOKUP(J248,'الشبكة الاستدلالية للمرتبات'!R249:S265,2,0)","v":{"$error":"#N/A"}}]
[null,null,null,null,null,null,null,null,null,null,{"$f":"IF(J249=\"\",\"\",VLOOKUP(J249,'الشبكة الاستدلالية للمرتبات'!A:C,3,0))","v":""},null,null,null,null,null,null,null,{"$f":"VLOOKUP(J249,'الشبكة الاستدلالية للمرتبات'!R250:S266,2,0)","v":{"$error":"#N/A"}}]
[null,null,null,null,null,null,null,null,null,null,{"$f":"IF(J250=\"\",\"\",VLOOKUP(J250,'الشبكة الاستدلالية للمرتبات'!A:C,3,0))","v":""},null,null,null,null,null,null,null,{"$f":"VLOOKUP(J250,'الشبكة الاستدلالية للمرتبات'!R251:S267,2,0)","v":{"$error":"#N/A"}}]
[null,null,null,null,null,null,null,null,null,null,{"$f":"IF(J251=\"\",\"\",VLOOKUP(J251,'الشبكة الاستدلالية للمرتبات'!A:C,3,0))","v":""},null,null,null,null,null,null,null,{"$f":"VLOOKUP(J251,'الشبكة الاستدلالية للمرتبات'!R252:S268,2,0)","v":{"$error":"#N/A"}}]
[null,null,null,null,null,null,null,null,null,null,{"$f":"IF(J252=\"\",\"\",VLOOKUP(J252,'الشبكة الاستدلالية للمرتبات'!A:C,3,0))","v":""},null,null,null,null,null,null,null,{"$f":"VLOOKUP(J252,'الشبكة الاستدلالية للمرتبات'!R253:S269,2,0)","v":{"$error":"#N/A"}}]
[null,null,null,null,null,null,null,null,null,null,{"$f":"IF(J253=\"\",\"\",VLOOKUP(J253,'الشبكة الاستدلالية للمرتبات'!A:C,3,0))","v":""},null,null,null,null,null,null,null,{"$f":"VLOOKUP(J253,'الشبكة الاستدلالية للمرتبات'!R254:S270,2,0)","v":{"$error":"#N/A"}}]
[null,null,null,null,null,null,null,null,null,null,{"$f":"IF(J254=\"\",\"\",VLOOKUP(J254,'الشبكة الاستدلالية للمرتبات'!A:C,3,0))","v":""},null,null,null,null,null,null,null,{"$f":"VLOOKUP(J254,'الشبكة الاستدلالية للمرتبات'!R255:S271,2,0)","v":{"$error":"#N/A"}}]
[null,null,null,null,null,null,null,null,null,null,{"$f":"IF(J255=\"\",\"\",VLOOKUP(J255,'الشبكة الاستدلالية للمرتبات'!A:C,3,0))","v":""},null,null,null,null,null,null,null,{"$f":"VLOOKUP(J255,'الشبكة الاستدلالية للمرتبات'!R256:S272,2,0)","v":{"$error":"#N/A"}}]
[null,null,null,null,null,null,null,null,null,null,{"$f":"IF(J256=\"\",\"\",VLOOKUP(J256,'الشبكة الاستدلالية للمرتبات'!A:C,3,0))","v":""},null,null,null,null,null,null,null,{"$f":"VLOOKUP(J256,'الشبكة الاستدلالية للمرتبات'!R257:S273,2,0)","v":{"$error":"#N/A"}}]
[null,null,null,null,null,null,null,null,null,null,{"$f":"IF(J257=\"\",\"\",VLOOKUP(J257,'الشبكة الاستدلالية للمرتبات'!A:C,3,0))","v":""},null,null,null,null,null,null,null,{"$f":"VLOOKUP(J257,'الشبكة الاستدلالية للمرتبات'!R258:S274,2,0)","v":{"$error":"#N/A"}}]
[null,null,null,null,null,null,null,null,null,null,{"$f":"IF(J258=\"\",\"\",VLOOKUP(J258,'الشبكة الاستدلالية للمرتبات'!A:C,3,0))","v":""},null,null,null,null,null,null,null,{"$f":"VLOOKUP(J258,'الشبكة الاستدلالية للمرتبات'!R259:S275,2,0)","v":{"$error":"#N/A"}}]
[null,null,null,null,null,null,null,null,null,null,{"$f":"IF(J259=\"\",\"\",VLOOKUP(J259,'الشبكة الاستدلالية للمرتبات'!A:C,3,0))","v":""},null,null,null,null,null,null,null,{"$f":"VLOOKUP(J259,'الشبكة الاستدلالية للمرتبات'!R260:S276,2,0)","v":{"$error":"#N/A"}}]
[null,null,null,null,null,null,null,null,null,null,{"$f":"IF(J260=\"\",\"\",VLOOKUP(J260,'الشبكة الاستدلالية للمرتبات'!A:C,3,0))","v":""},null,null,null,null,null,null,null,{"$f":"VLOOKUP(J260,'الشبكة الاستدلالية للمرتبات'!R261:S277,2,0)","v":{"$error":"#N/A"}}]
[null,null,null,null,null,null,null,null,null,null,{"$f":"IF(J261=\"\",\"\",VLOOKUP(J261,'الشبكة الاستدلالية للمرتبات'!A:C,3,0))","v":""},null,null,null,null,null,null,null,{"$f":"VLOOKUP(J261,'الشبكة الاستدلالية للمرتبات'!R262:S278,2,0)","v":{"$error":"#N/A"}}]
[null,null,null,null,null,null,null,null,null,null,{"$f":"IF(J262=\"\",\"\",VLOOKUP(J262,'الشبكة الاستدلالية للمرتبات'!A:C,3,0))","v":""},null,null,null,null,null,null,null,{"$f":"VLOOKUP(J262,'الشبكة الاستدلالية للمرتبات'!R263:S279,2,0)","v":{"$error":"#N/A"}}]
[null,null,null,null,null,null,null,null,null,null,{"$f":"IF(J263=\"\",\"\",VLOOKUP(J263,'الشبكة الاستدلالية للمرتبات'!A:C,3,0))","v":""},null,null,null,null,null,null,null,{"$f":"VLOOKUP(J263,'الشبكة الاستدلالية للمرتبات'!R264:S280,2,0)","v":{"$error":"#N/A"}}]
[null,null,null,null,null,null,null,null,null,null,{"$f":"IF(J264=\"\",\"\",VLOOKUP(J264,'الشبكة الاستدلالية للمرتبات'!A:C,3,0))","v":""},null,null,null,null,null,null,null,{"$f":"VLOOKUP(J264,'الشبكة الاستدلالية للمرتبات'!R265:S281,2,0)","v":{"$error":"#N/A"}}]
[null,null,null,null,null,null,null,null,null,null,{"$f":"IF(J265=\"\",\"\",VLOOKUP(J265,'الشبكة الاستدلالية للمرتبات'!A:C,3,0))","v":""},null,null,null,null,null,null,null,{"$f":"VLOOKUP(J265,'الشبكة الاستدلالية للمرتبات'!R266:S282,2,0)","v":{"$error":"#N/A"}}]
[null,null,null,null,null,null,null,null,null,null,{"$f":"IF(J266=\"\",\"\",VLOOKUP(J266,'الشبكة الاستدلالية للمرتبات'!A:C,3,0))","v":""},null,null,null,null,null,null,null,{"$f":"VLOOKUP(J266,'الشبكة الاستدلالية للمرتبات'!R267:S283,2,0)","v":{"$error":"#N/A"}}]
[null,null,null,null,null,null,null,null,null,null,{"$f":"IF(J267=\"\",\"\",VLOOKUP(J267,'الشبكة الاستدلالية للمرتبات'!A:C,3,0))","v":""},null,null,null,null,null,null,null,{"$f":"VLOOKUP(J267,'الشبكة الاستدلالية للمرتبات'!R268:S284,2,0)","v":{"$error":"#N/A"}}]
[null,null,null,null,null,null,null,null,null,null,{"$f":"IF(J268=\"\",\"\",VLOOKUP(J268,'الشبكة الاستدلالية للمرتبات'!A:C,3,0))","v":""},null,null,null,null,null,null,null,{"$f":"VLOOKUP(J268,'الشبكة الاستدلالية للمرتبات'!R269:S285,2,0)","v":{"$error":"#N/A"}}]
[null,null,null,null,null,null,null,null,null,null,{"$f":"IF(J269=\"\",\"\",VLOOKUP(J269,'الشبكة الاستدلالية للمرتبات'!A:C,3,0))","v":""},null,null,null,null,null,null,null,{"$f":"VLOOKUP(J269,'الشبكة الاستدلالية للمرتبات'!R270:S286,2,0)","v":{"$error":"#N/A"}}]
[null,null,null,null,null,null,null,null,null,null,{"$f":"IF(J270=\"\",\"\",VLOOKUP(J270,'الشبكة الاستدلالية للمرتبات'!A:C,3,0))","v":""},null,null,null,null,null,null,null,{"$f":"VLOOKUP(J270,'الشبكة الاستدلالية للمرتبات'!R271:S287,2,0)","v":{"$error":"#N/A"}}]
[null,null,null,null,null,null,null,null,null,null,{"$f":"IF(J271=\"\",\"\",VLOOKUP(J271,'الشبكة الاستدلالية للمرتبات'!A:C,3,0))","v":""},null,null,null,null,null,null,null,{"$f":"VLOOKUP(J271,'الشبكة الاستدلالية للمرتبات'!R272:S288,2,0)","v":{"$error":"#N/A"}}]
[null,null,null,null,null,null,null,null,null,null,{"$f":"IF(J272=\"\",\"\",VLOOKUP(J272,'الشبكة الاستدلالية للمرتبات'!A:C,3,0))","v":""},null,null,null,null,null,null,null,{"$f":"VLOOKUP(J272,'الشبكة الاستدلالية للمرتبات'!R273:S289,2,0)","v":{"$error":"#N/A"}}]
[null,null,null,null,null,null,null,null,null,null,{"$f":"IF(J273=\"\",\"\",VLOOKUP(J273,'الشبكة الاستدلالية للمرتبات'!A:C,3,0))","v":""},null,null,null,null,null,null,null,{"$f":"VLOOKUP(J273,'الشبكة الاستدلالية للمرتبات'!R274:S290,2,0)","v":{"$error":"#N/A"}}]
[null,null,null,null,null,null,null,null,null,null,{"$f":"IF(J274=\"\",\"\",VLOOKUP(J274,'الشبكة الاستدلالية للمرتبات'!A:C,3,0))","v":""},null,null,null,null,null,null,null,{"$f":"VLOOKUP(J274,'الشبكة الاستدلالية للمرتبات'!R275:S291,2,0)","v":{"$error":"#N/A"}}]
[null,null,null,null,null,null,null,null,null,null,{"$f":"IF(J275=\"\",\"\",VLOOKUP(J275,'الشبكة الاستدلالية للمرتبات'!A:C,3,0))","v":""},null,null,null,null,null,null,null,{"$f":"VLOOKUP(J275,'الشبكة الاستدلالية للمرتبات'!R276:S292,2,0)","v":{"$error":"#N/A"}}]
[null,null,null,null,null,null,null,null,null,null,{"$f":"IF(J276=\"\",\"\",VLOOKUP(J276,'الشبكة الاستدلالية للمرتبات'!A:C,3,0))","v":""},null,null,null,null,null,null,null,{"$f":"VLOOKUP(J276,'الشبكة الاستدلالية للمرتبات'!R277:S293,2,0)","v":{"$error":"#N/A"}}]
[null,null,null,null,null,null,null,null,null,null,{"$f":"IF(J277=\"\",\"\",VLOOKUP(J277,'الشبكة الاستدلالية للمرتبات'!A:C,3,0))","v":""},null,null,null,null,null,null,null,{"$f":"VLOOKUP(J277,'الشبكة الاستدلالية للمرتبات'!R278:S294,2,0)","v":{"$error":"#N/A"}}]
[null,null,null,null,null,null,null,null,null,null,{"$f":"IF(J278=\"\",\"\",VLOOKUP(J278,'الشبكة الاستدلالية للمرتبات'!A:C,3,0))","v":""},null,null,null,null,null,null,null,{"$f":"VLOOKUP(J278,'الشبكة الاستدلالية للمرتبات'!R279:S295,2,0)","v":{"$error":"#N/A"}}]
[null,null,null,null,null,null,null,null,null,null,{"$f":"IF(J279=\"\",\"\",VLOOKUP(J279,'الشبكة الاستدلالية للمرتبات'!A:C,3,0))","v":""},null,null,null,null,null,null,null,{"$f":"VLOOKUP(J279,'الشبكة الاستدلالية للمرتبات'!R280:S296,2,0)","v":{"$error":"#N/A"}}]
[null,null,null,null,null,null,null,null,null,null,{"$f":"IF(J280=\"\",\"\",VLOOKUP(J280,'الشبكة الاستدلالية للمرتبات'!A:C,3,0))","v":""},null,null,null,null,null,null,null,{"$f":"VLOOKUP(J280,'الشبكة الاستدلالية للمرتبات'!R281:S297,2,0)","v":{"$error":"#N/A"}}]
[null,null,null,null,null,null,null,null,null,null,{"$f":"IF(J281=\"\",\"\",VLOOKUP(J281,'الشبكة الاستدلالية للمرتبات'!A:C,3,0))","v":""},null,null,null,null,null,null,null,{"$f":"VLOOKUP(J281,'الشبكة الاستدلالية للمرتبات'!R282:S298,2,0)","v":{"$error":"#N/A"}}]
[null,null,null,null,null,null,null,null,null,null,{"$f":"IF(J282=\"\",\"\",VLOOKUP(J282,'الشبكة الاستدلالية للمرتبات'!A:C,3,0))","v":""},null,null,null,null,null,null,null,{"$f":"VLOOKUP(J282,'الشبكة الاستدلالية للمرتبات'!R283:S299,2,0)","v":{"$error":"#N/A"}}]
[null,null,null,null,null,null,null,null,null,null,{"$f":"IF(J283=\"\",\"\",VLOOKUP(J283,'الشبكة الاستدلالية للمرتبات'!A:C,3,0))","v":""},null,null,null,null,null,null,null,{"$f":"VLOOKUP(J283,'الشبكة الاستدلالية للمرتبات'!R284:S300,2,0)","v":{"$error":"#N/A"}}]
[null,null,null,null,null,null,null,null,null,null,{"$f":"IF(J284=\"\",\"\",VLOOKUP(J284,'الشبكة الاستدلالية للمرتبات'!A:C,3,0))","v":""},null,null,null,null,null,null,null,{"$f":"VLOOKUP(J284,'الشبكة الاستدلالية للمرتبات'!R285:S301,2,0)","v":{"$error":"#N/A"}}]
[null,null,null,null,null,null,null,null,null,null,{"$f":"IF(J285=\"\",\"\",VLOOKUP(J285,'الشبكة الاستدلالية للمرتبات'!A:C,3,0))","v":""},null,null,null,null,null,null,null,{"$f":"VLOOKUP(J285,'الشبكة الاستدلالية للمرتبات'!R286:S302,2,0)","v":{"$error":"#N/A"}}]
[null,null,null,null,null,null,null,null,null,null,{"$f":"IF(J286=\"\",\"\",VLOOKUP(J286,'الشبكة الاستدلالية للمرتبات'!A:C,3,0))","v":""},null,null,null,null,null,null,null,{"$f":"VLOOKUP(J286,'الشبكة الاستدلالية للمرتبات'!R287:S303,2,0)","v":{"$error":"#N/A"}}]
[null,null,null,null,null,null,null,null,null,null,{"$f":"IF(J287=\"\",\"\",VLOOKUP(J287,'الشبكة الاستدلالية للمرتبات'!A:C,3,0))","v":""},null,null,null,null,null,null,null,{"$f":"VLOOKUP(J287,'الشبكة الاستدلالية للمرتبات'!R288:S304,2,0)","v":{"$error":"#N/A"}}]
[null,null,null,null,null,null,null,null,null,null,{"$f":"IF(J288=\"\",\"\",VLOOKUP(J288,'الشبكة الاستدلالية للمرتبات'!A:C,3,0))","v":""},null,null,null,null,null,null,null,{"$f":"VLOOKUP(J288,'الشبكة الاستدلالية للمرتبات'!R289:S305,2,0)","v":{"$error":"#N/A"}}]
[null,null,null,null,null,null,null,null,null,null,{"$f":"IF(J289=\"\",\"\",VLOOKUP(J289,'الشبكة الاستدلالية للمرتبات'!A:C,3,0))","v":""},null,null,null,null,null,null,null,{"$f":"VLOOKUP(J289,'الشبكة الاستدلالية للمرتبات'!R290:S306,2,0)","v":{"$error":"#N/A"}}]
[null,null,null,null,null,null,null,null,null,null,{"$f":"IF(J290=\"\",\"\",VLOOKUP(J290,'الشبكة الاستدلالية للمرتبات'!A:C,3,0))","v":""},null,null,null,null,null,null,null,{"$f":"VLOOKUP(J290,'الشبكة الاستدلالية للمرتبات'!R291:S307,2,0)","v":{"$error":"#N/A"}}]
[null,null,null,null,null,null,null,null,null,null,{"$f":"IF(J291=\"\",\"\",VLOOKUP(J291,'الشبكة الاستدلالية للمرتبات'!A:C,3,0))","v":""},null,null,null,null,null,null,null,{"$f":"VLOOKUP(J291,'الشبكة الاستدلالية للمرتبات'!R292:S308,2,0)","v":{"$error":"#N/A"}}]
[null,null,null,null,null,null,null,null,null,null,{"$f":"IF(J292=\"\",\"\",VLOOKUP(J292,'الشبكة الاستدلالية للمرتبات'!A:C,3,0))","v":""},null,null,null,null,null,null,null,{"$f":"VLOOKUP(J292,'الشبكة الاستدلالية للمرتبات'!R293:S309,2,0)","v":{"$error":"#N/A"}}]
[null,null,null,null,null,null,null,null,null,null,{"$f":"IF(J293=\"\",\"\",VLOOKUP(J293,'الشبكة الاستدلالية للمرتبات'!A:C,3,0))","v":""},null,null,null,null,null,null,null,{"$f":"VLOOKUP(J293,'الشبكة الاستدلالية للمرتبات'!R294:S310,2,0)","v":{"$error":"#N/A"}}]
[null,null,null,null,null,null,null,null,null,null,{"$f":"IF(J294=\"\",\"\",VLOOKUP(J294,'الشبكة الاستدلالية للمرتبات'!A:C,3,0))","v":""},null,null,null,null,null,null,null,{"$f":"VLOOKUP(J294,'الشبكة الاستدلالية للمرتبات'!R295:S311,2,0)","v":{"$error":"#N/A"}}]
[null,null,null,null,null,null,null,null,null,null,{"$f":"IF(J295=\"\",\"\",VLOOKUP(J295,'الشبكة الاستدلالية للمرتبات'!A:C,3,0))","v":""},null,null,null,null,null,null,null,{"$f":"VLOOKUP(J295,'الشبكة الاستدلالية للمرتبات'!R296:S312,2,0)","v":{"$error":"#N/A"}}]
[null,null,null,null,null,null,null,null,null,null,{"$f":"IF(J296=\"\",\"\",VLOOKUP(J296,'الشبكة الاستدلالية للمرتبات'!A:C,3,0))","v":""},null,null,null,null,null,null,null,{"$f":"VLOOKUP(J296,'الشبكة الاستدلالية للمرتبات'!R297:S313,2,0)","v":{"$error":"#N/A"}}]
[null,null,null,null,null,null,null,null,null,null,{"$f":"IF(J297=\"\",\"\",VLOOKUP(J297,'الشبكة الاستدلالية للمرتبات'!A:C,3,0))","v":""},null,null,null,null,null,null,null,{"$f":"VLOOKUP(J297,'الشبكة الاستدلالية للمرتبات'!R298:S314,2,0)","v":{"$error":"#N/A"}}]
[null,null,null,null,null,null,null,null,null,null,{"$f":"IF(J298=\"\",\"\",VLOOKUP(J298,'الشبكة الاستدلالية للمرتبات'!A:C,3,0))","v":""},null,null,null,null,null,null,null,{"$f":"VLOOKUP(J298,'الشبكة الاستدلالية للمرتبات'!R299:S315,2,0)","v":{"$error":"#N/A"}}]
[null,null,null,null,null,null,null,null,null,null,{"$f":"IF(J299=\"\",\"\",VLOOKUP(J299,'الشبكة الاستدلالية للمرتبات'!A:C,3,0))","v":""},null,null,null,null,null,null,null,{"$f":"VLOOKUP(J299,'الشبكة الاستدلالية للمرتبات'!R300:S316,2,0)","v":{"$error":"#N/A"}}]
[null,null,null,null,null,null,null,null,null,null,{"$f":"IF(J300=\"\",\"\",VLOOKUP(J300,'الشبكة الاستدلالية للمرتبات'!A:C,3,0))","v":""},null,null,null,null,null,null,null,{"$f":"VLOOKUP(J300,'الشبكة الاستدلالية للمرتبات'!R301:S317,2,0)","v":{"$error":"#N/A"}}]
[null,null,null,null,null,null,null,null,null,null,{"$f":"IF(J301=\"\",\"\",VLOOKUP(J301,'الشبكة الاستدلالية للمرتبات'!A:C,3,0))","v":""},null,null,null,null,null,null,null,{"$f":"VLOOKUP(J301,'الشبكة الاستدلالية للمرتبات'!R302:S318,2,0)","v":{"$error":"#N/A"}}]
[null,null,null,null,null,null,null,null,null,null,null,null,null,null,null,null,null,null,{"$f":"VLOOKUP(J302,'الشبكة الاستدلالية للمرتبات'!R303:S319,2,0)","v":{"$error":"#N/A"}}]
[null,null,null,null,null,null,null,null,null,null,null,null,null,null,null,null,null,null,{"$f":"VLOOKUP(J303,'الشبكة الاستدلالية للمرتبات'!R304:S320,2,0)","v":{"$error":"#N/A"}}]
[null,null,null,null,null,null,null,null,null,null,null,null,null,null,null,null,null,null,{"$f":"VLOOKUP(J304,'الشبكة الاستدلالية للمرتبات'!R305:S321,2,0)","v":{"$error":"#N/A"}}]
[null,null,null,null,null,null,null,null,null,null,null,null,null,null,null,null,null,null,{"$f":"VLOOKUP(J305,'الشبكة الاستدلالية للمرتبات'!R306:S322,2,0)","v":{"$error":"#N/A"}}]
[null,null,null,null,null,null,null,null,null,null,null,null,null,null,null,null,null,null,{"$f":"VLOOKUP(J306,'الشبكة الاستدلالية للمرتبات'!R307:S323,2,0)","v":{"$error":"#N/A"}}]
[null,null,null,null,null,null,null,null,null,null,null,null,null,null,null,null,null,null,{"$f":"VLOOKUP(J307,'الشبكة الاستدلالية للمرتبات'!R308:S324,2,0)","v":{"$error":"#N/A"}}]
[null,null,null,null,null,null,null,null,null,null,null,null,null,null,null,null,null,null,{"$f":"VLOOKUP(J308,'الشبكة الاستدلالية للمرتبات'!R309:S325,2,0)","v":{"$error":"#N/A"}}]
[null,null,null,null,null,null,null,null,null,null,null,null,null,null,null,null,null,null,{"$f":"VLOOKUP(J309,'الشبكة الاستدلالية للمرتبات'!R310:S326,2,0)","v":{"$error":"#N/A"}}]
[null,null,null,null,null,null,null,null,null,null,null,null,null,null,null,null,null,null,{"$f":"VLOOKUP(J310,'الشبكة الاستدلالية للمرتبات'!R311:S327,2,0)","v":{"$error":"#N/A"}}]
[null,null,null,null,null,null,null,null,null,null,null,null,null,null,null,null,null,null,{"$f":"VLOOKUP(J311,'الشبكة الاستدلالية للمرتبات'!R312:S328,2,0)","v":{"$error":"#N/A"}}]
[null,null,null,null,null,null,null,null,null,null,null,null,null,null,null,null,null,null,{"$f":"VLOOKUP(J312,'الشبكة الاستدلالية للمرتبات'!R313:S329,2,0)","v":{"$error":"#N/A"}}]
[null,null,null,null,null,null,null,null,null,null,null,null,null,null,null,null,null,null,{"$f":"VLOOKUP(J313,'الشبكة الاستدلالية للمرتبات'!R314:S330,2,0)","v":{"$error":"#N/A"}}]
[null,null,null,null,null,null,null,null,null,null,null,null,null,null,null,null,null,null,{"$f":"VLOOKUP(J314,'الشبكة الاستدلالية للمرتبات'!R315:S331,2,0)","v":{"$error":"#N/A"}}]
[null,null,null,null,null,null,null,null,null,null,null,null,null,null,null,null,null,null,{"$f":"VLOOKUP(J315,'الشبكة الاستدلالية للمرتبات'!R316:S332,2,0)","v":{"$error":"#N/A"}}]
[null,null,null,null,null,null,null,null,null,null,null,null,null,null,null,null,null,null,{"$f":"VLOOKUP(J316,'الشبكة الاستدلالية للمرتبات'!R317:S333,2,0)","v":{"$error":"#N/A"}}]
[null,null,null,null,null,null,null,null,null,null,null,null,null,null,null,null,null,null,{"$f":"VLOOKUP(J317,'الشبكة الاستدلالية للمرتبات'!R318:S334,2,0)","v":{"$error":"#N/A"}}]
[null,null,null,null,null,null,null,null,null,null,null,null,null,null,null,null,null,null,{"$f":"VLOOKUP(J318,'الشبكة الاستدلالية للمرتبات'!R319:S335,2,0)","v":{"$error":"#N/A"}}]
[null,null,null,null,null,null,null,null,null,null,null,null,null,null,null,null,null,null,{"$f":"VLOOKUP(J319,'الشبكة الاستدلالية للمرتبات'!R320:S336,2,0)","v":{"$error":"#N/A"}}]
[null,null,null,null,null,null,null,null,null,null,null,null,null,null,null,null,null,null,{"$f":"VLOOKUP(J320,'الشبكة الاستدلالية للمرتبات'!R321:S337,2,0)","v":{"$error":"#N/A"}}]
[null,null,null,null,null,null,null,null,null,null,null,null,null,null,null,null,null,null,{"$f":"VLOOKUP(J321,'الشبكة الاستدلالية للمرتبات'!R322:S338,2,0)","v":{"$error":"#N/A"}}]
[null,null,null,null,null,null,null,null,null,null,null,null,null,null,null,null,null,null,{"$f":"VLOOKUP(J322,'الشبكة الاستدلالية للمرتبات'!R323:S339,2,0)","v":{"$error":"#N/A"}}]
[null,null,null,null,null,null,null,null,null,null,null,null,null,null,null,null,null,null,{"$f":"VLOOKUP(J323,'الشبكة الاستدلالية للمرتبات'!R324:S340,2,0)","v":{"$error":"#N/A"}}]
[null,null,null,null,null,null,null,null,null,null,null,null,null,null,null,null,null,null,{"$f":"VLOOKUP(J324,'الشبكة الاستدلالية للمرتبات'!R325:S341,2,0)","v":{"$error":"#N/A"}}]
[null,null,null,null,null,null,null,null,null,null,null,null,null,null,null,null,null,null,{"$f":"VLOOKUP(J325,'الشبكة الاستدلالية للمرتبات'!R326:S342,2,0)","v":{"$error":"#N/A"}}]
[null,null,null,null,null,null,null,null,null,null,null,null,null,null,null,null,null,null,{"$f":"VLOOKUP(J326,'الشبكة الاستدلالية للمرتبات'!R327:S343,2,0)","v":{"$error":"#N/A"}}]
[null,null,null,null,null,null,null,null,null,null,null,null,null,null,null,null,null,null,{"$f":"VLOOKUP(J327,'الشبكة الاستدلالية للمرتبات'!R328:S344,2,0)","v":{"$error":"#N/A"}}]
[null,null,null,null,null,null,null,null,null,null,null,null,null,null,null,null,null,null,{"$f":"VLOOKUP(J328,'الشبكة الاستدلالية للمرتبات'!R329:S345,2,0)","v":{"$error":"#N/A"}}]
[null,null,null,null,null,null,null,null,null,null,null,null,null,null,null,null,null,null,{"$f":"VLOOKUP(J329,'الشبكة الاستدلالية للمرتبات'!R330:S346,2,0)","v":{"$error":"#N/A"}}]
[null,null,null,null,null,null,null,null,null,null,null,null,null,null,null,null,null,null,{"$f":"VLOOKUP(J330,'الشبكة الاستدلالية للمرتبات'!R331:S347,2,0)","v":{"$error":"#N/A"}}]
[null,null,null,null,null,null,null,null,null,null,null,null,null,null,null,null,null,null,{"$f":"VLOOKUP(J331,'الشبكة الاستدلالية للمرتبات'!R332:S348,2,0)","v":{"$error":"#N/A"}}]
[null,null,null,null,null,null,null,null,null,null,null,null,null,null,null,null,null,null,{"$f":"VLOOKUP(J332,'الشبكة الاستدلالية للمرتبات'!R333:S349,2,0)","v":{"$error":"#N/A"}}]
[null,null,null,null,null,null,null,null,null,null,null,null,null,null,null,null,null,null,{"$f":"VLOOKUP(J333,'الشبكة الاستدلالية للمرتبات'!R334:S350,2,0)","v":{"$error":"#N/A"}}]
[null,null,null,null,null,null,null,null,null,null,null,null,null,null,null,null,null,null,{"$f":"VLOOKUP(J334,'الشبكة الاستدلالية للمرتبات'!R335:S351,2,0)","v":{"$error":"#N/A"}}]
[null,null,null,null,null,null,null,null,null,null,null,null,null,null,null,null,null,null,{"$f":"VLOOKUP(J335,'الشبكة الاستدلالية للمرتبات'!R336:S352,2,0)","v":{"$error":"#N/A"}}]
[null,null,null,null,null,null,null,null,null,null,null,null,null,null,null,null,null,null,{"$f":"VLOOKUP(J336,'الشبكة الاستدلالية للمرتبات'!R337:S353,2,0)","v":{"$error":"#N/A"}}]
[null,null,null,null,null,null,null,null,null,null,null,null,null,null,null,null,null,null,{"$f":"VLOOKUP(J337,'الشبكة الاستدلالية للمرتبات'!R338:S354,2,0)","v":{"$error":"#N/A"}}]
[null,null,null,null,null,null,null,null,null,null,null,null,null,null,null,null,null,null,{"$f":"VLOOKUP(J338,'الشبكة الاستدلالية للمرتبات'!R339:S355,2,0)","v":{"$error":"#N/A"}}]
[null,null,null,null,null,null,null,null,null,null,null,null,null,null,null,null,null,null,{"$f":"VLOOKUP(J339,'الشبكة الاستدلالية للمرتبات'!R340:S356,2,0)","v":{"$error":"#N/A"}}]
[null,null,null,null,null,null,null,null,null,null,null,null,null,null,null,null,null,null,{"$f":"VLOOKUP(J340,'الشبكة الاستدلالية للمرتبات'!R341:S357,2,0)","v":{"$error":"#N/A"}}]
[null,null,null,null,null,null,null,null,null,null,null,null,null,null,null,null,null,null,{"$f":"VLOOKUP(J341,'الشبكة الاستدلالية للمرتبات'!R342:S358,2,0)","v":{"$error":"#N/A"}}]
[null,null,null,null,null,null,null,null,null,null,null,null,null,null,null,null,null,null,{"$f":"VLOOKUP(J342,'الشبكة الاستدلالية للمرتبات'!R343:S359,2,0)","v":{"$error":"#N/A"}}]
[null,null,null,null,null,null,null,null,null,null,null,null,null,null,null,null,null,null,{"$f":"VLOOKUP(J343,'الشبكة الاستدلالية للمرتبات'!R344:S360,2,0)","v":{"$error":"#N/A"}}]
[null,null,null,null,null,null,null,null,null,null,null,null,null,null,null,null,null,null,{"$f":"VLOOKUP(J344,'الشبكة الاستدلالية للمرتبات'!R345:S361,2,0)","v":{"$error":"#N/A"}}]
[null,null,null,null,null,null,null,null,null,null,null,null,null,null,null,null,null,null,{"$f":"VLOOKUP(J345,'الشبكة الاستدلالية للمرتبات'!R346:S362,2,0)","v":{"$error":"#N/A"}}]
[null,null,null,null,null,null,null,null,null,null,null,null,null,null,null,null,null,null,{"$f":"VLOOKUP(J346,'الشبكة الاستدلالية للمرتبات'!R347:S363,2,0)","v":{"$error":"#N/A"}}]
[null,null,null,null,null,null,null,null,null,null,null,null,null,null,null,null,null,null,{"$f":"VLOOKUP(J347,'الشبكة الاستدلالية للمرتبات'!R348:S364,2,0)","v":{"$error":"#N/A"}}]
[null,null,null,null,null,null,null,null,null,null,null,null,null,null,null,null,null,null,{"$f":"VLOOKUP(J348,'الشبكة الاستدلالية للمرتبات'!R349:S365,2,0)","v":{"$error":"#N/A"}}]
[null,null,null,null,null,null,null,null,null,null,null,null,null,null,null,null,null,null,{"$f":"VLOOKUP(J349,'الشبكة الاستدلالية للمرتبات'!R350:S366,2,0)","v":{"$error":"#N/A"}}]
[null,null,null,null,null,null,null,null,null,null,null,null,null,null,null,null,null,null,{"$f":"VLOOKUP(J350,'الشبكة الاستدلالية للمرتبات'!R351:S367,2,0)","v":{"$error":"#N/A"}}]
[null,null,null,null,null,null,null,null,null,null,null,null,null,null,null,null,null,null,{"$f":"VLOOKUP(J351,'الشبكة الاستدلالية للمرتبات'!R352:S368,2,0)","v":{"$error":"#N/A"}}]
[null,null,null,null,null,null,null,null,null,null,null,null,null,null,null,null,null,null,{"$f":"VLOOKUP(J352,'الشبكة الاستدلالية للمرتبات'!R353:S369,2,0)","v":{"$error":"#N/A"}}]
[null,null,null,null,null,null,null,null,null,null,null,null,null,null,null,null,null,null,{"$f":"VLOOKUP(J353,'الشبكة الاستدلالية للمرتبات'!R354:S370,2,0)","v":{"$error":"#N/A"}}]
[null,null,null,null,null,null,null,null,null,null,null,null,null,null,null,null,null,null,{"$f":"VLOOKUP(J354,'الشبكة الاستدلالية للمرتبات'!R355:S371,2,0)","v":{"$error":"#N/A"}}]
[null,null,null,null,null,null,null,null,null,null,null,null,null,null,null,null,null,null,{"$f":"VLOOKUP(J355,'الشبكة الاستدلالية للمرتبات'!R356:S372,2,0)","v":{"$error":"#N/A"}}]
[null,null,null,null,null,null,null,null,null,null,null,null,null,null,null,null,null,null,{"$f":"VLOOKUP(J356,'الشبكة الاستدلالية للمرتبات'!R357:S373,2,0)","v":{"$error":"#N/A"}}]
[null,null,null,null,null,null,null,null,null,null,null,null,null,null,null,null,null,null,{"$f":"VLOOKUP(J357,'الشبكة الاستدلالية للمرتبات'!R358:S374,2,0)","v":{"$error":"#N/A"}}]
[null,null,null,null,null,null,null,null,null,null,null,null,null,null,null,null,null,null,{"$f":"VLOOKUP(J358,'الشبكة الاستدلالية للمرتبات'!R359:S375,2,0)","v":{"$error":"#N/A"}}]
[null,null,null,null,null,null,null,null,null,null,null,null,null,null,null,null,null,null,{"$f":"VLOOKUP(J359,'الشبكة الاستدلالية للمرتبات'!R360:S376,2,0)","v":{"$error":"#N/A"}}]
[null,null,null,null,null,null,null,null,null,null,null,null,null,null,null,null,null,null,{"$f":"VLOOKUP(J360,'الشبكة الاستدلالية للمرتبات'!R361:S377,2,0)","v":{"$error":"#N/A"}}]
[null,null,null,null,null,null,null,null,null,null,null,null,null,null,null,null,null,null,{"$f":"VLOOKUP(J361,'الشبكة الاستدلالية للمرتبات'!R362:S378,2,0)","v":{"$error":"#N/A"}}]
[null,null,null,null,null,null,null,null,null,null,null,null,null,null,null,null,null,null,{"$f":"VLOOKUP(J362,'الشبكة الاستدلالية للمرتبات'!R363:S379,2,0)","v":{"$error":"#N/A"}}]
[null,null,null,null,null,null,null,null,null,null,null,null,null,null,null,null,null,null,{"$f":"VLOOKUP(J363,'الشبكة الاستدلالية للمرتبات'!R364:S380,2,0)","v":{"$error":"#N/A"}}]
[null,null,null,null,null,null,null,null,null,null,null,null,null,null,null,null,null,null,{"$f":"VLOOKUP(J364,'الشبكة الاستدلالية للمرتبات'!R365:S381,2,0)","v":{"$error":"#N/A"}}]
[null,null,null,null,null,null,null,null,null,null,null,null,null,null,null,null,null,null,{"$f":"VLOOKUP(J365,'الشبكة الاستدلالية للمرتبات'!R366:S382,2,0)","v":{"$error":"#N/A"}}]
[null,null,null,null,null,null,null,null,null,null,null,null,null,null,null,null,null,null,{"$f":"VLOOKUP(J366,'الشبكة الاستدلالية للمرتبات'!R367:S383,2,0)","v":{"$error":"#N/A"}}]
[null,null,null,null,null,null,null,null,null,null,null,null,null,null,null,null,null,null,{"$f":"VLOOKUP(J367,'الشبكة الاستدلالية للمرتبات'!R368:S384,2,0)","v":{"$error":"#N/A"}}]
[null,null,null,null,null,null,null,null,null,null,null,null,null,null,null,null,null,null,{"$f":"VLOOKUP(J368,'الشبكة الاستدلالية للمرتبات'!R369:S385,2,0)","v":{"$error":"#N/A"}}]
[null,null,null,null,null,null,null,null,null,null,null,null,null,null,null,null,null,null,{"$f":"VLOOKUP(J369,'الشبكة الاستدلالية للمرتبات'!R370:S386,2,0)","v":{"$error":"#N/A"}}]
[null,null,null,null,null,null,null,null,null,null,null,null,null,null,null,null,null,null,{"$f":"VLOOKUP(J370,'الشبكة الاستدلالية للمرتبات'!R371:S387,2,0)","v":{"$error":"#N/A"}}]
[null,null,null,null,null,null,null,null,null,null,null,null,null,null,null,null,null,null,{"$f":"VLOOKUP(J371,'الشبكة الاستدلالية للمرتبات'!R372:S388,2,0)","v":{"$error":"#N/A"}}]
[null,null,null,null,null,null,null,null,null,null,null,null,null,null,null,null,null,null,{"$f":"VLOOKUP(J372,'الشبكة الاستدلالية للمرتبات'!R373:S389,2,0)","v":{"$error":"#N/A"}}]
[null,null,null,null,null,null,null,null,null,null,null,null,null,null,null,null,null,null,{"$f":"VLOOKUP(J373,'الشبكة الاستدلالية للمرتبات'!R374:S390,2,0)","v":{"$error":"#N/A"}}]
[null,null,null,null,null,null,null,null,null,null,null,null,null,null,null,null,null,null,{"$f":"VLOOKUP(J374,'الشبكة الاستدلالية للمرتبات'!R375:S391,2,0)","v":{"$error":"#N/A"}}]
[null,null,null,null,null,null,null,null,null,null,null,null,null,null,null,null,null,null,{"$f":"VLOOKUP(J375,'الشبكة الاستدلالية للمرتبات'!R376:S392,2,0)","v":{"$error":"#N/A"}}]
[null,null,null,null,null,null,null,null,null,null,null,null,null,null,null,null,null,null,{"$f":"VLOOKUP(J376,'الشبكة الاستدلالية للمرتبات'!R377:S393,2,0)","v":{"$error":"#N/A"}}]
[null,null,null,null,null,null,null,null,null,null,null,null,null,null,null,null,null,null,{"$f":"VLOOKUP(J377,'الشبكة الاستدلالية للمرتبات'!R378:S394,2,0)","v":{"$error":"#N/A"}}]
[null,null,null,null,null,null,null,null,null,null,null,null,null,null,null,null,null,null,{"$f":"VLOOKUP(J378,'الشبكة الاستدلالية للمرتبات'!R379:S395,2,0)","v":{"$error":"#N/A"}}]
[null,null,null,null,null,null,null,null,null,null,null,null,null,null,null,null,null,null,{"$f":"VLOOKUP(J379,'الشبكة الاستدلالية للمرتبات'!R380:S396,2,0)","v":{"$error":"#N/A"}}]
[null,null,null,null,null,null,null,null,null,null,null,null,null,null,null,null,null,null,{"$f":"VLOOKUP(J380,'الشبكة الاستدلالية للمرتبات'!R381:S397,2,0)","v":{"$error":"#N/A"}}]
[null,null,null,null,null,null,null,null,null,null,null,null,null,null,null,null,null,null,{"$f":"VLOOKUP(J381,'الشبكة الاستدلالية للمرتبات'!R382:S398,2,0)","v":{"$error":"#N/A"}}]
[null,null,null,null,null,null,null,null,null,null,null,null,null,null,null,null,null,null,{"$f":"VLOOKUP(J382,'الشبكة الاستدلالية للمرتبات'!R383:S399,2,0)","v":{"$error":"#N/A"}}]
[null,null,null,null,null,null,null,null,null,null,null,null,null,null,null,null,null,null,{"$f":"VLOOKUP(J383,'الشبكة الاستدلالية للمرتبات'!R384:S400,2,0)","v":{"$error":"#N/A"}}]
[null,null,null,null,null,null,null,null,null,null,null,null,null,null,null,null,null,null,{"$f":"VLOOKUP(J384,'الشبكة الاستدلالية للمرتبات'!R385:S401,2,0)","v":{"$error":"#N/A"}}]
[null,null,null,null,null,null,null,null,null,null,null,null,null,null,null,null,null,null,{"$f":"VLOOKUP(J385,'الشبكة الاستدلالية للمرتبات'!R386:S402,2,0)","v":{"$error":"#N/A"}}]
[null,null,null,null,null,null,null,null,null,null,null,null,null,null,null,null,null,null,{"$f":"VLOOKUP(J386,'الشبكة الاستدلالية للمرتبات'!R387:S403,2,0)","v":{"$error":"#N/A"}}]
[null,null,null,null,null,null,null,null,null,null,null,null,null,null,null,null,null,null,{"$f":"VLOOKUP(J387,'الشبكة الاستدلالية للمرتبات'!R388:S404,2,0)","v":{"$error":"#N/A"}}]
[null,null,null,null,null,null,null,null,null,null,null,null,null,null,null,null,null,null,{"$f":"VLOOKUP(J388,'الشبكة الاستدلالية للمرتبات'!R389:S405,2,0)","v":{"$error":"#N/A"}}]
[null,null,null,null,null,null,null,null,null,null,null,null,null,null,null,null,null,null,{"$f":"VLOOKUP(J389,'الشبكة الاستدلالية للمرتبات'!R390:S406,2,0)","v":{"$error":"#N/A"}}]
[null,null,null,null,null,null,null,null,null,null,null,null,null,null,null,null,null,null,{"$f":"VLOOKUP(J390,'الشبكة الاستدلالية للمرتبات'!R391:S407,2,0)","v":{"$error":"#N/A"}}]
[null,null,null,null,null,null,null,null,null,null,null,null,null,null,null,null,null,null,{"$f":"VLOOKUP(J391,'الشبكة الاستدلالية للمرتبات'!R392:S408,2,0)","v":{"$error":"#N/A"}}]
[null,null,null,null,null,null,null,null,null,null,null,null,null,null,null,null,null,null,{"$f":"VLOOKUP(J392,'الشبكة الاستدلالية للمرتبات'!R393:S409,2,0)","v":{"$error":"#N/A"}}]
[null,null,null,null,null,null,null,null,null,null,null,null,null,null,null,null,null,null,{"$f":"VLOOKUP(J393,'الشبكة الاستدلالية للمرتبات'!R394:S410,2,0)","v":{"$error":"#N/A"}}]
[null,null,null,null,null,null,null,null,null,null,null,null,null,null,null,null,null,null,{"$f":"VLOOKUP(J394,'الشبكة الاستدلالية للمرتبات'!R395:S411,2,0)","v":{"$error":"#N/A"}}]
[null,null,null,null,null,null,null,null,null,null,null,null,null,null,null,null,null,null,{"$f":"VLOOKUP(J395,'الشبكة الاستدلالية للمرتبات'!R396:S412,2,0)","v":{"$error":"#N/A"}}]
[null,null,null,null,null,null,null,null,null,null,null,null,null,null,null,null,null,null,{"$f":"VLOOKUP(J396,'الشبكة الاستدلالية للمرتبات'!R397:S413,2,0)","v":{"$error":"#N/A"}}]
[null,null,null,null,null,null,null,null,null,null,null,null,null,null,null,null,null,null,{"$f":"VLOOKUP(J397,'الشبكة الاستدلالية للمرتبات'!R398:S414,2,0)","v":{"$error":"#N/A"}}]
[null,null,null,null,null,null,null,null,null,null,null,null,null,null,null,null,null,null,{"$f":"VLOOKUP(J398,'الشبكة الاستدلالية للمرتبات'!R399:S415,2,0)","v":{"$error":"#N/A"}}]
[null,null,null,null,null,null,null,null,null,null,null,null,null,null,null,null,null,null,{"$f":"VLOOKUP(J399,'الشبكة الاستدلالية للمرتبات'!R400:S416,2,0)","v":{"$error":"#N/A"}}]
[null,null,null,null,null,null,null,null,null,null,null,null,null,null,null,null,null,null,{"$f":"VLOOKUP(J400,'الشبكة الاستدلالية للمرتبات'!R401:S417,2,0)","v":{"$error":"#N/A"}}]
[null,null,null,null,null,null,null,null,null,null,null,null,null,null,null,null,null,null,{"$f":"VLOOKUP(J401,'الشبكة الاستدلالية للمرتبات'!R402:S418,2,0)","v":{"$error":"#N/A"}}]
[null,null,null,null,null,null,null,null,null,null,null,null,null,null,null,null,null,null,{"$f":"VLOOKUP(J402,'الشبكة الاستدلالية للمرتبات'!R403:S419,2,0)","v":{"$error":"#N/A"}}]
[null,null,null,null,null,null,null,null,null,null,null,null,null,null,null,null,null,null,{"$f":"VLOOKUP(J403,'الشبكة الاستدلالية للمرتبات'!R404:S420,2,0)","v":{"$error":"#N/A"}}]
[null,null,null,null,null,null,null,null,null,null,null,null,null,null,null,null,null,null,{"$f":"VLOOKUP(J404,'الشبكة الاستدلالية للمرتبات'!R405:S421,2,0)","v":{"$error":"#N/A"}}]
[null,null,null,null,null,null,null,null,null,null,null,null,null,null,null,null,null,null,{"$f":"VLOOKUP(J405,'الشبكة الاستدلالية للمرتبات'!R406:S422,2,0)","v":{"$error":"#N/A"}}]
[null,null,null,null,null,null,null,null,null,null,null,null,null,null,null,null,null,null,{"$f":"VLOOKUP(J406,'الشبكة الاستدلالية للمرتبات'!R407:S423,2,0)","v":{"$error":"#N/A"}}]
[null,null,null,null,null,null,null,null,null,null,null,null,null,null,null,null,null,null,{"$f":"VLOOKUP(J407,'الشبكة الاستدلالية للمرتبات'!R408:S424,2,0)","v":{"$error":"#N/A"}}]
[null,null,null,null,null,null,null,null,null,null,null,null,null,null,null,null,null,null,{"$f":"VLOOKUP(J408,'الشبكة الاستدلالية للمرتبات'!R409:S425,2,0)","v":{"$error":"#N/A"}}]
[null,null,null,null,null,null,null,null,null,null,null,null,null,null,null,null,null,null,{"$f":"VLOOKUP(J409,'الشبكة الاستدلالية للمرتبات'!R410:S426,2,0)","v":{"$error":"#N/A"}}]
[null,null,null,null,null,null,null,null,null,null,null,null,null,null,null,null,null,null,{"$f":"VLOOKUP(J410,'الشبكة الاستدلالية للمرتبات'!R411:S427,2,0)","v":{"$error":"#N/A"}}]
[null,null,null,null,null,null,null,null,null,null,null,null,null,null,null,null,null,null,{"$f":"VLOOKUP(J411,'الشبكة الاستدلالية للمرتبات'!R412:S428,2,0)","v":{"$error":"#N/A"}}]
[null,null,null,null,null,null,null,null,null,null,null,null,null,null,null,null,null,null,{"$f":"VLOOKUP(J412,'الشبكة الاستدلالية للمرتبات'!R413:S429,2,0)","v":{"$error":"#N/A"}}]
[null,null,null,null,null,null,null,null,null,null,null,null,null,null,null,null,null,null,{"$f":"VLOOKUP(J413,'الشبكة الاستدلالية للمرتبات'!R414:S430,2,0)","v":{"$error":"#N/A"}}]
[null,null,null,null,null,null,null,null,null,null,null,null,null,null,null,null,null,null,{"$f":"VLOOKUP(J414,'الشبكة الاستدلالية للمرتبات'!R415:S431,2,0)","v":{"$error":"#N/A"}}]
[null,null,null,null,null,null,null,null,null,null,null,null,null,null,null,null,null,null,{"$f":"VLOOKUP(J415,'الشبكة الاستدلالية للمرتبات'!R416:S432,2,0)","v":{"$error":"#N/A"}}]
[null,null,null,null,null,null,null,null,null,null,null,null,null,null,null,null,null,null,{"$f":"VLOOKUP(J416,'الشبكة الاستدلالية للمرتبات'!R417:S433,2,0)","v":{"$error":"#N/A"}}]
[null,null,null,null,null,null,null,null,null,null,null,null,null,null,null,null,null,null,{"$f":"VLOOKUP(J417,'الشبكة الاستدلالية للمرتبات'!R418:S434,2,0)","v":{"$error":"#N/A"}}]
[null,null,null,null,null,null,null,null,null,null,null,null,null,null,null,null,null,null,{"$f":"VLOOKUP(J418,'الشبكة الاستدلالية للمرتبات'!R419:S435,2,0)","v":{"$error":"#N/A"}}]
[null,null,null,null,null,null,null,null,null,null,null,null,null,null,null,null,null,null,{"$f":"VLOOKUP(J419,'الشبكة الاستدلالية للمرتبات'!R420:S436,2,0)","v":{"$error":"#N/A"}}]
[null,null,null,null,null,null,null,null,null,null,null,null,null,null,null,null,null,null,{"$f":"VLOOKUP(J420,'الشبكة الاستدلالية للمرتبات'!R421:S437,2,0)","v":{"$error":"#N/A"}}]
[null,null,null,null,null,null,null,null,null,null,null,null,null,null,null,null,null,null,{"$f":"VLOOKUP(J421,'الشبكة الاستدلالية للمرتبات'!R422:S438,2,0)","v":{"$error":"#N/A"}}]
[null,null,null,null,null,null,null,null,null,null,null,null,null,null,null,null,null,null,{"$f":"VLOOKUP(J422,'الشبكة الاستدلالية للمرتبات'!R423:S439,2,0)","v":{"$error":"#N/A"}}]
[null,null,null,null,null,null,null,null,null,null,null,null,null,null,null,null,null,null,{"$f":"VLOOKUP(J423,'الشبكة الاستدلالية للمرتبات'!R424:S440,2,0)","v":{"$error":"#N/A"}}]
[null,null,null,null,null,null,null,null,null,null,null,null,null,null,null,null,null,null,{"$f":"VLOOKUP(J424,'الشبكة الاستدلالية للمرتبات'!R425:S441,2,0)","v":{"$error":"#N/A"}}]
[null,null,null,null,null,null,null,null,null,null,null,null,null,null,null,null,null,null,{"$f":"VLOOKUP(J425,'الشبكة الاستدلالية للمرتبات'!R426:S442,2,0)","v":{"$error":"#N/A"}}]
[null,null,null,null,null,null,null,null,null,null,null,null,null,null,null,null,null,null,{"$f":"VLOOKUP(J426,'الشبكة الاستدلالية للمرتبات'!R427:S443,2,0)","v":{"$error":"#N/A"}}]
[null,null,null,null,null,null,null,null,null,null,null,null,null,null,null,null,null,null,{"$f":"VLOOKUP(J427,'الشبكة الاستدلالية للمرتبات'!R428:S444,2,0)","v":{"$error":"#N/A"}}]
[null,null,null,null,null,null,null,null,null,null,null,null,null,null,null,null,null,null,{"$f":"VLOOKUP(J428,'الشبكة الاستدلالية للمرتبات'!R429:S445,2,0)","v":{"$error":"#N/A"}}]
[null,null,null,null,null,null,null,null,null,null,null,null,null,null,null,null,null,null,{"$f":"VLOOKUP(J429,'الشبكة الاستدلالية للمرتبات'!R430:S446,2,0)","v":{"$error":"#N/A"}}]
[null,null,null,null,null,null,null,null,null,null,null,null,null,null,null,null,null,null,{"$f":"VLOOKUP(J430,'الشبكة الاستدلالية للمرتبات'!R431:S447,2,0)","v":{"$error":"#N/A"}}]
[null,null,null,null,null,null,null,null,null,null,null,null,null,null,null,null,null,null,{"$f":"VLOOKUP(J431,'الشبكة الاستدلالية للمرتبات'!R432:S448,2,0)","v":{"$error":"#N/A"}}]
[null,null,null,null,null,null,null,null,null,null,null,null,null,null,null,null,null,null,{"$f":"VLOOKUP(J432,'الشبكة الاستدلالية للمرتبات'!R433:S449,2,0)","v":{"$error":"#N/A"}}]
[null,null,null,null,null,null,null,null,null,null,null,null,null,null,null,null,null,null,{"$f":"VLOOKUP(J433,'الشبكة الاستدلالية للمرتبات'!R434:S450,2,0)","v":{"$error":"#N/A"}}]
[null,null,null,null,null,null,null,null,null,null,null,null,null,null,null,null,null,null,{"$f":"VLOOKUP(J434,'الشبكة الاستدلالية للمرتبات'!R435:S451,2,0)","v":{"$error":"#N/A"}}]
[null,null,null,null,null,null,null,null,null,null,null,null,null,null,null,null,null,null,{"$f":"VLOOKUP(J435,'الشبكة الاستدلالية للمرتبات'!R436:S452,2,0)","v":{"$error":"#N/A"}}]
[null,null,null,null,null,null,null,null,null,null,null,null,null,null,null,null,null,null,{"$f":"VLOOKUP(J436,'الشبكة الاستدلالية للمرتبات'!R437:S453,2,0)","v":{"$error":"#N/A"}}]
[null,null,null,null,null,null,null,null,null,null,null,null,null,null,null,null,null,null,{"$f":"VLOOKUP(J437,'الشبكة الاستدلالية للمرتبات'!R438:S454,2,0)","v":{"$error":"#N/A"}}]
[null,null,null,null,null,null,null,null,null,null,null,null,null,null,null,null,null,null,{"$f":"VLOOKUP(J438,'الشبكة الاستدلالية للمرتبات'!R439:S455,2,0)","v":{"$error":"#N/A"}}]
[null,null,null,null,null,null,null,null,null,null,null,null,null,null,null,null,null,null,{"$f":"VLOOKUP(J439,'الشبكة الاستدلالية للمرتبات'!R440:S456,2,0)","v":{"$error":"#N/A"}}]
[null,null,null,null,null,null,null,null,null,null,null,null,null,null,null,null,null,null,{"$f":"VLOOKUP(J440,'الشبكة الاستدلالية للمرتبات'!R441:S457,2,0)","v":{"$error":"#N/A"}}]
[null,null,null,null,null,null,null,null,null,null,null,null,null,null,null,null,null,null,{"$f":"VLOOKUP(J441,'الشبكة الاستدلالية للمرتبات'!R442:S458,2,0)","v":{"$error":"#N/A"}}]
[null,null,null,null,null,null,null,null,null,null,null,null,null,null,null,null,null,null,{"$f":"VLOOKUP(J442,'الشبكة الاستدلالية للمرتبات'!R443:S459,2,0)","v":{"$error":"#N/A"}}]
[null,null,null,null,null,null,null,null,null,null,null,null,null,null,null,null,null,null,{"$f":"VLOOKUP(J443,'الشبكة الاستدلالية للمرتبات'!R444:S460,2,0)","v":{"$error":"#N/A"}}]
[null,null,null,null,null,null,null,null,null,null,null,null,null,null,null,null,null,null,{"$f":"VLOOKUP(J444,'الشبكة الاستدلالية للمرتبات'!R445:S461,2,0)","v":{"$error":"#N/A"}}]
[null,null,null,null,null,null,null,null,null,null,null,null,null,null,null,null,null,null,{"$f":"VLOOKUP(J445,'الشبكة الاستدلالية للمرتبات'!R446:S462,2,0)","v":{"$error":"#N/A"}}]
[null,null,null,null,null,null,null,null,null,null,null,null,null,null,null,null,null,null,{"$f":"VLOOKUP(J446,'الشبكة الاستدلالية للمرتبات'!R447:S463,2,0)","v":{"$error":"#N/A"}}]
[null,null,null,null,null,null,null,null,null,null,null,null,null,null,null,null,null,null,{"$f":"VLOOKUP(J447,'الشبكة الاستدلالية للمرتبات'!R448:S464,2,0)","v":{"$error":"#N/A"}}]
[null,null,null,null,null,null,null,null,null,null,null,null,null,null,null,null,null,null,{"$f":"VLOOKUP(J448,'الشبكة الاستدلالية للمرتبات'!R449:S465,2,0)","v":{"$error":"#N/A"}}]
[null,null,null,null,null,null,null,null,null,null,null,null,null,null,null,null,null,null,{"$f":"VLOOKUP(J449,'الشبكة الاستدلالية للمرتبات'!R450:S466,2,0)","v":{"$error":"#N/A"}}]
[null,null,null,null,null,null,null,null,null,null,null,null,null,null,null,null,null,null,{"$f":"VLOOKUP(J450,'الشبكة الاستدلالية للمرتبات'!R451:S467,2,0)","v":{"$error":"#N/A"}}]
[null,null,null,null,null,null,null,null,null,null,null,null,null,null,null,null,null,null,{"$f":"VLOOKUP(J451,'الشبكة الاستدلالية للمرتبات'!R452:S468,2,0)","v":{"$error":"#N/A"}}]
[null,null,null,null,null,null,null,null,null,null,null,null,null,null,null,null,null,null,{"$f":"VLOOKUP(J452,'الشبكة الاستدلالية للمرتبات'!R453:S469,2,0)","v":{"$error":"#N/A"}}]
[null,null,null,null,null,null,null,null,null,null,null,null,null,null,null,null,null,null,{"$f":"VLOOKUP(J453,'الشبكة الاستدلالية للمرتبات'!R454:S470,2,0)","v":{"$error":"#N/A"}}]
[null,null,null,null,null,null,null,null,null,null,null,null,null,null,null,null,null,null,{"$f":"VLOOKUP(J454,'الشبكة الاستدلالية للمرتبات'!R455:S471,2,0)","v":{"$error":"#N/A"}}]
[null,null,null,null,null,null,null,null,null,null,null,null,null,null,null,null,null,null,{"$f":"VLOOKUP(J455,'الشبكة الاستدلالية للمرتبات'!R456:S472,2,0)","v":{"$error":"#N/A"}}]
[null,null,null,null,null,null,null,null,null,null,null,null,null,null,null,null,null,null,{"$f":"VLOOKUP(J456,'الشبكة الاستدلالية للمرتبات'!R457:S473,2,0)","v":{"$error":"#N/A"}}]
[null,null,null,null,null,null,null,null,null,null,null,null,null,null,null,null,null,null,{"$f":"VLOOKUP(J457,'الشبكة الاستدلالية للمرتبات'!R458:S474,2,0)","v":{"$error":"#N/A"}}]
[null,null,null,null,null,null,null,null,null,null,null,null,null,null,null,null,null,null,{"$f":"VLOOKUP(J458,'الشبكة الاستدلالية للمرتبات'!R459:S475,2,0)","v":{"$error":"#N/A"}}]
[null,null,null,null,null,null,null,null,null,null,null,null,null,null,null,null,null,null,{"$f":"VLOOKUP(J459,'الشبكة الاستدلالية للمرتبات'!R460:S476,2,0)","v":{"$error":"#N/A"}}]
[null,null,null,null,null,null,null,null,null,null,null,null,null,null,null,null,null,null,{"$f":"VLOOKUP(J460,'الشبكة الاستدلالية للمرتبات'!R461:S477,2,0)","v":{"$error":"#N/A"}}]
[null,null,null,null,null,null,null,null,null,null,null,null,null,null,null,null,null,null,{"$f":"VLOOKUP(J461,'الشبكة الاستدلالية للمرتبات'!R462:S478,2,0)","v":{"$error":"#N/A"}}]
[null,null,null,null,null,null,null,null,null,null,null,null,null,null,null,null,null,null,{"$f":"VLOOKUP(J462,'الشبكة الاستدلالية للمرتبات'!R463:S479,2,0)","v":{"$error":"#N/A"}}]
[null,null,null,null,null,null,null,null,null,null,null,null,null,null,null,null,null,null,{"$f":"VLOOKUP(J463,'الشبكة الاستدلالية للمرتبات'!R464:S480,2,0)","v":{"$error":"#N/A"}}]
[null,null,null,null,null,null,null,null,null,null,null,null,null,null,null,null,null,null,{"$f":"VLOOKUP(J464,'الشبكة الاستدلالية للمرتبات'!R465:S481,2,0)","v":{"$error":"#N/A"}}]
[null,null,null,null,null,null,null,null,null,null,null,null,null,null,null,null,null,null,{"$f":"VLOOKUP(J465,'الشبكة الاستدلالية للمرتبات'!R466:S482,2,0)","v":{"$error":"#N/A"}}]
[null,null,null,null,null,null,null,null,null,null,null,null,null,null,null,null,null,null,{"$f":"VLOOKUP(J466,'الشبكة الاستدلالية للمرتبات'!R467:S483,2,0)","v":{"$error":"#N/A"}}]
[null,null,null,null,null,null,null,null,null,null,null,null,null,null,null,null,null,null,{"$f":"VLOOKUP(J467,'الشبكة الاستدلالية للمرتبات'!R468:S484,2,0)","v":{"$error":"#N/A"}}]
[null,null,null,null,null,null,null,null,null,null,null,null,null,null,null,null,null,null,{"$f":"VLOOKUP(J468,'الشبكة الاستدلالية للمرتبات'!R469:S485,2,0)","v":{"$error":"#N/A"}}]
[null,null,null,null,null,null,null,null,null,null,null,null,null,null,null,null,null,null,{"$f":"VLOOKUP(J469,'الشبكة الاستدلالية للمرتبات'!R470:S486,2,0)","v":{"$error":"#N/A"}}]
[null,null,null,null,null,null,null,null,null,null,null,null,null,null,null,null,null,null,{"$f":"VLOOKUP(J470,'الشبكة الاستدلالية للمرتبات'!R471:S487,2,0)","v":{"$error":"#N/A"}}]
[null,null,null,null,null,null,null,null,null,null,null,null,null,null,null,null,null,null,{"$f":"VLOOKUP(J471,'الشبكة الاستدلالية للمرتبات'!R472:S488,2,0)","v":{"$error":"#N/A"}}]
[null,null,null,null,null,null,null,null,null,null,null,null,null,null,null,null,null,null,{"$f":"VLOOKUP(J472,'الشبكة الاستدلالية للمرتبات'!R473:S489,2,0)","v":{"$error":"#N/A"}}]
[null,null,null,null,null,null,null,null,null,null,null,null,null,null,null,null,null,null,{"$f":"VLOOKUP(J473,'الشبكة الاستدلالية للمرتبات'!R474:S490,2,0)","v":{"$error":"#N/A"}}]
[null,null,null,null,null,null,null,null,null,null,null,null,null,null,null,null,null,null,{"$f":"VLOOKUP(J474,'الشبكة الاستدلالية للمرتبات'!R475:S491,2,0)","v":{"$error":"#N/A"}}]
[null,null,null,null,null,null,null,null,null,null,null,null,null,null,null,null,null,null,{"$f":"VLOOKUP(J475,'الشبكة الاستدلالية للمرتبات'!R476:S492,2,0)","v":{"$error":"#N/A"}}]
[null,null,null,null,null,null,null,null,null,null,null,null,null,null,null,null,null,null,{"$f":"VLOOKUP(J476,'الشبكة الاستدلالية للمرتبات'!R477:S493,2,0)","v":{"$error":"#N/A"}}]
[null,null,null,null,null,null,null,null,null,null,null,null,null,null,null,null,null,null,{"$f":"VLOOKUP(J477,'الشبكة الاستدلالية للمرتبات'!R478:S494,2,0)","v":{"$error":"#N/A"}}]
[null,null,null,null,null,null,null,null,null,null,null,null,null,null,null,null,null,null,{"$f":"VLOOKUP(J478,'الشبكة الاستدلالية للمرتبات'!R479:S495,2,0)","v":{"$error":"#N/A"}}]
[null,null,null,null,null,null,null,null,null,null,null,null,null,null,null,null,null,null,{"$f":"VLOOKUP(J479,'الشبكة الاستدلالية للمرتبات'!R480:S496,2,0)","v":{"$error":"#N/A"}}]
[null,null,null,null,null,null,null,null,null,null,null,null,null,null,null,null,null,null,{"$f":"VLOOKUP(J480,'الشبكة الاستدلالية للمرتبات'!R481:S497,2,0)","v":{"$error":"#N/A"}}]
[null,null,null,null,null,null,null,null,null,null,null,null,null,null,null,null,null,null,{"$f":"VLOOKUP(J481,'الشبكة الاستدلالية للمرتبات'!R482:S498,2,0)","v":{"$error":"#N/A"}}]
[null,null,null,null,null,null,null,null,null,null,null,null,null,null,null,null,null,null,{"$f":"VLOOKUP(J482,'الشبكة الاستدلالية للمرتبات'!R483:S499,2,0)","v":{"$error":"#N/A"}}]
[null,null,null,null,null,null,null,null,null,null,null,null,null,null,null,null,null,null,{"$f":"VLOOKUP(J483,'الشبكة الاستدلالية للمرتبات'!R484:S500,2,0)","v":{"$error":"#N/A"}}]
[null,null,null,null,null,null,null,null,null,null,null,null,null,null,null,null,null,null,{"$f":"VLOOKUP(J484,'الشبكة الاستدلالية للمرتبات'!R485:S501,2,0)","v":{"$error":"#N/A"}}]
[null,null,null,null,null,null,null,null,null,null,null,null,null,null,null,null,null,null,{"$f":"VLOOKUP(J485,'الشبكة الاستدلالية للمرتبات'!R486:S502,2,0)","v":{"$error":"#N/A"}}]
[null,null,null,null,null,null,null,null,null,null,null,null,null,null,null,null,null,null,{"$f":"VLOOKUP(J486,'الشبكة الاستدلالية للمرتبات'!R487:S503,2,0)","v":{"$error":"#N/A"}}]
[null,null,null,null,null,null,null,null,null,null,null,null,null,null,null,null,null,null,{"$f":"VLOOKUP(J487,'الشبكة الاستدلالية للمرتبات'!R488:S504,2,0)","v":{"$error":"#N/A"}}]
[null,null,null,null,null,null,null,null,null,null,null,null,null,null,null,null,null,null,{"$f":"VLOOKUP(J488,'الشبكة الاستدلالية للمرتبات'!R489:S505,2,0)","v":{"$error":"#N/A"}}]
[null,null,null,null,null,null,null,null,null,null,null,null,null,null,null,null,null,null,{"$f":"VLOOKUP(J489,'الشبكة الاستدلالية للمرتبات'!R490:S506,2,0)","v":{"$error":"#N/A"}}]
[null,null,null,null,null,null,null,null,null,null,null,null,null,null,null,null,null,null,{"$f":"VLOOKUP(J490,'الشبكة الاستدلالية للمرتبات'!R491:S507,2,0)","v":{"$error":"#N/A"}}]
[null,null,null,null,null,null,null,null,null,null,null,null,null,null,null,null,null,null,{"$f":"VLOOKUP(J491,'الشبكة الاستدلالية للمرتبات'!R492:S508,2,0)","v":{"$error":"#N/A"}}]
[null,null,null,null,null,null,null,null,null,null,null,null,null,null,null,null,null,null,{"$f":"VLOOKUP(J492,'الشبكة الاستدلالية للمرتبات'!R493:S509,2,0)","v":{"$error":"#N/A"}}]
[null,null,null,null,null,null,null,null,null,null,null,null,null,null,null,null,null,null,{"$f":"VLOOKUP(J493,'الشبكة الاستدلالية للمرتبات'!R494:S510,2,0)","v":{"$error":"#N/A"}}]
[null,null,null,null,null,null,null,null,null,null,null,null,null,null,null,null,null,null,{"$f":"VLOOKUP(J494,'الشبكة الاستدلالية للمرتبات'!R495:S511,2,0)","v":{"$error":"#N/A"}}]
[null,null,null,null,null,null,null,null,null,null,null,null,null,null,null,null,null,null,{"$f":"VLOOKUP(J495,'الشبكة الاستدلالية للمرتبات'!R496:S512,2,0)","v":{"$error":"#N/A"}}]
[null,null,null,null,null,null,null,null,null,null,null,null,null,null,null,null,null,null,{"$f":"VLOOKUP(J496,'الشبكة الاستدلالية للمرتبات'!R497:S513,2,0)","v":{"$error":"#N/A"}}]
[null,null,null,null,null,null,null,null,null,null,null,null,null,null,null,null,null,null,{"$f":"VLOOKUP(J497,'الشبكة الاستدلالية للمرتبات'!R498:S514,2,0)","v":{"$error":"#N/A"}}]
[null,null,null,null,null,null,null,null,null,null,null,null,null,null,null,null,null,null,{"$f":"VLOOKUP(J498,'الشبكة الاستدلالية للمرتبات'!R499:S515,2,0)","v":{"$error":"#N/A"}}]
[null,null,null,null,null,null,null,null,null,null,null,null,null,null,null,null,null,null,{"$f":"VLOOKUP(J499,'الشبكة الاستدلالية للمرتبات'!R500:S516,2,0)","v":{"$error":"#N/A"}}]
[null,null,null,null,null,null,null,null,null,null,null,null,null,null,null,null,null,null,{"$f":"VLOOKUP(J500,'الشبكة الاستدلالية للمرتبات'!R501:S517,2,0)","v":{"$error":"#N/A"}}]
[null,null,null,null,null,null,null,null,null,null,null,null,null,null,null,null,null,null,{"$f":"VLOOKUP(J501,'الشبكة الاستدلالية للمرتبات'!R502:S518,2,0)","v":{"$error":"#N/A"}}]
[null,null,null,null,null,null,null,null,null,null,null,null,null,null,null,null,null,null,{"$f":"VLOOKUP(J502,'الشبكة الاستدلالية للمرتبات'!R503:S519,2,0)","v":{"$error":"#N/A"}}]
[null,null,null,null,null,null,null,null,null,null,null,null,null,null,null,null,null,null,{"$f":"VLOOKUP(J503,'الشبكة الاستدلالية للمرتبات'!R504:S520,2,0)","v":{"$error":"#N/A"}}]
[null,null,null,null,null,null,null,null,null,null,null,null,null,null,null,null,null,null,{"$f":"VLOOKUP(J504,'الشبكة الاستدلالية للمرتبات'!R505:S521,2,0)","v":{"$error":"#N/A"}}]
[null,null,null,null,null,null,null,null,null,null,null,null,null,null,null,null,null,null,{"$f":"VLOOKUP(J505,'الشبكة الاستدلالية للمرتبات'!R506:S522,2,0)","v":{"$error":"#N/A"}}]
[null,null,null,null,null,null,null,null,null,null,null,null,null,null,null,null,null,null,{"$f":"VLOOKUP(J506,'الشبكة الاستدلالية للمرتبات'!R507:S523,2,0)","v":{"$error":"#N/A"}}]
[null,null,null,null,null,null,null,null,null,null,null,null,null,null,null,null,null,null,{"$f":"VLOOKUP(J507,'الشبكة الاستدلالية للمرتبات'!R508:S524,2,0)","v":{"$error":"#N/A"}}]
[null,null,null,null,null,null,null,null,null,null,null,null,null,null,null,null,null,null,{"$f":"VLOOKUP(J508,'الشبكة الاستدلالية للمرتبات'!R509:S525,2,0)","v":{"$error":"#N/A"}}]
[null,null,null,null,null,null,null,null,null,null,null,null,null,null,null,null,null,null,{"$f":"VLOOKUP(J509,'الشبكة الاستدلالية للمرتبات'!R510:S526,2,0)","v":{"$error":"#N/A"}}]
[null,null,null,null,null,null,null,null,null,null,null,null,null,null,null,null,null,null,{"$f":"VLOOKUP(J510,'الشبكة الاستدلالية للمرتبات'!R511:S527,2,0)","v":{"$error":"#N/A"}}]
[null,null,null,null,null,null,null,null,null,null,null,null,null,null,null,null,null,null,{"$f":"VLOOKUP(J511,'الشبكة الاستدلالية للمرتبات'!R512:S528,2,0)","v":{"$error":"#N/A"}}]
[null,null,null,null,null,null,null,null,null,null,null,null,null,null,null,null,null,null,{"$f":"VLOOKUP(J512,'الشبكة الاستدلالية للمرتبات'!R513:S529,2,0)","v":{"$error":"#N/A"}}]
[null,null,null,null,null,null,null,null,null,null,null,null,null,null,null,null,null,null,{"$f":"VLOOKUP(J513,'الشبكة الاستدلالية للمرتبات'!R514:S530,2,0)","v":{"$error":"#N/A"}}]
[null,null,null,null,null,null,null,null,null,null,null,null,null,null,null,null,null,null,{"$f":"VLOOKUP(J514,'الشبكة الاستدلالية للمرتبات'!R515:S531,2,0)","v":{"$error":"#N/A"}}]
[null,null,null,null,null,null,null,null,null,null,null,null,null,null,null,null,null,null,{"$f":"VLOOKUP(J515,'الشبكة الاستدلالية للمرتبات'!R516:S532,2,0)","v":{"$error":"#N/A"}}]
[null,null,null,null,null,null,null,null,null,null,null,null,null,null,null,null,null,null,{"$f":"VLOOKUP(J516,'الشبكة الاستدلالية للمرتبات'!R517:S533,2,0)","v":{"$error":"#N/A"}}]
[null,null,null,null,null,null,null,null,null,null,null,null,null,null,null,null,null,null,{"$f":"VLOOKUP(J517,'الشبكة الاستدلالية للمرتبات'!R518:S534,2,0)","v":{"$error":"#N/A"}}]
[null,null,null,null,null,null,null,null,null,null,null,null,null,null,null,null,null,null,{"$f":"VLOOKUP(J518,'الشبكة الاستدلالية للمرتبات'!R519:S535,2,0)","v":{"$error":"#N/A"}}]
[null,null,null,null,null,null,null,null,null,null,null,null,null,null,null,null,null,null,{"$f":"VLOOKUP(J519,'الشبكة الاستدلالية للمرتبات'!R520:S536,2,0)","v":{"$error":"#N/A"}}]
[null,null,null,null,null,null,null,null,null,null,null,null,null,null,null,null,null,null,{"$f":"VLOOKUP(J520,'الشبكة الاستدلالية للمرتبات'!R521:S537,2,0)","v":{"$error":"#N/A"}}]
[null,null,null,null,null,null,null,null,null,null,null,null,null,null,null,null,null,null,{"$f":"VLOOKUP(J521,'الشبكة الاستدلالية للمرتبات'!R522:S538,2,0)","v":{"$error":"#N/A"}}]
[null,null,null,null,null,null,null,null,null,null,null,null,null,null,null,null,null,null,{"$f":"VLOOKUP(J522,'الشبكة الاستدلالية للمرتبات'!R523:S539,2,0)","v":{"$error":"#N/A"}}]
[null,null,null,null,null,null,null,null,null,null,null,null,null,null,null,null,null,null,{"$f":"VLOOKUP(J523,'الشبكة الاستدلالية للمرتبات'!R524:S540,2,0)","v":{"$error":"#N/A"}}]
[null,null,null,null,null,null,null,null,null,null,null,null,null,null,null,null,null,null,{"$f":"VLOOKUP(J524,'الشبكة الاستدلالية للمرتبات'!R525:S541,2,0)","v":{"$error":"#N/A"}}]
[null,null,null,null,null,null,null,null,null,null,null,null,null,null,null,null,null,null,{"$f":"VLOOKUP(J525,'الشبكة الاستدلالية للمرتبات'!R526:S542,2,0)","v":{"$error":"#N/A"}}]
[null,null,null,null,null,null,null,null,null,null,null,null,null,null,null,null,null,null,{"$f":"VLOOKUP(J526,'الشبكة الاستدلالية للمرتبات'!R527:S543,2,0)","v":{"$error":"#N/A"}}]
[null,null,null,null,null,null,null,null,null,null,null,null,null,null,null,null,null,null,{"$f":"VLOOKUP(J527,'الشبكة الاستدلالية للمرتبات'!R528:S544,2,0)","v":{"$error":"#N/A"}}]
[null,null,null,null,null,null,null,null,null,null,null,null,null,null,null,null,null,null,{"$f":"VLOOKUP(J528,'الشبكة الاستدلالية للمرتبات'!R529:S545,2,0)","v":{"$error":"#N/A"}}]
[null,null,null,null,null,null,null,null,null,null,null,null,null,null,null,null,null,null,{"$f":"VLOOKUP(J529,'الشبكة الاستدلالية للمرتبات'!R530:S546,2,0)","v":{"$error":"#N/A"}}]
[null,null,null,null,null,null,null,null,null,null,null,null,null,null,null,null,null,null,{"$f":"VLOOKUP(J530,'الشبكة الاستدلالية للمرتبات'!R531:S547,2,0)","v":{"$error":"#N/A"}}]
[null,null,null,null,null,null,null,null,null,null,null,null,null,null,null,null,null,null,{"$f":"VLOOKUP(J531,'الشبكة الاستدلالية للمرتبات'!R532:S548,2,0)","v":{"$error":"#N/A"}}]
[null,null,null,null,null,null,null,null,null,null,null,null,null,null,null,null,null,null,{"$f":"VLOOKUP(J532,'الشبكة الاستدلالية للمرتبات'!R533:S549,2,0)","v":{"$error":"#N/A"}}]
[null,null,null,null,null,null,null,null,null,null,null,null,null,null,null,null,null,null,{"$f":"VLOOKUP(J533,'الشبكة الاستدلالية للمرتبات'!R534:S550,2,0)","v":{"$error":"#N/A"}}]
[null,null,null,null,null,null,null,null,null,null,null,null,null,null,null,null,null,null,{"$f":"VLOOKUP(J534,'الشبكة الاستدلالية للمرتبات'!R535:S551,2,0)","v":{"$error":"#N/A"}}]
[null,null,null,null,null,null,null,null,null,null,null,null,null,null,null,null,null,null,{"$f":"VLOOKUP(J535,'الشبكة الاستدلالية للمرتبات'!R536:S552,2,0)","v":{"$error":"#N/A"}}]
[null,null,null,null,null,null,null,null,null,null,null,null,null,null,null,null,null,null,{"$f":"VLOOKUP(J536,'الشبكة الاستدلالية للمرتبات'!R537:S553,2,0)","v":{"$error":"#N/A"}}]
[null,null,null,null,null,null,null,null,null,null,null,null,null,null,null,null,null,null,{"$f":"VLOOKUP(J537,'الشبكة الاستدلالية للمرتبات'!R538:S554,2,0)","v":{"$error":"#N/A"}}]
[null,null,null,null,null,null,null,null,null,null,null,null,null,null,null,null,null,null,{"$f":"VLOOKUP(J538,'الشبكة الاستدلالية للمرتبات'!R539:S555,2,0)","v":{"$error":"#N/A"}}]
[null,null,null,null,null,null,null,null,null,null,null,null,null,null,null,null,null,null,{"$f":"VLOOKUP(J539,'الشبكة الاستدلالية للمرتبات'!R540:S556,2,0)","v":{"$error":"#N/A"}}]
[null,null,null,null,null,null,null,null,null,null,null,null,null,null,null,null,null,null,{"$f":"VLOOKUP(J540,'الشبكة الاستدلالية للمرتبات'!R541:S557,2,0)","v":{"$error":"#N/A"}}]
[null,null,null,null,null,null,null,null,null,null,null,null,null,null,null,null,null,null,{"$f":"VLOOKUP(J541,'الشبكة الاستدلالية للمرتبات'!R542:S558,2,0)","v":{"$error":"#N/A"}}]
[null,null,null,null,null,null,null,null,null,null,null,null,null,null,null,null,null,null,{"$f":"VLOOKUP(J542,'الشبكة الاستدلالية للمرتبات'!R543:S559,2,0)","v":{"$error":"#N/A"}}]
[null,null,null,null,null,null,null,null,null,null,null,null,null,null,null,null,null,null,{"$f":"VLOOKUP(J543,'الشبكة الاستدلالية للمرتبات'!R544:S560,2,0)","v":{"$error":"#N/A"}}]
[null,null,null,null,null,null,null,null,null,null,null,null,null,null,null,null,null,null,{"$f":"VLOOKUP(J544,'الشبكة الاستدلالية للمرتبات'!R545:S561,2,0)","v":{"$error":"#N/A"}}]
[null,null,null,null,null,null,null,null,null,null,null,null,null,null,null,null,null,null,{"$f":"VLOOKUP(J545,'الشبكة الاستدلالية للمرتبات'!R546:S562,2,0)","v":{"$error":"#N/A"}}]
[null,null,null,null,null,null,null,null,null,null,null,null,null,null,null,null,null,null,{"$f":"VLOOKUP(J546,'الشبكة الاستدلالية للمرتبات'!R547:S563,2,0)","v":{"$error":"#N/A"}}]
[null,null,null,null,null,null,null,null,null,null,null,null,null,null,null,null,null,null,{"$f":"VLOOKUP(J547,'الشبكة الاستدلالية للمرتبات'!R548:S564,2,0)","v":{"$error":"#N/A"}}]
[null,null,null,null,null,null,null,null,null,null,null,null,null,null,null,null,null,null,{"$f":"VLOOKUP(J548,'الشبكة الاستدلالية للمرتبات'!R549:S565,2,0)","v":{"$error":"#N/A"}}]
[null,null,null,null,null,null,null,null,null,null,null,null,null,null,null,null,null,null,{"$f":"VLOOKUP(J549,'الشبكة الاستدلالية للمرتبات'!R550:S566,2,0)","v":{"$error":"#N/A"}}]
[null,null,null,null,null,null,null,null,null,null,null,null,null,null,null,null,null,null,{"$f":"VLOOKUP(J550,'الشبكة الاستدلالية للمرتبات'!R551:S567,2,0)","v":{"$error":"#N/A"}}]
[null,null,null,null,null,null,null,null,null,null,null,null,null,null,null,null,null,null,{"$f":"VLOOKUP(J551,'الشبكة الاستدلالية للمرتبات'!R552:S568,2,0)","v":{"$error":"#N/A"}}]
[null,null,null,null,null,null,null,null,null,null,null,null,null,null,null,null,null,null,{"$f":"VLOOKUP(J552,'الشبكة الاستدلالية للمرتبات'!R553:S569,2,0)","v":{"$error":"#N/A"}}]
[null,null,null,null,null,null,null,null,null,null,null,null,null,null,null,null,null,null,{"$f":"VLOOKUP(J553,'الشبكة الاستدلالية للمرتبات'!R554:S570,2,0)","v":{"$error":"#N/A"}}]
[null,null,null,null,null,null,null,null,null,null,null,null,null,null,null,null,null,null,{"$f":"VLOOKUP(J554,'الشبكة الاستدلالية للمرتبات'!R555:S571,2,0)","v":{"$error":"#N/A"}}]
[null,null,null,null,null,null,null,null,null,null,null,null,null,null,null,null,null,null,{"$f":"VLOOKUP(J555,'الشبكة الاستدلالية للمرتبات'!R556:S572,2,0)","v":{"$error":"#N/A"}}]
[null,null,null,null,null,null,null,null,null,null,null,null,null,null,null,null,null,null,{"$f":"VLOOKUP(J556,'الشبكة الاستدلالية للمرتبات'!R557:S573,2,0)","v":{"$error":"#N/A"}}]
[null,null,null,null,null,null,null,null,null,null,null,null,null,null,null,null,null,null,{"$f":"VLOOKUP(J557,'الشبكة الاستدلالية للمرتبات'!R558:S574,2,0)","v":{"$error":"#N/A"}}]
[null,null,null,null,null,null,null,null,null,null,null,null,null,null,null,null,null,null,{"$f":"VLOOKUP(J558,'الشبكة الاستدلالية للمرتبات'!R559:S575,2,0)","v":{"$error":"#N/A"}}]
[null,null,null,null,null,null,null,null,null,null,null,null,null,null,null,null,null,null,{"$f":"VLOOKUP(J559,'الشبكة الاستدلالية للمرتبات'!R560:S576,2,0)","v":{"$error":"#N/A"}}]
[null,null,null,null,null,null,null,null,null,null,null,null,null,null,null,null,null,null,{"$f":"VLOOKUP(J560,'الشبكة الاستدلالية للمرتبات'!R561:S577,2,0)","v":{"$error":"#N/A"}}]
[null,null,null,null,null,null,null,null,null,null,null,null,null,null,null,null,null,null,{"$f":"VLOOKUP(J561,'الشبكة الاستدلالية للمرتبات'!R562:S578,2,0)","v":{"$error":"#N/A"}}]
[null,null,null,null,null,null,null,null,null,null,null,null,null,null,null,null,null,null,{"$f":"VLOOKUP(J562,'الشبكة الاستدلالية للمرتبات'!R563:S579,2,0)","v":{"$error":"#N/A"}}]
[null,null,null,null,null,null,null,null,null,null,null,null,null,null,null,null,null,null,{"$f":"VLOOKUP(J563,'الشبكة الاستدلالية للمرتبات'!R564:S580,2,0)","v":{"$error":"#N/A"}}]
[null,null,null,null,null,null,null,null,null,null,null,null,null,null,null,null,null,null,{"$f":"VLOOKUP(J564,'الشبكة الاستدلالية للمرتبات'!R565:S581,2,0)","v":{"$error":"#N/A"}}]
[null,null,null,null,null,null,null,null,null,null,null,null,null,null,null,null,null,null,{"$f":"VLOOKUP(J565,'الشبكة الاستدلالية للمرتبات'!R566:S582,2,0)","v":{"$error":"#N/A"}}]
[null,null,null,null,null,null,null,null,null,null,null,null,null,null,null,null,null,null,{"$f":"VLOOKUP(J566,'الشبكة الاستدلالية للمرتبات'!R567:S583,2,0)","v":{"$error":"#N/A"}}]
[null,null,null,null,null,null,null,null,null,null,null,null,null,null,null,null,null,null,{"$f":"VLOOKUP(J567,'الشبكة الاستدلالية للمرتبات'!R568:S584,2,0)","v":{"$error":"#N/A"}}]
[null,null,null,null,null,null,null,null,null,null,null,null,null,null,null,null,null,null,{"$f":"VLOOKUP(J568,'الشبكة الاستدلالية للمرتبات'!R569:S585,2,0)","v":{"$error":"#N/A"}}]
[null,null,null,null,null,null,null,null,null,null,null,null,null,null,null,null,null,null,{"$f":"VLOOKUP(J569,'الشبكة الاستدلالية للمرتبات'!R570:S586,2,0)","v":{"$error":"#N/A"}}]
[null,null,null,null,null,null,null,null,null,null,null,null,null,null,null,null,null,null,{"$f":"VLOOKUP(J570,'الشبكة الاستدلالية للمرتبات'!R571:S587,2,0)","v":{"$error":"#N/A"}}]
[null,null,null,null,null,null,null,null,null,null,null,null,null,null,null,null,null,null,{"$f":"VLOOKUP(J571,'الشبكة الاستدلالية للمرتبات'!R572:S588,2,0)","v":{"$error":"#N/A"}}]
[null,null,null,null,null,null,null,null,null,null,null,null,null,null,null,null,null,null,{"$f":"VLOOKUP(J572,'الشبكة الاستدلالية للمرتبات'!R573:S589,2,0)","v":{"$error":"#N/A"}}]
[null,null,null,null,null,null,null,null,null,null,null,null,null,null,null,null,null,null,{"$f":"VLOOKUP(J573,'الشبكة الاستدلالية للمرتبات'!R574:S590,2,0)","v":{"$error":"#N/A"}}]
[null,null,null,null,null,null,null,null,null,null,null,null,null,null,null,null,null,null,{"$f":"VLOOKUP(J574,'الشبكة الاستدلالية للمرتبات'!R575:S591,2,0)","v":{"$error":"#N/A"}}]
[null,null,null,null,null,null,null,null,null,null,null,null,null,null,null,null,null,null,{"$f":"VLOOKUP(J575,'الشبكة الاستدلالية للمرتبات'!R576:S592,2,0)","v":{"$error":"#N/A"}}]
[null,null,null,null,null,null,null,null,null,null,null,null,null,null,null,null,null,null,{"$f":"VLOOKUP(J576,'الشبكة الاستدلالية للمرتبات'!R577:S593,2,0)","v":{"$error":"#N/A"}}]
[null,null,null,null,null,null,null,null,null,null,null,null,null,null,null,null,null,null,{"$f":"VLOOKUP(J577,'الشبكة الاستدلالية للمرتبات'!R578:S594,2,0)","v":{"$error":"#N/A"}}]
[null,null,null,null,null,null,null,null,null,null,null,null,null,null,null,null,null,null,{"$f":"VLOOKUP(J578,'الشبكة الاستدلالية للمرتبات'!R579:S595,2,0)","v":{"$error":"#N/A"}}]
[null,null,null,null,null,null,null,null,null,null,null,null,null,null,null,null,null,null,{"$f":"VLOOKUP(J579,'الشبكة الاستدلالية للمرتبات'!R580:S596,2,0)","v":{"$error":"#N/A"}}]
[null,null,null,null,null,null,null,null,null,null,null,null,null,null,null,null,null,null,{"$f":"VLOOKUP(J580,'الشبكة الاستدلالية للمرتبات'!R581:S597,2,0)","v":{"$error":"#N/A"}}]
[null,null,null,null,null,null,null,null,null,null,null,null,null,null,null,null,null,null,{"$f":"VLOOKUP(J581,'الشبكة الاستدلالية للمرتبات'!R582:S598,2,0)","v":{"$error":"#N/A"}}]
[null,null,null,null,null,null,null,null,null,null,null,null,null,null,null,null,null,null,{"$f":"VLOOKUP(J582,'الشبكة الاستدلالية للمرتبات'!R583:S599,2,0)","v":{"$error":"#N/A"}}]
[null,null,null,null,null,null,null,null,null,null,null,null,null,null,null,null,null,null,{"$f":"VLOOKUP(J583,'الشبكة الاستدلالية للمرتبات'!R584:S600,2,0)","v":{"$error":"#N/A"}}]

{"sheet":"كشف الراتب","index":2,"n_rows":41,"n_cols":18,"rows_kept":41,"cut":false,"hidden":false,"merged":[[10,14,11,15],[5,1,5,8],[5,9,5,10],[40,10,40,11],[13,1,22,1],[25,1,28,1],[31,1,36,1],[36,3,36,5],[38,6,38,10],[10,5,10,6],[6,6,6,10],[12,1,12,9],[8,2,8,4],[7,2,7,4],[1,1,1,11],[2,1,2,11],[3,1,3,3],[3,10,3,11],[4,1,4,3],[4,10,4,11]]}
[]
[null,"الجمهورية الجزائرية الديمقراطية الشعبية"]
[null,"وزارة التربية الوطنية",null,null,null,null,null,null,null,null,null,null,null,null,1,null,null," "]
[null,"مديرية التربية ",null,null,null,null,null,null,null,null,{"$f":"'واجهة حجز'!C2","v":"      المؤسسة : متوسطة بلطرش ثامر"},null,null,null,null,null,1]
[null,"لولاية : المسيلة",null,null,null,null,null,null,null,null,{"$f":"'واجهة حجز'!C3","v":"عين الحجل"}]
[null,"كشف الراتب لشهر : ",null,null,null,null,null,null,null,{"$f":"'واجهة حجز'!C4","v":"فيفري 2018"}]
[]
[null,"الإسم و اللقب   : ",{"$f":"LOOKUP(O3,قائمة!A2:A151,قائمة!B2:B301)","v":"بن عامر حدة"}]
[null,"الرتبة               : ",{"$f":"LOOKUP(O3,قائمة!A2:A151,قائمة!C2:C301)","v":"أستاذ في التعليم المتوسط"}]
[null,"الصنف            : ",{"$f":"LOOKUP(O3,قائمة!A2:A161,قائمة!J2:J79)","v":12},"الدرجة:",null,null,null,{"$f":"LOOKUP(O3,قائمة!A2:A171,قائمة!N2:N159)","v":0},null,null,"الرقم الإستدلالي :",{"$f":"LOOKUP(O3,قائمة!A2:A151,قائمة!M2:M151)","v":537}]
[null,"الحالة العائلية      : ",{"$f":"LOOKUP(O3,قائمة!A2:A151,قائمة!D2:D66)","v":"متزوجة"},"عدد الأولاد :",null,null,null,{"$f":"LOOKUP(O3,قائمة!A2:A171,قائمة!E2:E273)","v":0},null,{"$f":"LOOKUP(O3,قائمة!A2:A170,قائمة!F2:F161)","v":0},"رقم الحساب :",{"$f":"LOOKUP(O3,قائمة!A2:A41,قائمة!I2:I80)","v":"9223194/12"},null,null,"باشا توفيق"]
[]
[null,"عناصر المرتب",null,null,null,null,null,null,null,null,"المبالغ الشهرية","المبالغ السنوية"]
[null,"الأجر الخاضع للضمان الاجتماعي",null,"الأجر القاعدي",null,{"$f":"LOOKUP(O3,قائمة!A2:A151,قائمة!K2:K199)","v":537},45,null,null,null,{"$f":"F14*G14","v":24165},{"$f":"K14*12","v":289980}]
[null,null,null,"منحة الخبرة المهنية",0,{"$f":"LOOKUP(O3,قائمة!A2:A151,قائمة!P2:P387)","v":0},45,null,null,null,{"$f":"F15*G15","v":0},0]
[null,null,null,{"$f":"LOOKUP(Q4,'واجهة حجز'!G3:G5,'واجهة حجز'!H3:H4)","v":"منحة الخبرة البيداغوجية"},{"$f":"LOOKUP(O3,قائمة!A2:A151,قائمة!N2:N151)","v":0},4,{"$f":"E16*F16","v":0},null,null,null,{"$f":"K14*G16/100","v":0},0]
[null,null,null,{"$f":"LOOKUP(Q4,'واجهة حجز'!G3:G6,'واجهة حجز'!I3:I6)","v":"منحة تحفيزية تعويضية"},null,null,null,null,null,null,{"$f":"LOOKUP(O3,قائمة!A2:A151,قائمة!Q2:Q217)","v":1500},18000]
[null,null,null,{"$f":"LOOKUP(Q4,'واجهة حجز'!G3:G9,'واجهة حجز'!J3:J9)","v":0},35,null,45,null,null,null,{"$f":"LOOKUP(O3,قائمة!A2:A161,قائمة!R2:R163)","v":0},0]
[null,null,null,{"$f":"LOOKUP(Q4,'واجهة حجز'!G3:G5,'واجهة حجز'!K3:K6)","v":"منحة السكن"},null,null,null,null,null,null,{"$f":"LOOKUP(O3,قائمة!A2:A151,قائمة!T2:T451)","v":1000},12000]
[null,null,null,{"$f":"LOOKUP(Q4,'واجهة حجز'!G3:G6,'واجهة حجز'!L3:L6)","v":"منحة التأهيل"},null,null,{"$f":"LOOKUP(O3,قائمة!A2:A151,قائمة!U2:U461)","v":40},null,null,null,{"$f":"(K14+K15)*G20/100","v":9666},115992]
[null,null,null,{"$f":"LOOKUP(Q4,'واجهة حجز'!G3:G6,'واجهة حجز'!M3:M6)","v":"منحة نوعية للمنصب"},null,null,{"$f":"LOOKUP(O3,قائمة!A2:A151,قائمة!V2:V223)","v":10},null,null,null,{"$f":"(K14+K15)*G21/100","v":2416.5},28998]
[null,null,null,{"$f":"LOOKUP(Q4,'واجهة حجز'!G3:G6,'واجهة حجز'!N3:N6)","v":"منحة الدعم المدرسي"},null,null,{"$f":"LOOKUP(O3,قائمة!A2:A151,قائمة!W2:W108)","v":15},null,null,null,{"$f":"(K14+K15)*G22/100","v":3624.75},43497]
[null,null,null,{"$f":"LOOKUP(Q4,'واجهة حجز'!G3:G5,'واجهة حجز'!O3:O5)","v":"منحة التوثيق التربوي"},null,null,null,null,null,null,{"$f":"LOOKUP(O3,قائمة!A2:A151,قائمة!S2:S223)","v":2500},{"$f":"K23*12","v":30000}]
[null,null,null,{"$f":"LOOKUP(Q4,'واجهة حجز'!G3:G5,'واجهة حجز'!P3:P5)","v":0},null,null,null,null,null,null,{"$f":"LOOKUP(O3,قائمة!A2:A161,قائمة!X2:X234)","v":0},{"$f":"K24*12","v":0}]
[null,null,null,"المجموع : 1",null,null,null,null,null,null,{"$f":"SUM(K14:K23)","v":44872.25},538467]
[null,"المنح العائلية",null,"المنح العائلية",{"$f":"LOOKUP(O3,قائمة!A2:A151,قائمة!E2:E177)","v":0},300,null,null,null,null,{"$f":"E26*F26","v":0},0]
[null,null,null,"منحة الأجر الوحيد",{"$f":"LOOKUP(O3,قائمة!A2:A151,قائمة!G2:G237)","v":0},800,null,null,null,null,{"$f":"E27*F27","v":0},0]
[null,null,null,"تعويض الأجر الوحيد",{"$f":"LOOKUP(O3,قائمة!A2:A173,قائمة!H2:H159)","v":0},5.5,null,null,null,null,{"$f":"E28*F28","v":0},0]
[null,null,null,"منح عائلية مضاف",{"$f":"LOOKUP(O3,قائمة!A2:A151,قائمة!F2:F151)","v":0},11.25,null,null,null,null,{"$f":"E29*F29","v":0},0]
[null,null,null,"المجموع : 2",null,null,"مجموع المنح العائلية",null,null,null,{"$f":"SUM(K26:K29)","v":0},0]
[null,null,null,"المجموع : 3 = 1 + 2",null,null,"مجموع الخام",null,null,null,{"$f":"K25+K30","v":44872.25},{"$f":"L25+L30","v":538467}]
[null,"الإقتطاعات",null,"الضمان الإجتماعي",null,null,9,null,null,null,{"$f":"K25*0.09","v":4038.5025000000001},{"$f":"K32*12","v":48462.03}]
[null,null,null,"ضريبة الدخل الشامل",null,{"$f":"K25-(K19+K21)","v":41455.75},{"$f":"INT((F33-K32)/10)*10","v":37410},null,null,null,{"$f":"IF(G33<15000,0,IF(G33<22500,(G33-15000)/10*2,IF(G33<28750,(G33-22500)/10*1.2+1500,IF(G33<30000,(G33-28750)/10*2+2250,IF(G33<100000,(G33-30000)/10*3+2500)))))","v":4723},56676]
[null,null,null,"تعاضدية عمال التربية",null,null,{"$f":"LOOKUP(O3,قائمة!A2:A159,قائمة!Y2:Y158)","v":0},null,null,null,{"$f":"K25*G34/100","v":0},0]
[null,null,null,"الخدمات الإجتماعية",null,null,null,null,null,null,{"$f":"LOOKUP(O3,قائمة!A2:A151,قائمة!Z2:Z151)","v":0},0]
[null,null,null,"اقتطاعات أخرى ",null,null,null,null,null,null,{"$f":"LOOKUP(O3,قائمة!A2:A151,قائمة!AA2:AA154)","v":0},0]
[null,null,null,"مجموع الإقتطاعات : 4",null,null,"مجموع الإقتطاعات",null,null,null,{"$f":"SUM(K32:K36)","v":8761.5025000000005},105138.03]
[null,null,null,"المجموع الصافي للدفع : 5 = 3 - 4",null,null,"المجموع الصافي ",null,null,null,{"$f":"(K25+K26+K27+K28+K29)-K37","v":36110.747499999998},{"$f":"(L25+L26+L27+L29)-L37","v":433328.97}]
[]
[null,null,null,null,null,null,null,null,null,null,{"$f":"'واجهة حجز'!C5","v":"عين الحجل في : "},{"$f":"'واجهة حجز'!D5","v":"2018-02-21"}]
[null,null,null,null,null,null,null,null,null,null,{"$f":"'واجهة حجز'!C6","v":"المسير المالي"}]

{"sheet":"الشبكة الاستدلالية للمرتبات","index":3,"n_rows":30,"n_cols":24,"rows_kept":30,"cut":false,"hidden":true,"merged":[[29,15,31,23],[0,4,0,15],[23,15,25,23],[26,15,28,23]]}
[null,null,"ر ا الأدنى",null,"الدرجات"]
["الرقم","الصنف",null,0,1,2,3,4,5,6,7,8,9,10,11,12,null,"الصنف","م ت التربوي","م التأهيل","م  ن للمنصب","م  ت تعويضية","م  د المدرسي","م  السكن"]
[1,1,200,0,10,20,30,40,50,60,70,80,90,100,110,120,null,1,2000,40]
[2,2,219,0,11,22,33,44,55,66,77,88,99,110,120,131,null,2,2000,40]
[3,3,240,0,12,24,36,48,60,72,84,96,108,120,132,144,null,3,2000,40]
[4,4,263,0,13,26,39,53,66,79,92,105,118,132,145,158,null,4,2000,40]
[5,5,288,0,14,29,43,58,72,86,101,115,130,144,158,173,null,5,2000,40]
[6,6,315,0,16,32,47,63,79,95,110,126,142,158,173,189,null,6,2000,40]
[7,7,348,0,17,35,52,70,87,104,122,139,157,174,191,209,null,7,2000,40]
[8,8,379,0,19,38,57,76,95,114,133,152,171,190,208,225,null,8,2000,40]
[9,9,418,0,21,42,63,84,105,125,146,167,188,209,230,251,null,9,2000,40]
[10,10,453,0,23,45,68,91,113,136,159,181,204,227,249,272,null,10,2000,40]
[11,11,498,0,25,50,75,100,125,149,174,199,224,249,274,299,null,11,2500,40,null,1500,15]
[12,12,537,0,27,54,81,107,134,161,188,215,242,269,295,322,null,12,2500,40,10,1500,15,1000]
[13,13,578,0,29,58,87,116,145,173,202,231,260,289,318,347,null,13,3000,45,10,1500,15,1000]
[14,14,621,0,31,62,93,124,155,186,217,248,279,311,342,373,null,14,3000,45,10,1500,15,1000]
[15,15,666,0,33,67,100,133,167,200,133,266,300,333,366,400,null,15,3000,45,10,1500,15,1000]
[16,16,713,0,36,71,107,143,178,214,250,285,321,357,392,428,null,16,3000,45,10,1500,15,1000]
[17,17,762,0,38,76,114,152,191,229,267,305,343,381,419,457,null,17,3000,45,10,1500,15,1000]
[]
[]
[]
[]
[null,null,null,null,null,null,null,null,null,null,null,null,null,null,null,"Bacha Toufik"]
[]
[]
[null,null,null,null,null,null,null,null,null,null,null,null,null,null,null,"Sous-Intendant"]
[]
[]
[null,null,null,null,null,null,null,null,null,null,null,null,null,null,null,"Sidi Aissa "]